{"text_format":"1","workbook":"xlsx","n_sheets":9,"sheets":["Instructions","Cover Sheet","Budget Pages","School_Lookup","School","Amendment","Indirect Costs","supt list 040604","FY19 Budget Projection"],"not_rendered":{"charts":0,"images":1,"macros":0,"external_links":1,"defined_names":32,"comments":1,"pivot_tables":0},"unopened":[],"bounds":{"document_bytes":16777216,"sheet_cells":100000,"rows_first":2000,"rows_last":500,"rows_between":2000,"halvings":0,"cell_chars":16384,"cell_head_chars":4096},"cells_cut":0,"cells_raw":0,"read":"whole","date_system":"1900"}

{"sheet":"Instructions","index":0,"n_rows":8,"n_cols":2,"rows_kept":8,"cut":false,"hidden":false,"merged":[]}
["Massachusetts Department of Elementary and Secondary Education\nBudget Workbook Instructions\n","Russ Fleming 8-21-14\n8-21-2014"]
["School Redesign (SRG) and Level 3 School Turnaround Grant"]
["FY 2019 Fund Code 511 and 539"]
["Overview\nThis Excel workbook contains budget forms that a school district must submit to the Massachusetts Department of Elementary and Secondary Education in applying for the above-listed grant opportunities. The forms are on separate worksheets within this workbook. To access the worksheets and complete the necessary information, click on the appropriate worksheet - for example, Cover Sheet - listed at the bottom of this page.\n"]
["Cover Sheet\nOn the Cover Sheet worksheet, select your district name from the drop-down menu and enter the contact person's name and phone number. Enter the amount the district for which the district is eligible in the Total Allocation cell. The Total Amount Requested cell will fill in automatically and is linked to the budget pages; this amount may be different than the allocation amount if the district chooses to not apply for the full allocation.\n"]
["Budget Summary\nEnter the budget details in the Budget Summary worksheet. Be sure to enter Number of Staff, Full-time Equivalent (FTE), and Contractual Services rates per hour or day where indicated.  Stipends do not need to be associated with FTEs; however, showing rates is required (provide an hourly, daily, flat, or other rate as well as other information requested in the line item). As well, include narrative details for line item expenditures in Column J (Line Item Explanation). Additional guidance regarding how to complete grant applications is available at: http://finance1.doe.mass.edu/Grants/procedure/manual.html (procedural manual). \n"]
["\nSubmitting the Workbook\nSave the workbook file as 'FY19 SRG.L3 Grant' and email it to srg@doe.mass.edu. \nNo hard copies mailed to ESE is necessary."]
["Final Notes / Amendments\nOnce your grant is approved, the Department will email you an approved copy of the budget workbook. You must use this approved electronic copy to make any future amendments to the grant. Do so by completing the Amendment worksheet and updating the Budget Summary. An indirect cost calculator has been included on a separate worksheet. Use this, if necessary, to calculate the amount to use for indirect costs. "]

{"sheet":"Cover Sheet","index":1,"n_rows":35,"n_cols":16,"rows_kept":35,"cut":false,"hidden":false,"merged":[[16,5,16,7],[16,1,16,3],[16,10,16,11],[14,1,15,3],[0,1,0,15],[1,1,1,15],[4,5,4,7],[3,12,3,13],[4,8,4,12],[4,13,4,15],[6,5,6,11],[7,5,7,7],[13,12,13,13],[11,1,11,15],[8,5,8,7],[7,11,7,13],[12,9,12,13],[12,1,12,3],[13,9,13,11],[12,4,12,8],[12,14,13,15],[13,4,13,8],[13,1,13,3],[33,1,33,15],[31,1,31,15],[18,1,18,15],[14,9,15,11],[14,12,15,13],[25,1,25,15],[17,3,17,13],[17,14,17,15],[23,14,23,15],[14,4,15,8],[32,1,32,15],[20,5,20,11],[22,14,22,15],[14,14,15,15],[22,5,22,11],[20,14,20,15]]}
[null,"Massachusetts Department of Elementary and Secondary Education"]
[null,"STANDARD CONTRACT FORM AND APPLICATION FOR PROGRAM GRANTS"]
[null,"PART I - GENERAL"]
[null,"A. APPLICANT",null,"District Name:",null,null,null,1,null,null,null,null,"District Code:",null,{"$f":"LEFT(VLOOKUP('Cover Sheet'!$H$4,suptlist,6,FALSE),4)","v":"ORGA"}]
[null,"Contact Name:",null,null,null,null,null,null,"Email Address:"]
[]
[null,"Address: ",null,null,null,{"$f":"VLOOKUP('Cover Sheet'!$H$4,suptlist,7,FALSE)","v":"ADDRESS LINE 1"},{"$f":"VLOOKUP('Cover Sheet'!$H$4,'supt list 040604'!C6:M397,5,FALSE)","v":{"$error":"#N/A"}}]
[null,null,null,null,null,{"$f":"VLOOKUP('Cover Sheet'!$H$4,suptlist,9,FALSE)","v":"CITY/TOWN"},null,null,null,null,null,{"$f":"VLOOKUP('Cover Sheet'!$H$4,suptlist,11,FALSE)","v":"ZIP CODE"}]
[null,"Contact Telephone:"]
[]
[]
[null,"B. APPLICATION FOR PROGRAM FUNDING"]
[null,"Fund Code",null,null,"Program Name",null,null,null,null,"PROJECT DURATION",null,null,null,null,"Total Request\n"]
[null,null,null,null,null,null,null,null,null,"FROM",null,null,"TO"]
[null,539,null,null,"Level 3 School Turnaround Grant Fund Code 539",null,null,null,null,"Upon Approval",null,null,"2019-06-30"]
[]
[null,511,null,null,null,"School Redesign Grant Fund Code 511 and ",null,null,null,null,"Upon Approval",null,null,"2019-08-31"]
[null,null,null,"TOTAL AMOUNT REQUESTED:\nThis amount is linked to the grand total on the budget page and cannot be edited here.\n",null,null,null,null,null,null,null,null,null,null,{"$f":"'Budget Pages'!$N$99","v":0}]
[null,"C. I CERTIFY THAT THE INFORMATION CONTAINED IN THIS APPLICATION IS CORRECT AND COMPLETE; THAT THE APPLICANT AGENCY HAS AUTHORIZED ME, AS ITS REPRESENTATIVE, TO FILE THIS APPLICATION; AND THAT I UNDERSTAND THAT FOR ANY FUNDS RECEIVED THROUGH THIS APPLICATION THE AGENCY AGREES TO COMPLY WITH ALL APPLICATION STATE AND FEDERAL GRANT REQUIREMENTS COVERING BOTH THE PROGRAMMATIC AND FISCAL ADMINISTRATION OF GRANT FUNDS"]
[]
[null,"AUTHORIZED SIGNATORY:",null,null,null,"________________________________________",null,null,null,null,null,null,"TITLE: "]
[null,null,null,null,null,null,null,null,null,null,null,null,null,null," "," "]
[null,"TYPED NAME: ",null,null,null,null,null,null,null,null,null,null,"DATE: "]
[null,null,null,null,null," ",null,null,null,null,null,null,null,null," "]
[]
[null,"Email to srg@doe.mass.edu by May 2, 2018 at 12:00pm: "]
[null,null,null,null,null,null,null,"1. Assurances and Waivers page with superintendent signature"]
[null,null,null,null,null,null,null,"2. Entire budget workbook"]
[null,null,null,null,null,null,null,"Note: Grant Cover Sheet (this page) will only be emailed upon approval of the grant."]
[]
[]
[null,"AUTHORIZED SIGNATORY:"]
[null,"Massachusetts Department of Elementary and Secondary Education ONLY"]
[null,"GRANTS MANAGEMENT"]
[null,"For the Department Authorized Signatory:",null,null,null,null,null,null,null,null,null,null,null,"Date:"]

{"sheet":"Budget Pages","index":2,"n_rows":100,"n_cols":15,"rows_kept":100,"cut":false,"hidden":false,"merged":[[95,2,95,9],[95,14,96,14],[96,2,96,9],[97,2,97,9],[98,2,98,9],[88,1,88,9],[89,1,89,9],[90,1,90,9],[91,2,91,9],[92,2,92,7],[93,2,94,9],[79,2,79,9],[80,1,81,1],[80,2,81,9],[80,14,81,14],[83,1,83,9],[83,14,90,14],[84,1,84,9],[85,1,85,9],[86,1,86,9],[87,1,87,9],[71,2,71,9],[72,2,72,9],[73,2,73,9],[74,2,74,9],[74,14,78,14],[75,2,75,9],[76,2,76,9],[77,2,77,9],[78,2,78,9],[62,2,62,7],[63,2,63,9],[64,2,64,9],[65,2,65,9],[65,14,71,14],[66,2,66,9],[67,2,67,9],[68,2,68,9],[69,2,69,9],[70,2,70,9],[54,2,54,7],[54,14,61,14],[55,2,55,7],[56,2,56,7],[57,2,57,7],[58,2,58,7],[59,2,59,7],[60,2,60,7],[61,2,61,7],[48,2,48,9],[48,14,50,14],[49,2,49,9],[50,2,50,9],[51,2,52,9],[52,12,53,12],[52,13,53,13],[52,14,53,14],[53,2,53,7],[33,2,33,6],[34,2,34,6],[35,2,35,6],[44,1,45,13],[44,14,45,14],[46,2,46,9],[46,13,47,13],[47,2,47,9],[26,2,26,6],[27,2,27,6],[28,2,28,6],[28,14,35,14],[29,2,29,6],[30,2,30,6],[31,2,31,6],[32,2,32,6],[38,2,38,6],[40,2,40,6],[42,2,42,6],[36,2,36,6],[37,2,37,6],[18,2,18,6],[19,2,19,6],[19,14,25,14],[20,2,20,6],[21,2,21,6],[22,2,22,6],[23,2,23,6],[24,2,24,6],[25,2,25,6],[11,2,11,6],[12,2,12,6],[12,14,17,14],[13,2,13,6],[14,2,14,6],[15,2,15,6],[16,2,16,6],[17,2,17,6],[4,4,4,5],[4,9,4,12],[6,1,6,13],[7,1,7,13],[8,1,8,13],[9,1,10,1],[9,2,10,6],[5,1,5,13],[1,5,1,6],[1,7,1,8],[1,14,8,14],[2,1,2,3],[2,4,2,5],[2,8,2,9],[3,1,3,3],[3,4,3,5],[3,9,3,12],[4,1,4,3]]}
[null,"PART II - PROJECT EXPENDITURES - DETAIL INFORMATION",null,null,null,null,null,null,null,null,null,null,"A.",{"$f":"'Cover Sheet'!B15","v":539}]
[null,"B. APPLICANT AGENCY",null,null,null,{"$f":"VLOOKUP('Cover Sheet'!H4,suptlist,5,FALSE)","v":"ORGANIZATION NAME"},null,"District Code:",null,{"$f":"'Cover Sheet'!O4","v":"ORGA"},null,null,"FY",2019,"Line Item Narrative Description and Rationale:\n\n \n\nIn the spaces below describe in more detail line item expenditures, providing, for example, information that clearly identifies the individual or group providing a service or the rationale for proposing a purchase.\n"]
[null,"Contact Person:",null,null,null,null,null,"Address:",{"$f":"'Cover Sheet'!F7","v":"ADDRESS LINE 1"},null,null,null,{"$f":"'Cover Sheet'!F8","v":"CITY/TOWN"},{"$f":"'Cover Sheet'!L8","v":"ZIP CODE"}]
[null,"Telephone: ",null,null,null,null,null,"Email address:",null,null,null,null,null,""]
[null,"Summer phone:",null,null,null,null,null,"Submission Date:"]
[null,"SRG and L3 School Turnaround Grant"]
[null,"PLEASE PROVIDE ALL OF THE INFORMATION REQUESTED ABOVE AND SUBMIT ALL PAGES OF THE BUDGET DETAIL."]
[null,"C. ASSIGNMENT THROUGH SCHEDULE A"]
[null,"Check this box ONLY if this project will be using funds assigned by more than one agency.  A completed Schedule A, with signatures and the amount of funds assigned by each participating agency, must be attached to this Budget Detail."]
[null,"D.","STAFFING CATEGORIES",null,null,null,null,"E.","F.","G.",null,null,"H.","I.","J."]
[null,null,null,null,null,null,null,"# OF STAFF","FTE","MTRS*\n(see note below)",null,null,"AMOUNT","TOTAL","LINE ITEM EXPLANATION"]
[null,"1. ","ADMINISTRATORS:",null,null,null,null,null,null,null,null,null,"Do not use decimals",null,"To add narrative, click on the cell below (the \"Enter\" key works only when \"Alt\" + \"Enter\" are pressed together):"]
[null,null,null,null,null,null,null,null,null," ",null,null,null,null," "]
[null,null,null,null,null,null,null,null,null,null,false,{"$f":"IF(K14=TRUE,M14,0)","v":0}]
[null,null,null,null,null,null,null,null,null,null,false,0]
[null," ",null,null,null,null,null," "," ",null,null,0]
[null,null,"  \n",null,null,null,null,null,null,null,false,0]
[null,null,"SUB-TOTAL",null,null,null,null,{"$f":"SUM(H13:H17)","v":0},{"$f":"SUM(I13:I17)","v":0},null,null,null,null,{"$f":"ROUND(SUM(M13:M17), 0)","v":0}]
[null,"2.","INSTRUCTIONAL/\nPROFESSIONAL STAFF:",null,null,null,null,null,null,null,null,null," ",null," "]
[null,null,null,null,null,null,null,null,null,null,false,{"$f":"IF(K20=TRUE,M20,0)","v":0},null," "]
[null,null,null,null,null,null,null,null,null,null,false,0]
[null,null,null,null,null,null,null,null,null,null,false,0]
[null,null,null,null,null,null,null,null,null,null,null,0," "]
[null,null," ",null,null,null,null,null,null,null,false,0," "]
[null,null,null,null,null,null,null,null,null,null,false,0," "]
[null,null,null,null,null,null,null,null,null,null,false,0," "]
[null,null,"SUB-TOTAL",null,null,null,null,{"$f":"SUM(H20:H26)","v":0},{"$f":"SUM(I20:I26)","v":0},null,null,{"$f":"SUM(L13:L26)","v":0},null,{"$f":"ROUND(SUM(M20:M26), 0)","v":0}]
[null,"3.","SUPPORT STAFF",null,null,null,null,null,null,null,null,null," ",null," "]
[null,null,"Aides/Paraprofessionals  ",null,null,null,null,null,null,null,false,{"$f":"IF(K29=TRUE,M29,0)","v":0}]
[null,null,null,null,null,null,null,null,null,null,false,0," "]
[null,null,"Secretary/Bookkeeper ",null,null,null,null,null,null,null,false,0," "]
[null,null,"Other",null,null,null,null,null,null,null,false,0," "]
[null,null,null,null,null,null,null,null,null,null,null,null," "]
[null,null," ",null,null,null,null,null,null,null,false,0," "]
[null,null," ",null,null,null,null,null,null,null,false,0," "]
[null,null,"SUB-TOTAL",null,null,null,null,{"$f":"SUM(H29:H35)","v":0},{"$f":"SUM(I29:I35)","v":0},null,null,{"$f":"SUM(L29:L35)","v":0},null,{"$f":"ROUND(SUM(M29:M35), 0)","v":0}]
[null,"4.","STIPENDS",null,null,null,null,null,null,null,null,null," "]
[null,null,"Provide rate per hour or day and the number of days or hours below, then put the amount in column H. Distinguish between different positions. Put an X in the MTRS box for stipends for staff that are members of the MA Teachers' Retirement System.",null,null,null,null,null,null,null,false,{"$f":"IF(K38=TRUE,M38,0)","v":0}," "]
[null,null,"Administrators",null,null,null,null,null,null,null,false,0]
[]
[null,null,"Instructional/Professional Staff",null,null,null,null,null,null,null,false,0]
[]
[null,null,"Support Staff",null,null,null,null,null,null,null,false,0]
[null,null,null,null,null,null,null,null,null,null,null,null,null,{"$f":"ROUND(SUM(M37:M43), 0)","v":0}]
[null,"  * Put an X in the MTRS box if the identified employee(s) is/are a member of the MA Teachers' Retirement System.\nThis requirement only applies to federally-funded grant programs. Then calculate manually the required 9% and place in 4a below."]
[]
[null,"5.","FRINGE BENEFITS:",null,null,null,null,null,null,null,null,null,"AMOUNT","LINE ITEM\nSUB-TOTAL"]
[]
[null,"5-a","MA TEACHERS' RETIREMENT SYSTEM (Federally-funded grants only)"]
[null,"5-b","OTHER FRINGE BENEFITS (Other retirement systems, health insurance, FICA)"]
[null," ","SUB-TOTAL",null,null,null,null,null,null,null,null,null,null,{"$f":"ROUND(SUM(M49:M50), 0)","v":0}]
[null,"6.","CONTRACTUAL SERVICES: Indicate the services to be provided and the rate  to be paid per hour or per day, whichever is applicable.",null,null,null,null,null,null,null,null,null,"H.","I.","J."]
[null,null,null,null,null,null,null,null,null,null,null,null,"AMOUNT","LINE ITEM\nSUB-TOTAL","LINE ITEM EXPLANATION"]
[null,null,null,null,null,null,null,null,"Rate($)","Hour/Day"]
[null,null,"CONSULTANTS - "]
[null,null,"MSV AIR"]
[null,null,"SPECIALISTS - "]
[null,null," "]
[null,null,"INSTRUCTORS - "]
[null,null,"SPEAKERS - "]
[null,null,"SUBSTITUTES - "]
[null,null,"OTHER - "]
[null,null,"SUB-TOTAL",null,null,null,null,null,null,null,null,null,null,{"$f":"ROUND(SUM(M55:M62), 0)","v":0}]
[null,"7.","SUPPLIES AND MATERIALS: Items costing less than ",null,null,null,null,null,null,null,null,null,"H.","I.","J."]
[null,null,"$5,000 per unit or having a useful life of less than one year.",null,null,null,null,null,null,null,null,null,"AMOUNT","LINE ITEM\nSUB-TOTAL","LINE ITEM EXPLANATION"]
[null,null,"TEXTBOOKS AND INSTRUCTIONAL MATERIALS -"]
[]
[null,null," "]
[null,null," "]
[null,null,"NON-INSTRUCTIONAL SUPPLIES - "]
[]
[]
[null,null,"SUB-TOTAL",null,null,null,null,null,null,null,null,null,null,{"$f":"SUM(M66:M72)","v":0}]
[null,"8.","TRAVEL: Mileage, conference registration, hotel, and meals",null,null,null,null,null,null,null,null,null,null,null," "]
[null,null,"SUPERVISORY STAFF -"]
[]
[null,null,"INSTRUCTIONAL STAFF - "]
[null,null," "]
[null,null,"OTHER - "]
[null,null,"SUB-TOTAL",null,null,null,null,null,null,null,null,null,null,{"$f":"SUM(M75:M79)","v":0}]
[null,"9.","OTHER COSTS: Please indicate the amount requested in each category",null,null,null,null,null,null,null,null,null,null,null,"LINE ITEM EXPLANATION"]
[]
[null,null,null,null,null,null,null,null,null,null,null,null," ",null," "]
[null,"Transportation of Students -"]
[null,"Memberships/Subscriptions -",null,null,null,{"$error":"#REF!"}]
[null,"Advertising-",null,null,null,{"$error":"#REF!"}]
[null,"Printing/Reproduction -",null,null,null,{"$error":"#VALUE!"}]
[null,"Maintenance/Repairs -"]
[null,"Rental of Space -"]
[null,"Rental of Equipment -",null,null,null,null,null,null,null,null,null,null," "]
[null,"Telephone/Utilities - "]
[null,null,"SUB-TOTAL",null,null,null,null,null,null,null,null,null,null,{"$f":"ROUND(SUM(M84:M91),0)","v":0}]
[null,"10.","INDIRECT COSTS: \nFirst, click on the 'Indirect Cost Calculator' link to access the worksheet to calculate maximum amount that can be used for indirect costs. Then enter approved rate and the amount from the 'Indirect Cost Calculator' worksheet (cell D13 or D22)  in the green cell to the right: ",null,null,null,null,null,"Approved Rate:",null,null,null,"Click here\nIndirect Cost Calculator"]
[null,"11.","EQUIPMENT: Provide a statement of need and cost of each item in the Notes Page.  \nItems costing $5,000 or more per unit and having a useful life of more than one year.",null,null,null,null,null,null,null,null,null,"H.","I.","J."]
[null,null,null,null,null,null,null,null,null,null,null,null,"AMOUNT","LINE ITEM\nSUB-TOTAL","LINE ITEM EXPLANATION"]
[null,null,"INSTRUCTIONAL EQUIPMENT"]
[null,null,"NON-INSTRUCTIONAL EQUIPMENT  "]
[null,null,"SUB-TOTAL",null,null,null,null,null,null,null,null,null,null,{"$f":"ROUND(SUM(M96:M97), 0)","v":0}]
[null,null,"TOTAL FUNDS REQUESTED",null,null,null,null,null,null,null,null,null,null,{"$f":"SUM(N18+N27+N36+N44+N51+N63+N73+N80+N98+N92+N93)","v":0}]
[null,{"$error":"#REF!"}]

{"sheet":"School_Lookup","index":3,"n_rows":134,"n_cols":8,"rows_kept":134,"cut":false,"hidden":true,"merged":[]}
[null,"SchoolList48",null,null,"Item #","Category","Title"]
[null,{"$f":"LEFT(#REF!,4)","v":{"$error":"#REF!"}},null,null,"1PD10001","Leadership","Instructional Leadership Training",{"$f":"E2&\": \" &G2","v":"1PD10001: Instructional Leadership Training"}]
[null,null,null,null,"9PDM10003","Mathematics","Mass Intel Math Initiative",{"$f":"E3&\": \" &G3","v":"9PDM10003: Mass Intel Math Initiative"}]
[0,{"$f":"IF(ISERROR($B$2),\"\",IF(LEFT(INDEX(school,MATCH(B$2,districtcode,FALSE)+$A4,2),4)=B$2,INDEX(school,MATCH(B$2,districtcode,FALSE)+$A4,3),\"\"))","v":""},{"$f":"IF(ISERROR($B$2),\"\",IF(LEFT(INDEX(school,MATCH(B$2,districtcode,FALSE)+$A4,2),4)=B$2,INDEX(school,MATCH(B$2,districtcode,FALSE)+$A4,2),\"\"))","v":""},null,"9PDM10004","Mathematics","Developing Algebraic Thinking for MS/HS Math Teachers","9PDM10004: Developing Algebraic Thinking for MS/HS Math Teachers"]
[1,"","",null,"9PDM10005","Mathematics","Understanding Rational Numbers","9PDM10005: Understanding Rational Numbers"]
[2,"","",null,"9PDM10006","Mathematics","The Coaching Cycle","9PDM10006: The Coaching Cycle"]
[3,"","",null,"9PDM10008","Mathematics","Academic Youth Development","9PDM10008: Academic Youth Development"]
[4,"","",null,"9PDM10009","Literacy","Differentiated Writing to Close the Achievement Gap","9PDM10009: Differentiated Writing to Close the Achievement Gap"]
[5,"","",null,"9PDM10010","Literacy","Foundations of Literacy K-3","9PDM10010: Foundations of Literacy K-3"]
[6,"","",null,"9PDM10011","Literacy","Language Essentials for Teachers of Reading & Spelling K-3","9PDM10011: Language Essentials for Teachers of Reading & Spelling K-3"]
[7,"","",null,"9PDM10012","Literacy","Reading and Writing Informational Text K-6","9PDM10012: Reading and Writing Informational Text K-6"]
[8,"","",null,"9PDM10013","Literacy","Reading in the Content Areas 6-8","9PDM10013: Reading in the Content Areas 6-8"]
[9,"","",null,"9PDM10014","Literacy","Teaching Expository & Persuasive Writing 6-12","9PDM10014: Teaching Expository & Persuasive Writing 6-12"]
[10,"","",null,"9PDM10015","Literacy","Oral Language and Vocabulary K-5","9PDM10015: Oral Language and Vocabulary K-5"]
[11,"","",null,"9PDM10016","Literacy","Writing in Response to Reading 2-5","9PDM10016: Writing in Response to Reading 2-5"]
[12,"","",null,"1TA10026","Targeted Offerings","Guided Self-Assessment on the Conditions for School Effectiveness","1TA10026: Guided Self-Assessment on the Conditions for School Effectiveness"]
[13,"","",null,"1TA10027","Targeted Offerings","Leadership Networks","1TA10027: Leadership Networks"]
[14,"","",null,"1TA10028","Targeted Offerings","Instructional Leadership Coaching","1TA10028: Instructional Leadership Coaching"]
[15,"","",null,"3TA10029","Targeted Offerings","Data Reporting and Analysis","3TA10029: Data Reporting and Analysis"]
[16,"","",null,"7TA10030","Targeted Offerings","Orientation to PLC Guidance","7TA10030: Orientation to PLC Guidance"]
[17,"","",null,"7TA10031","Targeted Offerings","Common Planning Time Self-Assessment","7TA10031: Common Planning Time Self-Assessment"]
[18,"","",null,"7TA10032","Targeted Offerings","Mathematics Learning Community","7TA10032: Mathematics Learning Community"]
[19,"","",null,"9TA10033","Targeted Offerings","The Learning Walk Toolkit","9TA10033: The Learning Walk Toolkit"]
[20,"","",null,"9TA10034","Targeted Offerings","Literacy Network","9TA10034: Literacy Network"]
[21,"","",null,"9TA10035","Targeted Offerings","Mathematics Network on Instructional Practices","9TA10035: Mathematics Network on Instructional Practices"]
[22,"","",null,"9TA10036","Targeted Offerings","Mathematics Network on District Systems","9TA10036: Mathematics Network on District Systems"]
[23,"",""]
[24,"",""]
[25,"",""]
[26,""]
[27,""]
[28,""]
[29,""]
[30,""]
[31,""]
[32,{"$f":"IF(ISERROR($B$2),\"\",IF(LEFT(INDEX(school,MATCH(B$2,districtcode,FALSE)+$A36,2),4)=B$2,INDEX(school,MATCH(B$2,districtcode,FALSE)+$A36,3),\"\"))","v":""}]
[33,""]
[34,""]
[35,""]
[36,""]
[37,""]
[38,""]
[39,""]
[40,""]
[41,""]
[42,""]
[43,""]
[44,""]
[45,""]
[46,""]
[47,""]
[48,""]
[49,""]
[50,""]
[51,""]
[52,""]
[53,""]
[54,""]
[55,""]
[56,""]
[57,""]
[58,""]
[59,""]
[60,""]
[61,""]
[62,""]
[63,""]
[64,{"$f":"IF(ISERROR($B$2),\"\",IF(LEFT(INDEX(school,MATCH(B$2,districtcode,FALSE)+$A68,2),4)=B$2,INDEX(school,MATCH(B$2,districtcode,FALSE)+$A68,3),\"\"))","v":""}]
[65,""]
[66,""]
[67,""]
[68,""]
[69,""]
[70,""]
[71,""]
[72,""]
[73,""]
[74,""]
[75,""]
[76,""]
[77,""]
[78,""]
[79,""]
[80,""]
[81,""]
[82,""]
[83,""]
[84,""]
[85,""]
[86,""]
[87,""]
[88,""]
[89,""]
[90,""]
[91,""]
[92,""]
[93,""]
[94,""]
[95,""]
[96,{"$f":"IF(ISERROR($B$2),\"\",IF(LEFT(INDEX(school,MATCH(B$2,districtcode,FALSE)+$A100,2),4)=B$2,INDEX(school,MATCH(B$2,districtcode,FALSE)+$A100,3),\"\"))","v":""}]
[97,""]
[98,""]
[99,""]
[100,""]
[101,""]
[102,""]
[103,""]
[104,""]
[105,""]
[106,""]
[107,""]
[108,""]
[109,""]
[110,""]
[111,""]
[112,""]
[113,""]
[114,""]
[115,""]
[116,""]
[117,""]
[118,""]
[119,""]
[120,""]
[121,""]
[122,""]
[123,""]
[124,""]
[125,""]
[126,""]
[127,""]
[128,""]
[129,""]
[130,""]

{"sheet":"School","index":4,"n_rows":1814,"n_cols":8,"rows_kept":1814,"cut":false,"hidden":true,"merged":[]}
["System","SCHOOL","School","Total","Gradeserved"]
["0001","00010003","Abington ECC",631,"PK - 03","Title I School (TA)"," "," "]
["0001","00010505","Abington High",510,"09 - 12","Non-Title I School (NT)"," "," "]
["0001","00010002","Center Elementary School",null,null,"Non-Title I School (NT)"]
["0001","00010405","Frolio Middle School",369,"07 - 08","Non-Title I School (NT)","Improvement Year 2 - Subgroups","Improvement Year 2 - Aggregate"]
["0001","00010015","Woodsdale",506,"04 - 06","Non-Title I School (NT)","Corrective Action - Subgroups","Corrective Action - Subgroups"]
["0002","00020020","Douglas",488,"K  - 06","Non-Title I School (NT)"," "," "]
["0002","00020025","Gates",490,"K  - 06","Non-Title I School (NT)"," "," "]
["0002","00020030","Luther Conant",488,"K  - 06","Non-Title I School (NT)","Improvement Year 2 - Subgroups","Improvement Year 2 - Subgroups"]
["0002","00020015","McCarthy-Towne",486,"K  - 06","Title I School (TA)","Improvement Year 1 - Subgroups"," "]
["0002","00020010","Merriam",614,"PK - 06","Title I School (TA)","Improvement Year 1 - Subgroups"," "]
["0003","00030025","Acushnet Elementary Sch",524,"PK - 04","Title I School (TA)","Corrective Action - Subgroups","Improvement Year 2 - Subgroups"]
["0003","00030305","Albert F Ford Middle Sch",483,"05 - 08","Non-Title I School (NT)","Improvement Year 2 - Subgroups","Improvement Year 2 - Aggregate"]
["0005","00050003","Agawam ECC",124,"PK","Non-Title I School (NT)"]
["0005","00050505","Agawam High",1337,"09 - 12","Non-Title I School (NT)"," "," "]
["0005","00050405","Agawam Junior High",695,"07 - 08","Non-Title I School (NT)","Restructuring Year 2+ - Subgroups","Restructuring Year 2+ - Subgroups"]
["0005","00050020","Benjamin J Phelps",366,"K  - 04","Non-Title I School (NT)","Improvement Year 2 - Subgroups","Improvement Year 2 - Subgroups"]
["0005","00050010","Clifford M Granger",307,"K  - 04","Title I School (TA)"," "," "]
["0005","00050030","James Clark School",373,"K  - 04","Title I School (TA)"," ","Improvement Year 2 - Subgroups"]
["0005","00050303","Roberta G. Doering School",649,"05 - 08","Non-Title I School (NT)","Restructuring Year 1 - Subgroups","Restructuring Year 2+ - Subgroups"]
["0005","00050025","Robinson Park",379,"K  - 04","Title I School (TA)"," "," "]
["0007","00070005","Amesbury Elementary",442,"PK - 04","Title I School (TA)","Improvement Year 2 - Aggregate"," "]
["0007","00070505","Amesbury High",644,"09 - 12","Non-Title I School (NT)"," "," "]
["0007","00070013","Amesbury Middle",751,"05 - 08","Non-Title I School (NT)","Corrective Action - Subgroups","Restructuring Year 2+ - Subgroups"]
["0007","00070010","Charles C Cashman El",548,"PK - 04","Title I School (TA)"," "," "]
["0008","00080009","Crocker Farm Elementary",371,"PK - 06","Title I School (TA)","Restructuring Year 1 - Subgroups","Restructuring Year 2+ - Subgroups"]
["0008","00080020","Fort River Elementary",400,"K  - 06","Title I School (TA)","Corrective Action - Subgroups","Corrective Action - Subgroups"]
["0008","00080050","Wildwood Elementary",471,"K  - 06","Title I School (TA)","Improvement Year 1 - Subgroups","Improvement Year 2 - Subgroups"]
["0009","00090505","Andover High",1802,"09 - 12","Non-Title I School (NT)"," "," "]
["0009","00090310","Andover West Middle",543,"06 - 08","Non-Title I School (NT)"," "," "]
["0009","00090003","Bancroft Elementary",483,"K  - 05","Title I School (TA)"," "," "]
["0009","00090305","Doherty Middle",563,"06 - 08","Non-Title I School (NT)"," ","Improvement Year 1 - Subgroups"]
["0009","00090010","Henry C Sanborn Elem",346,"K  - 05","Non-Title I School (NT)"," "," "]
["0009","00090004","High Plain Elementary",527,"K  - 05","Title I School (TA)","Improvement Year 1 - Subgroups","Improvement Year 1 - Subgroups"]
["0009","00090005","Shawsheen School",267,"PK - 02","Non-Title I School (NT)"," "," "]
["0009","00090020","South Elementary",573,"K  - 05","Non-Title I School (NT)"," ","Improvement Year 1 - Subgroups"]
["0009","00090025","West Elementary",671,"PK - 05","Title I School (TA)","Improvement Year 1 - Subgroups"," "]
["0009","00090350","Wood Hill Middle School",403,"06 - 08","Non-Title I School (NT)"," "," "]
["0010","00100505","Arlington High",1196,"09 - 12","Non-Title I School (NT)"," "," "]
["0010","00100010","Brackett",444,"K  - 05","Non-Title I School (NT)"," "," "]
["0010","00100025","Cyrus E Dallin",424,"K  - 05","Non-Title I School (NT)"," "," "]
["0010","00100030","Hardy",329,"K  - 05","Non-Title I School (NT)"," "," "]
["0010","00100005","John A Bishop",363,"K  - 05","Non-Title I School (NT)"," "," "]
["0010","00100055","M Norcross Stratton",343,"K  - 05","Non-Title I School (NT)"," "," "]
["0010","00100038","Menotomy Preschool",57,"PK","Non-Title I School (NT)"]
["0010","00100410","Ottoson Middle",1051,"06 - 08","Non-Title I School (NT)","Improvement Year 2 - Subgroups","Restructuring Year 2+ - Subgroups"]
["0010","00100045","Peirce",266,"K  - 05","Title I School (TA)"," "," "]
["0010","00100050","Thompson",335,"K  - 05","Title I School (TA)","Improvement Year 2 - Subgroups"," "]
["0014","00140505","Ashland High",718,"09 - 12","Non-Title I School (NT)"," "," "]
["0014","00140405","Ashland Middle",582,"06 - 08","Non-Title I School (NT)","Improvement Year 1 - Subgroups","Corrective Action - Subgroups"]
["0014","00140015","David Mindess",605,"03 - 05","Non-Title I School (NT)","Corrective Action - Subgroups","Restructuring Year 2+ - Subgroups"]
["0014","00140010","Henry E Warren Elem",547,"PK - 02","Title I School (TA)"," "," "]
["0014","00140005","William Pittaway Elem",172,"K","Non-Title I School (NT)"]
["0016","00160001","A. Irvin Studley Elementary School",410,"K  - 04","Title I School (TAP)","Improvement Year 1 - Subgroups"," "]
["0016","00160505","Attleboro High",1721,"09 - 12","Non-Title I School (NT)","Restructuring Year 1 - Subgroups","Restructuring Year 1 - Subgroups"]
["0016","00160315","Cyril K. Brennan Middle School",586,"05 - 08","Title I School (TA)","Improvement Year 2 - Subgroups","Corrective Action - Subgroups"]
["0016","00160008","Early Learning Center",169,"PK","Non-Title I School (NT)"]
["0016","00160045","Hill-Roberts Elementary School",497,"K  - 04","Non-Title I School (NT)"," "," "]
["0016","00160040","Hyman Fine Elementary School",413,"K  - 04","Title I School (TA)"," "," "]
["0016","00160050","Peter Thacher Elementary School",467,"K  - 04","Title I School (TA)"," "," "]
["0016","00160305","Robert J. Coelho Middle School",643,"05 - 08","Non-Title I School (NT)","Restructuring Year 1 - Subgroups","Restructuring Year 2+ - Subgroups"]
["0016","00160035","Thomas E. Willett School",390,"K  - 04","Non-Title I School (NT)"," "," "]
["0016","00160320","Wamsutta Middle School",559,"05 - 08","Title I School (TA)","Improvement Year 1 - Subgroups"," "]
["0017","00170305","Auburn Middle",521,"06 - 08","Title I School (TA)","Corrective Action - Subgroups","Restructuring Year 2+ - Subgroups"]
["0017","00170505","Auburn Senior High",792,"09 - 12","Non-Title I School (NT)"," "," "]
["0017","00170010","Bryn Mawr",267,"K  - 02","Title I School (TA)"," "," "]
["0017","00170005","Julia Bancroft",253,"03 - 05","Title I School (TA)","Improvement Year 1 - Subgroups"," "]
["0017","00170025","Mary D Stone",246,"K  - 02","Non-Title I School (NT)"," "," "]
["0017","00170015","Pakachoag",284,"03 - 05","Non-Title I School (NT)","Improvement Year 1 - Aggregate","Improvement Year 1 - Aggregate"]
["0018","00180510","Avon Middle High School",355,"07 - 12","Non-Title I School (NT)","Improvement Year 2 - Subgroups"," "]
["0018","00180010","Ralph D Butler",417,"PK - 06","Title I School (TA)","Improvement Year 1 - Aggregate","Improvement Year 1 - Subgroups"]
["0020","00200004","Barnstable Early Learning Center",132,"PK","Non-Title I School (NT)"]
["0020","00200505","Barnstable High",2030,"08 - 12","Non-Title I School (NT)","Corrective Action - Subgroups","Improvement Year 1 - Aggregate"]
["0020","00200315","Barnstable Intermediate School",778,"06 - 07","Title I School (TA)","Improvement Year 2 - Subgroups"," "]
["0020","00200010","Centerville Elementary",226,"K  - 03","Non-Title I School (NT)"," "," "]
["0020","00200025","Hyannis West Elementary",308,"K  - 03","Title I School (SW)","Improvement Year 2 - Subgroups"," "]
["0020","00200005","West Barnstable Elem",252,"K  - 03","Non-Title I School (NT)"," "," "]
["0020","00200045","West Villages Elementary School",427,"K  - 03","Non-Title I School (NT)"," "," "]
["0023","00230505","Bedford High",795,"09 - 12","Non-Title I School (NT)"," "," "]
["0023","00230305","John Glenn Middle",568,"06 - 08","Title I School (TA)","Improvement Year 2 - Subgroups","Corrective Action - Subgroups"]
["0023","00230010","Lt Elezer Davis",486,"K  - 02","Title I School (TA)"," "," "]
["0023","00230012","Lt Job Lane School",534,"03 - 05","Title I School (TA)","Improvement Year 1 - Aggregate"," "]
["0024","00240505","Belchertown High",789,"09 - 12","Non-Title I School (NT)"," "," "]
["0024","00240006","Chestnut Hill Community School",607,"04 - 06","Non-Title I School (NT)","Corrective Action - Subgroups","Corrective Action - Subgroups"]
["0024","00240005","Cold Spring",217,"PK - K","Title I School (TA)"]
["0024","00240025","Jabish Middle School",420,"07 - 08","Non-Title I School (NT)","Improvement Year 2 - Subgroups","Corrective Action - Subgroups"]
["0024","00240018","Swift River Elem",574,"01 - 03","Title I School (TA)","Restructuring Year 2+ - Aggregate","Improvement Year 1 - Aggregate"]
["0025","00250003","Bellingham ECC",93,"PK","Non-Title I School (NT)"]
["0025","00250505","Bellingham High School",709,"09 - 12","Non-Title I School (NT)"," "," "]
["0025","00250315","Bellingham Memorial Middle School",784,"05 - 08","Non-Title I School (NT)","Improvement Year 2 - Subgroups","Restructuring Year 2+ - Subgroups"]
["0025","00250009","Clara Macy Elementary",273,"K  - 04","Non-Title I School (NT)","Improvement Year 1 - Aggregate"," "]
["0025","00250510","Primavera Jr/Sr H S",24,"09 - 12","Non-Title I School (NT)"]
["0025","00250020","South Elem",442,"K  - 04","Title I School (TA)","Improvement Year 1 - Aggregate"," "]
["0025","00250025","Stall Brook",242,"K  - 04","Title I School (TA)"," "," "]
["0026","00260505","Belmont High",1104,"09 - 12","Non-Title I School (NT)"," "," "]
["0026","00260015","Daniel Butler",358,"K  - 04","Title I School (TA)"," "," "]
["0026","00260010","Mary Lee Burbank",327,"K  - 04","Non-Title I School (NT)"," "," "]
["0026","00260035","Roger E Wellington",434,"K  - 04","Title I School (TA)"," "," "]
["0026","00260005","Winn Brook",501,"PK - 04","Non-Title I School (NT)"," "," "]
["0026","00260305","Winthrop L Chenery Middle",1204,"05 - 08","Non-Title I School (NT)","Improvement Year 1 - Subgroups","Improvement Year 2 - Subgroups"]
["0027","00270010","Berkley Community School",496,"PK - 04","Title I School (TA)"," "," "]
["0027","00270305","Berkley Middle School",402,"05 - 08","Non-Title I School (NT)","Improvement Year 1 - Subgroups","Restructuring Year 1 - Subgroups"]
["0028","00280005","Berlin Memorial",201,"PK - 06","Title I School (TA)","Improvement Year 1 - Aggregate"," "]
["0030","00300055","Ayers/Ryal Side Sch",515,"PK - 05","Title I School (TA)","Restructuring Year 1 - Aggregate"," "]
["0030","00300505","Beverly High",1237,"09 - 12","Non-Title I School (NT)"," ","Improvement Year 2 - Subgroups"]
["0030","00300305","Briscoe Middle",932,"06 - 08","Non-Title I School (NT)","Restructuring Year 2+ - Subgroups","Restructuring Year 2+ - Subgroups"]
["0030","00300010","Centerville Elementary",365,"K  - 05","Title I School (TA)","Improvement Year 1 - Aggregate","Corrective Action - Subgroups"]
["0030","00300015","Cove Elementary",446,"PK - 05","Title I School (TA)"," ","Improvement Year 1 - Aggregate"]
["0030","00300033","Hannah Elementary",375,"PK - 05","Non-Title I School (NT)"," "," "]
["0030","00300040","North Beverly Elementary",381,"K  - 05","Title I School (TA)","Corrective Action - Aggregate","Restructuring Year 1 - Subgroups"]
["0031","00310505","Billerica Memorial High School",1599,"09 - 12","Title I School (TA)"," "," "]
["0031","00310030","Eugene C Vining",262,"K  - 05","Non-Title I School (NT)"," ","Improvement Year 1 - Aggregate"]
["0031","00310007","Frederick J Dutile",376,"K  - 05","Non-Title I School (NT)","Improvement Year 1 - Aggregate"," "]
["0031","00310026","Hajjar Elementary",521,"K  - 05","Non-Title I School (NT)","Improvement Year 1 - Aggregate"," "]
["0031","00310012","John F Kennedy",439,"K  - 05","Non-Title I School (NT)"," ","Corrective Action - Aggregate"]
["0031","00310310","Locke Middle",681,"06 - 08","Title I School (TA)","Corrective Action - Subgroups","Restructuring Year 2+ - Subgroups"]
["0031","00310305","Marshall Middle School",818,"06 - 08","Title I School (TA)","Restructuring Year 2+ - Subgroups","Restructuring Year 2+ - Subgroups"]
["0031","00310015","Parker",369,"K  - 05","Non-Title I School (NT)","Improvement Year 2 - Subgroups"," "]
["0031","00310005","Thomas Ditson",727,"K  - 05","Non-Title I School (NT)"," ","Improvement Year 2 - Aggregate"]
["0035","00350541","Another Course To College",203,"09 - 12","Title I School (SW)","Improvement Year 2 - Aggregate","Improvement Year 2 - Aggregate"]
["0035","00350003","Baldwin ELC",174,"PK - 01","Title I School (SW)"," "," "]
["0035","00350021","Beethoven",261,"PK - 03","Title I School (SW)","Restructuring Year 2+ - Aggregate"," "]
["0035","00350390","Blackstone",588,"PK - 05","Title I School (SW)"," "," "]
["0035","00350548","Boston Adult Academy",279,"09 - 12","Title I School (SW)"]
["0035","00350546","Boston Arts Academy",384,"09 - 12","Title I School (SW)"," ","Improvement Year 1 - Aggregate"]
["0035","00350558","Boston Community Leadership Academy",451,"09 - 12","Title I School (SW)","Improvement Year 1 - Subgroups"," "]
["0035","00350507","Boston International High School",247,"09 - 12","Title I School (SW)","Restructuring Year 1 - Aggregate","Restructuring Year 1 - Aggregate"]
["0035","00350560","Boston Latin",2384,"07 - 12","Non-Title I School (NT)"," "," "]
["0035","00350545","Boston Latin Academy",1716,"07 - 12","Title I School (SW)"," "," "]
["0035","00350413","Boston Middle School Academy",5,"06 - 08","Non-Title I School (NT)"]
["0035","00350012","Boston Teachers Union School",219,"PK - 07","Title I School (SW)","Improvement Year 1 - Aggregate","Improvement Year 1 - Aggregate"]
["0035","00350505","Brighton High",1233,"09 - 12","Title I School (SW)","Restructuring Year 2+ - Aggregate","Restructuring Year 2+ - Subgroups"]
["0035","00350658","Brook Farm/Media High",null,null,"Non-Title I School (NT)"]
["0035","00350036","Carter Developmental Center",25,"05 - 12","Title I School (SW)"]
["0035","00350054","Charles H Taylor",472,"PK - 05","Title I School (SW)","Improvement Year 2 - Subgroups"," "]
["0035","00350052","Charles Sumner",472,"PK - 05","Title I School (SW)","Restructuring Year 2+ - Subgroups","Restructuring Year 1 - Subgroups"]
["0035","00350515","Charlestown High",942,"09 - 12","Title I School (SW)","Restructuring Year 2+ - Aggregate","Restructuring Year 2+ - Aggregate"]
["0035","00350430","Clarence R Edwards Middle",534,"06 - 08","Title I School (SW)","Restructuring Year 2+ - Subgroups","Restructuring Year 2+ - Subgroups"]
["0035","00350518","Community Academy",45,"09 - 12","Title I School (SW)"]
["0035","00350581","Community Academy of Science and Health",402,"09 - 12","Title I School (SW)","Restructuring Year 2+ - Aggregate","Corrective Action - Aggregate"]
["0035","00350020","Curley K-8 School",710,"PK - 08","Title I School (SW)","Restructuring Year 2+ - Aggregate","Restructuring Year 2+ - Aggregate"]
["0035","00350062","Curtis Guild",298,"K  - 05","Title I School (SW)","Restructuring Year 2+ - Aggregate"," "]
["0035","00350072","David A Ellis",319,"PK - 05","Title I School (SW)","Restructuring Year 2+ - Subgroups","Restructuring Year 1 - Subgroups"]
["0035","00350074","Dearborn",258,"06 - 08","Title I School (SW)","Restructuring Year 2+ - Aggregate","Restructuring Year 2+ - Aggregate"]
["0035","00350077","Dennis C Haley",272,"PK - 05","Title I School (SW)","Restructuring Year 1 - Subgroups","Corrective Action - Aggregate"]
["0035","00350080","Donald Mckay",670,"K  - 08","Title I School (SW)","Restructuring Year 2+ - Aggregate","Restructuring Year 2+ - Aggregate"]
["0035","00350651","Dorchester Academy",399,"09 - 12","Title I School (SW)","Restructuring Year 2+ - Aggregate","Restructuring Year 2+ - Aggregate"]
["0035","00350008","Dr. Catherine Ellison-Rosa Parks Early Ed School",193,"PK - 03","Title I School (SW)"," "," "]
["0035","00350266","Dr. William Henderson",228,"PK - 05","Title I School (SW)"," "," "]
["0035","00350009","East Boston ECC",183,"PK - 01","Title I School (SW)","Restructuring Year 2+ - Aggregate","Improvement Year 1 - Aggregate"]
["0035","00350530","East Boston High",1382,"09 - 12","Title I School (SW)","Restructuring Year 2+ - Subgroups","Restructuring Year 2+ - Aggregate"]
["0035","00350375","Edison K-8",774,"PK - 08","Title I School (SW)","Improvement Year 1 - Aggregate","Improvement Year 1 - Aggregate"]
["0035","00350088","Edward Everett",270,"PK - 05","Title I School (SW)","Restructuring Year 2+ - Aggregate","Restructuring Year 1 - Subgroups"]
["0035","00350543","Egleston Comm High School",159,"09 - 12","Title I School (SW)"]
["0035","00350006","ELC - West Zone",97,"PK - 01","Title I School (SW)"," ","Improvement Year 1 - Aggregate"]
["0035","00350094","Elihu Greenwood Leadership Academy",335,"K  - 05","Title I School (SW)","Restructuring Year 2+ - Aggregate","Restructuring Year 1 - Aggregate"]
["0035","00350096","Eliot Elementary",315,"PK - 08","Title I School (SW)"," "," "]
["0035","00350100","Ellis Mendell",217,"PK - 05","Title I School (SW)"," ","Corrective Action - Aggregate"]
["0035","00350522","Excel High School",400,"09 - 12","Title I School (SW)","Improvement Year 2 - Aggregate","Corrective Action - Subgroups"]
["0035","00350540","Fenway High School",290,"09 - 12","Title I School (SW)"," "," "]
["0035","00350116","Franklin D Roosevelt",482,"PK - 08","Title I School (SW)","Restructuring Year 2+ - Aggregate","Corrective Action - Aggregate"]
["0035","00350326","Gardner Pilot Academy",340,"PK - 05","Title I School (SW)"," "," "]
["0035","00350122","George H Conley",198,"PK - 05","Title I School (SW)","Improvement Year 2 - Subgroups","Corrective Action - Subgroups"]
["0035","00350426","Harbor School",256,"06 - 08","Title I School (SW)"," "," "]
["0035","00350200","Harvard-Kent",448,"PK - 05","Title I School (SW)","Restructuring Year 2+ - Aggregate","Improvement Year 2 - Subgroups"]
["0035","00350010","Haynes Early Education Center",187,"PK - 01","Title I School (SW)","Improvement Year 2 - Aggregate","Improvement Year 1 - Aggregate"]
["0035","00350135","Henry Grew",248,"K  - 05","Title I School (SW)","Restructuring Year 2+ - Aggregate","Corrective Action - Aggregate"]
["0035","00350377","Higginson/Lewis K-8",353,"PK - 08","Title I School (SW)","Improvement Year 1 - Aggregate","Improvement Year 1 - Aggregate"]
["0035","00350750","Horace Mann School for the Deaf",142,"PK - 12","Title I School (SW)","Improvement Year 2 - Aggregate","Corrective Action - Aggregate"]
["0035","00350141","Hugh Roe O'Donnell",275,"PK - 05","Title I School (SW)","Restructuring Year 2+ - Aggregate","Improvement Year 1 - Aggregate"]
["0035","00350013","Jackson Mann",738,"PK - 08","Title I School (SW)","Restructuring Year 2+ - Aggregate","Restructuring Year 2+ - Aggregate"]
["0035","00350146","James Condon Elem",774,"PK - 05","Title I School (SW)","Restructuring Year 2+ - Aggregate","Restructuring Year 1 - Aggregate"]
["0035","00350154","James J Chittick",288,"PK - 05","Title I School (SW)","Restructuring Year 2+ - Aggregate","Corrective Action - Aggregate"]
["0035","00350156","James Otis",375,"PK - 05","Title I School (SW)"," "," "]
["0035","00350485","James P Timilty Middle",714,"06 - 08","Title I School (SW)","Restructuring Year 2+ - Aggregate","Restructuring Year 2+ - Aggregate"]
["0035","00350153","James W Hennigan",523,"K  - 05","Title I School (SW)","Restructuring Year 2+ - Aggregate","Restructuring Year 1 - Aggregate"]
["0035","00350525","Jeremiah E Burke High",697,"09 - 12","Title I School (SW)"," "," "]
["0035","00350172","John D Philbrick",152,"K  - 05","Title I School (SW)"," ","Improvement Year 2 - Aggregate"]
["0035","00350166","John F Kennedy",365,"K  - 05","Title I School (SW)","Restructuring Year 2+ - Aggregate"," "]
["0035","00350178","John Marshall",677,"PK - 05","Title I School (SW)","Restructuring Year 2+ - Aggregate","Restructuring Year 2+ - Aggregate"]
["0035","00350167","John P Holland",702,"PK - 05","Title I School (SW)","Restructuring Year 2+ - Aggregate","Restructuring Year 2+ - Aggregate"]
["0035","00350179","John W McCormack",572,"06 - 08","Title I School (SW)","Restructuring Year 2+ - Aggregate","Restructuring Year 2+ - Aggregate"]
["0035","00350180","John Winthrop",302,"PK - 05","Title I School (SW)","Restructuring Year 2+ - Aggregate","Restructuring Year 2+ - Aggregate"]
["0035","00350182","Joseph J Hurley",336,"PK - 08","Title I School (SW)","Improvement Year 1 - Aggregate","Restructuring Year 2+ - Aggregate"]
["0035","00350183","Joseph Lee",360,"PK - 05","Title I School (SW)"," "," "]
["0035","00350184","Joseph P Manning",149,"PK - 05","Title I School (SW)"," ","Improvement Year 2 - Aggregate"]
["0035","00350181","Joseph P Tynan",339,"PK - 05","Title I School (SW)"," ","Restructuring Year 1 - Aggregate"]
["0035","00350286","Josiah Quincy",810,"PK - 05","Title I School (SW)","Restructuring Year 2+ - Subgroups"," "]
["0035","00350190","Joyce Kilmer",430,"PK - 08","Non-Title I School (NT)","Improvement Year 2 - Subgroups","Improvement Year 1 - Subgroups"]
["0035","00350376","King K-8",374,"PK - 08","Title I School (SW)"," ","Improvement Year 1 - Aggregate"]
["0035","00350001","Lee Academy",274,"PK - 05","Title I School (SW)","Improvement Year 1 - Subgroups"," "]
["0035","00350383","Lilla G. Frederick Middle School",615,"06 - 08","Title I School (SW)","Restructuring Year 2+ - Aggregate","Restructuring Year 2+ - Aggregate"]
["0035","00350262","Lyndon",519,"PK - 08","Title I School (SW)","Restructuring Year 2+ - Subgroups","Restructuring Year 1 - Subgroups"]
["0035","00350004","Lyon K-8",121,"K  - 08","Title I School (SW)"," "," "]
["0035","00350655","Lyon Upper 9-12",56,"09 - 10","Title I School (SW)"," "," "]
["0035","00350537","Madison Park High",1286,"09 - 12","Title I School (SW)","Restructuring Year 2+ - Aggregate","Restructuring Year 2+ - Aggregate"]
["0035","00350215","Manassah E Bradley",296,"PK - 05","Title I School (SW)"," "," "]
["0035","00350227","Mather",560,"PK - 05","Title I School (SW)","Restructuring Year 2+ - Aggregate","Restructuring Year 2+ - Aggregate"]
["0035","00350226","Mattahunt",626,"PK - 05","Title I School (SW)","Restructuring Year 2+ - Aggregate","Improvement Year 2 - Aggregate"]
["0035","00350229","Maurice J Tobin",460,"PK - 08","Title I School (SW)","Restructuring Year 2+ - Aggregate","Restructuring Year 2+ - Aggregate"]
["0035","00350231","Michael J Perkins",198,"K  - 05","Title I School (SW)"," "," "]
["0035","00350378","Mildred Avenue K-8",671,"02 - 08","Title I School (SW)","Improvement Year 1 - Aggregate","Improvement Year 1 - Aggregate"]
["0035","00350382","Mission Hill School",162,"K  - 08","Title I School (SW)","Improvement Year 2 - Subgroups","Restructuring Year 2+ - Aggregate"]
["0035","00350237","Mozart",146,"PK - 05","Title I School (SW)","Improvement Year 1 - Aggregate","Improvement Year 2 - Aggregate"]
["0035","00350243","Nathan Hale",169,"PK - 05","Title I School (SW)"," ","Improvement Year 1 - Aggregate"]
["0035","00350542","New Mission High School",252,"09 - 12","Title I School (SW)"," "," "]
["0035","00350138","O W Holmes",298,"PK - 05","Title I School (SW)","Improvement Year 2 - Aggregate"," "]
["0035","00350575","O'Bryant Sch Math/Science",1234,"07 - 12","Title I School (SW)"," "," "]
["0035","00350255","Oliver Hazard Perry",235,"PK - 08","Title I School (SW)","Corrective Action - Aggregate","Corrective Action - Aggregate"]
["0035","00350257","Orchard Gardens",698,"PK - 08","Title I School (SW)"," "," "]
["0035","00350264","Patrick J Kennedy",275,"PK - 05","Title I School (SW)","Restructuring Year 2+ - Aggregate","Corrective Action - Subgroups"]
["0035","00350268","Paul A Dever",482,"PK - 05","Title I School (SW)"," "," "]
["0035","00350278","Phineas Bates",303,"PK - 05","Title I School (SW)","Restructuring Year 2+ - Subgroups","Improvement Year 2 - Aggregate"]
["0035","00350565","Quincy Upper School",523,"06 - 12","Title I School (SW)","Restructuring Year 2+ - Subgroups","Restructuring Year 1 - Subgroups"]
["0035","00350691","Rafael Hernandez",407,"PK - 08","Title I School (SW)","Restructuring Year 2+ - Aggregate","Improvement Year 2 - Aggregate"]
["0035","00350240","Richard J Murphy",903,"PK - 08","Title I School (SW)","Restructuring Year 2+ - Subgroups","Restructuring Year 2+ - Subgroups"]
["0035","00350298","Roger Clap",148,"PK - 05","Title I School (SW)","Improvement Year 2 - Aggregate","Corrective Action - Subgroups"]
["0035","00350302","Samuel Adams",282,"PK - 05","Title I School (SW)","Corrective Action - Aggregate"," "]
["0035","00350304","Samuel W Mason",213,"PK - 05","Title I School (SW)","Improvement Year 1 - Subgroups"," "]
["0035","00350308","Sarah Greenwood",377,"PK - 08","Title I School (SW)","Restructuring Year 2+ - Subgroups","Restructuring Year 1 - Aggregate"]
["0035","00350690","Snowden Int'l High",404,"09 - 12","Title I School (SW)","Restructuring Year 1 - Aggregate","Improvement Year 2 - Subgroups"]
["0035","00350657","TechBoston Academy",null,null,"Non-Title I School (NT)"]
["0035","00350535","The English High",777,"09 - 12","Title I School (SW)","Restructuring Year 2+ - Subgroups","Restructuring Year 2+ - Aggregate"]
["0035","00350328","Thomas J Kenny",279,"PK - 05","Title I School (SW)","Restructuring Year 2+ - Aggregate","Corrective Action - Aggregate"]
["0035","00350656","Umana/Alighieri K-8",null,null,"Non-Title I School (NT)"]
["0035","00350579","Urban Science Academy",301,"09 - 12","Title I School (SW)"," "," "]
["0035","00350346","Warren-Prescott",474,"PK - 08","Title I School (SW)"," ","Restructuring Year 1 - Subgroups"]
["0035","00350445","Washington Irving Middle",576,"06 - 08","Title I School (SW)","Restructuring Year 2+ - Subgroups","Restructuring Year 2+ - Aggregate"]
["0035","00350366","William E Russell",381,"PK - 05","Title I School (SW)","Improvement Year 2 - Aggregate","Corrective Action - Aggregate"]
["0035","00350360","William Ellery Channing",308,"PK - 05","Title I School (SW)","Restructuring Year 1 - Subgroups","Restructuring Year 1 - Subgroups"]
["0035","00350258","William H Ohrenberger",643,"PK - 07","Title I School (SW)","Restructuring Year 2+ - Subgroups","Restructuring Year 2+ - Subgroups"]
["0035","00350363","William McKinley",407,"K  - 12","Title I School (SW)","Restructuring Year 2+ - Aggregate","Restructuring Year 2+ - Aggregate"]
["0035","00350370","William Monroe Trotter",331,"PK - 05","Title I School (SW)"," "," "]
["0035","00350374","Winship Elementary",251,"PK - 05","Title I School (SW)","Improvement Year 1 - Aggregate"," "]
["0035","00350470","Wm B Rogers Middle",623,"06 - 08","Title I School (SW)","Restructuring Year 2+ - Aggregate","Restructuring Year 2+ - Subgroups"]
["0035","00350380","Young Achievers",491,"PK - 08","Title I School (SW)","Restructuring Year 2+ - Aggregate","Restructuring Year 2+ - Subgroups"]
["0036","00360505","Bourne High School",615,"09 - 12","Non-Title I School (NT)"," "," "]
["0036","00360325","Bourne Middle School",780,"05 - 08","Non-Title I School (NT)","Restructuring Year 1 - Subgroups","Restructuring Year 2+ - Subgroups"]
["0036","00360005","Bournedale Elementary School",551,"PK - 04","Title I School (TA)"," "," "]
["0036","00360010","Peebles Elementary School",356,"01 - 04","Title I School (TA)"," ","Corrective Action - Subgroups"]
["0037","00370005","Blanchard Memorial",484,"PK - 06","Title I School (TA)"," "," "]
["0038","00380005","Harry Lee Cole",366,"PK - 02","Non-Title I School (NT)"," "," "]
["0038","00380013","Spofford Pond",501,"03 - 06","Title I School (TA)","Improvement Year 1 - Subgroups"," "]
["0039","00390005","Boylston Elementary",358,"PK - 06","Title I School (TA)"," "," "]
["0040","00400033","Archie T Morrison",427,"K  - 05","Title I School (TA)"," ","Improvement Year 1 - Subgroups"]
["0040","00400505","Braintree High",1594,"09 - 12","Non-Title I School (NT)"," "," "]
["0040","00400050","Donald Ross",322,"K  - 05","Title I School (TA)"," "," "]
["0040","00400305","East Middle School",694,"06 - 08","Non-Title I School (NT)"," "," "]
["0040","00400015","Highlands",433,"K  - 05","Non-Title I School (NT)"," "," "]
["0040","00400005","Hollis",541,"K  - 05","Non-Title I School (NT)"," "," "]
["0040","00400025","Liberty",474,"K  - 05","Non-Title I School (NT)"," "," "]
["0040","00400020","Mary E Flaherty School",398,"K  - 05","Non-Title I School (NT)"," "," "]
["0040","00400310","South Middle School",584,"06 - 08","Non-Title I School (NT)"," "," "]
["0041","00410010","Eddy Elementary",248,"03 - 05","Title I School (TA)"," "," "]
["0041","00410005","Stony Brook Elementary",243,"PK - 02","Title I School (TA)"," "," "]
["0043","00430005","Brimfield Elementary",349,"PK - 06","Title I School (TA)"," "," "]
["0044","00440421","Ashfield Middle School",501,"06 - 08","Title I School (TAP)","Improvement Year 1 - Aggregate","Improvement Year 1 - Subgroups"]
["0044","00440080","B B Russell Alternative School",77,"07 - 12","Non-Title I School (NT)"]
["0044","00440515","Brockton Champion High School",191,"09 - 12","Non-Title I School (NT)","Corrective Action - Aggregate","Restructuring Year 1 - Aggregate"]
["0044","00440505","Brockton High",4145,"09 - 12","Non-Title I School (NT)","Restructuring Year 2+ - Subgroups","Restructuring Year 2+ - Subgroups"]
["0044","00440010","Brookfield",536,"K  - 05","Title I School (SW)","Restructuring Year 2+ - Aggregate","Restructuring Year 2+ - Subgroups"]
["0044","00440110","Downey",579,"K  - 05","Title I School (SW)","Restructuring Year 2+ - Aggregate","Restructuring Year 2+ - Subgroups"]
["0044","00440001","Dr W Arnone Comm Sch",807,"K  - 05","Title I School (SW)","Restructuring Year 2+ - Aggregate","Restructuring Year 2+ - Aggregate"]
["0044","00440405","East Middle School",530,"06 - 08","Title I School (TAP)","Restructuring Year 2+ - Aggregate","Restructuring Year 2+ - Aggregate"]
["0044","00440023","Edgar B Davis",1023,"K  - 08","Title I School (SW)","Restructuring Year 2+ - Subgroups","Restructuring Year 1 - Subgroups"]
["0044","00440050","Gilmore School Early Childhood Center",225,"PK","Non-Title I School (NT)"]
["0044","00440400","Goddard Alternative School",45,"03 - 12","Non-Title I School (NT)"]
["0044","00440045","Hancock",713,"K  - 05","Title I School (SW)","Restructuring Year 2+ - Aggregate","Improvement Year 2 - Aggregate"]
["0044","00440055","Huntington",543,"K  - 05","Title I School (SW)","Restructuring Year 2+ - Aggregate","Restructuring Year 2+ - Subgroups"]
["0044","00440017","John F Kennedy",608,"K  - 05","Title I School (SW)","Restructuring Year 2+ - Aggregate","Improvement Year 2 - Aggregate"]
["0044","00440422","Joseph F. Plouffe Academy",562,"06 - 08","Title I School (TAP)","Improvement Year 1 - Subgroups","Improvement Year 1 - Subgroups"]
["0044","00440065","Louis F Angelo Elem",792,"K  - 05","Title I School (SW)","Restructuring Year 2+ - Aggregate","Corrective Action - Aggregate"]
["0044","00440003","Manthala George Jr School",756,"K  - 05","Title I School (SW)","Restructuring Year 2+ - Aggregate","Restructuring Year 2+ - Aggregate"]
["0044","00440002","Mary E. Baker School",726,"K  - 05","Title I School (SW)","Restructuring Year 2+ - Aggregate","Restructuring Year 2+ - Aggregate"]
["0044","00440410","North Middle School",421,"06 - 08","Title I School (TAP)","Restructuring Year 2+ - Subgroups","Restructuring Year 2+ - Aggregate"]
["0044","00440078","Oscar F Raymond",971,"K  - 08","Title I School (SW)","Restructuring Year 2+ - Aggregate","Restructuring Year 2+ - Aggregate"]
["0044","00440415","South Middle School",499,"06 - 08","Title I School (TAP)","Restructuring Year 2+ - Subgroups","Restructuring Year 2+ - Subgroups"]
["0044","00440420","West Middle School",578,"06 - 08","Title I School (TAP)","Restructuring Year 1 - Subgroups","Restructuring Year 2+ - Aggregate"]
["0045","00450005","Brookfield Elementary",319,"PK - 06","Title I School (TA)"," "," "]
["0046","00460505","Brookline High",1756,"09 - 12","Non-Title I School (NT)"," "," "]
["0046","00460005","Edith C Baker",712,"PK - 08","Non-Title I School (NT)","Improvement Year 1 - Subgroups"," "]
["0046","00460015","Edward Devotion",775,"PK - 08","Title I School (TA)","Corrective Action - Subgroups","Improvement Year 1 - Subgroups"]
["0046","00460025","Heath",470,"PK - 08","Non-Title I School (NT)","Improvement Year 2 - Subgroups"," "]
["0046","00460045","John D Runkle",501,"PK - 08","Non-Title I School (NT)","Corrective Action - Subgroups","Corrective Action - Subgroups"]
["0046","00460030","Lawrence",612,"PK - 08","Non-Title I School (NT)"," ","Restructuring Year 1 - Subgroups"]
["0046","00460020","Michael Driscoll",530,"PK - 08","Non-Title I School (NT)"," "," "]
["0046","00460040","Pierce",665,"PK - 08","Non-Title I School (NT)","Corrective Action - Aggregate","Improvement Year 1 - Subgroups"]
["0046","00460060","The Lynch Center",66,"PK","Non-Title I School (NT)"]
["0046","00460035","William H Lincoln",540,"PK - 08","Title I School (TA)","Corrective Action - Subgroups","Improvement Year 1 - Subgroups"]
["0048","00480505","Burlington High",1111,"09 - 12","Non-Title I School (NT)"," "," "]
["0048","00480007","Fox Hill",462,"K  - 05","Non-Title I School (NT)"," "," "]
["0048","00480035","Francis Wyman Elem",589,"K  - 05","Title I School (TA)"," "," "]
["0048","00480303","Marshall Simonds Middle",849,"06 - 08","Non-Title I School (NT)","Restructuring Year 1 - Subgroups","Corrective Action - Subgroups"]
["0048","00480015","Memorial",276,"K  - 05","Title I School (TA)"," ","Improvement Year 1 - Aggregate"]
["0048","00480020","Pine Glen Elementary",365,"K  - 05","Title I School (TA)"," "," "]
["0049","00490006","Amigos School",318,"PK - 08","Non-Title I School (NT)"," ","Improvement Year 2 - Subgroups"]
["0049","00490506","Cambridge Rindge and Latin",1580,"09 - 12","Non-Title I School (NT)","Restructuring Year 2+ - Subgroups"," "]
["0049","00490007","Cambridgeport",281,"PK - 08","Non-Title I School (NT)","Improvement Year 1 - Aggregate"," "]
["0049","00490090","Fletcher/Maynard Academy",239,"PK - 08","Title I School (SW)"," ","Corrective Action - Aggregate"]
["0049","00490080","Graham and Parks",415,"PK - 08","Non-Title I School (NT)","Restructuring Year 2+ - Subgroups","Improvement Year 2 - Subgroups"]
["0049","00490020","Haggerty",262,"PK - 06","Non-Title I School (NT)","Improvement Year 2 - Subgroups","Corrective Action - Subgroups"]
["0049","00490065","John M Tobin",407,"PK - 08","Title I School (SW)","Restructuring Year 2+ - Aggregate","Restructuring Year 2+ - Aggregate"]
["0049","00490040","Kennedy-Longfellow",402,"PK - 08","Title I School (SW)","Corrective Action - Subgroups","Restructuring Year 2+ - Subgroups"]
["0049","00490035","King Open",493,"PK - 08","Title I School (SW)","Corrective Action - Subgroups","Restructuring Year 2+ - Aggregate"]
["0049","00490005","Maria L. Baldwin",374,"PK - 08","Non-Title I School (NT)","Corrective Action - Subgroups","Restructuring Year 1 - Subgroups"]
["0049","00490030","Martin Luther King Jr.",285,"PK - 08","Title I School (SW)","Improvement Year 1 - Subgroups","Restructuring Year 2+ - Aggregate"]
["0049","00490045","Morse",427,"PK - 08","Title I School (SW)"," ","Restructuring Year 2+ - Aggregate"]
["0049","00490050","Peabody",536,"PK - 08","Title I School (SW)","Corrective Action - Subgroups","Restructuring Year 2+ - Subgroups"]
["0050","00500505","Canton High",856,"09 - 12","Non-Title I School (NT)"," "," "]
["0050","00500020","Dean S Luce",645,"K  - 05","Title I School (TA)","Improvement Year 1 - Aggregate"," "]
["0050","00500017","John F Kennedy",427,"01 - 05","Title I School (TA)"," "," "]
["0050","00500012","Lt Peter M Hansen",461,"K  - 05","Title I School (TA)"," "," "]
["0050","00500010","Rodman Early Childhood Center",78,"PK","Non-Title I School (NT)"]
["0050","00500305","Wm H Galvin Middle",751,"06 - 08","Non-Title I School (NT)","Corrective Action - Subgroups","Restructuring Year 2+ - Subgroups"]
["0051","00510025","Carlisle School",672,"PK - 08","Title I School (TA)"," "," "]
["0052","00520015","Carver Elementary School",853,"PK - 05","Title I School (TA)","Restructuring Year 2+ - Aggregate","Improvement Year 2 - Subgroups"]
["0052","00520405","Carver Middle/High School",932,"06 - 12","Non-Title I School (NT)","Corrective Action - Subgroups","Restructuring Year 2+ - Subgroups"]
["0055","00550005","Chatham Elementary",279,"PK - 04","Title I School (TA)"," "," "]
["0055","00550505","Chatham High",207,"09 - 12","Non-Title I School (NT)"," "," "]
["0055","00550305","Chatham Middle School",205,"05 - 08","Title I School (TA)"," "," "]
["0056","00560030","Byam School",525,"K  - 04","Non-Title I School (NT)"," "," "]
["0056","00560005","Center Elementary School",480,"K  - 04","Title I School (TA)"," "," "]
["0056","00560025","Charles D Harrington",475,"K  - 04","Title I School (TA)"," "," "]
["0056","00560505","Chelmsford High",1573,"09 - 12","Non-Title I School (NT)"," "," "]
["0056","00560305","Col Moses Parker Schl",769,"05 - 08","Non-Title I School (NT)"," ","Restructuring Year 2+ - Subgroups"]
["0056","00560001","Community Education Center",100,"PK","Non-Title I School (NT)"]
["0056","00560310","McCarthy Middle School",935,"05 - 08","Non-Title I School (NT)","Improvement Year 2 - Subgroups","Restructuring Year 2+ - Subgroups"]
["0056","00560015","South Row",450,"K  - 04","Non-Title I School (NT)"," "," "]
["0057","00570505","Chelsea High",1353,"09 - 12","Title I School (SW)","Restructuring Year 2+ - Subgroups","Restructuring Year 2+ - Subgroups"]
["0057","00570050","Clark Avenue School",562,"05 - 08","Title I School (SW)","Restructuring Year 2+ - Subgroups","Restructuring Year 2+ - Subgroups"]
["0057","00570030","Edgar A Hooks Elem",493,"01 - 04","Title I School (SW)","Restructuring Year 2+ - Subgroups"," "]
["0057","00570045","Eugene Wright School",471,"05 - 08","Title I School (SW)","Restructuring Year 2+ - Aggregate","Restructuring Year 2+ - Aggregate"]
["0057","00570040","Frank M Sokolowski Elem",477,"01 - 04","Title I School (SW)","Restructuring Year 2+ - Aggregate","Improvement Year 2 - Subgroups"]
["0057","00570035","George F. Kelly Elem",488,"01 - 04","Title I School (SW)","Restructuring Year 2+ - Subgroups","Improvement Year 2 - Subgroups"]
["0057","00570055","Joseph A. Browne School",533,"05 - 08","Title I School (SW)","Restructuring Year 2+ - Subgroups","Restructuring Year 2+ - Aggregate"]
["0057","00570003","Shurtleff Early Childhood",737,"PK - K","Title I School (SW)"]
["0057","00570025","William A Berkowitz Elem",456,"01 - 04","Title I School (SW)","Restructuring Year 1 - Aggregate","Corrective Action - Subgroups"]
["0061","00610003","Barry",432,"K  - 05","Title I School (SW)","Corrective Action - Subgroups"," "]
["0061","00610010","Belcher",260,"K  - 02","Title I School (SW)","Improvement Year 2 - Subgroups"," "]
["0061","00610305","Bellamy Middle",986,"06 - 08","Title I School (SW)","Restructuring Year 2+ - Aggregate","Restructuring Year 2+ - Aggregate"]
["0061","00610015","Bowe",431,"PK - 05","Title I School (SW)","Restructuring Year 2+ - Aggregate","Restructuring Year 2+ - Aggregate"]
["0061","00610020","Bowie",361,"K  - 05","Non-Title I School (NT)","Improvement Year 2 - Subgroups"," "]
["0061","00610021","Chicopee Academy",109,"06 - 12","Non-Title I School (NT)"," "," "]
["0061","00610510","Chicopee Comprehensive HS",1454,"09 - 12","Non-Title I School (NT)","Restructuring Year 1 - Subgroups","Restructuring Year 2+ - Subgroups"]
["0061","00610505","Chicopee High",1209,"09 - 12","Non-Title I School (NT)","Restructuring Year 1 - Subgroups","Restructuring Year 1 - Subgroups"]
["0061","00610310","Fairview Middle",673,"06 - 08","Title I School (SW)"," ","Restructuring Year 2+ - Subgroups"]
["0061","00610090","Gen John J Stefanik",364,"K  - 05","Title I School (SW)","Corrective Action - Subgroups"," "]
["0061","00610040","Lambert-Lavoie",316,"K  - 05","Title I School (SW)"," ","Corrective Action - Aggregate"]
["0061","00610022","Litwin",378,"K  - 05","Title I School (SW)","Restructuring Year 2+ - Subgroups"," "]
["0061","00610050","Selser",391,"K  - 05","Title I School (SW)","Restructuring Year 2+ - Subgroups"," "]
["0061","00610065","Streiber Memorial School",263,"K  - 05","Non-Title I School (NT)","Improvement Year 2 - Subgroups","Improvement Year 1 - Aggregate"]
["0061","00610001","Szetela ECC",248,"PK","Non-Title I School (NT)"]
["0063","00630010","Clarksburg Elementary",187,"K  - 08","Title I School (TA)"," "," "]
["0064","00640050","Clinton Elementary",707,"PK - 03","Title I School (TA)","Restructuring Year 2+ - Subgroups","Corrective Action - Subgroups"]
["0064","00640305","Clinton Middle School",721,"04 - 08","Non-Title I School (NT)","Corrective Action - Subgroups","Restructuring Year 2+ - Aggregate"]
["0064","00640505","Clinton Senior High",527,"09 - 12","Non-Title I School (NT)"," "," "]
["0065","00650505","Cohasset Middle/High School",718,"06 - 12","Non-Title I School (NT)"," ","Improvement Year 1 - Subgroups"]
["0065","00650005","Deer Hill",381,"03 - 05","Title I School (TA)","Improvement Year 1 - Subgroups","Improvement Year 1 - Subgroups"]
["0065","00650010","Joseph Osgood",436,"PK - 02","Non-Title I School (NT)"," "," "]
["0067","00670005","Alcott",424,"PK - 05","Title I School (TA)","Improvement Year 1 - Subgroups"," "]
["0067","00670305","Concord Middle",614,"06 - 08","Non-Title I School (NT)"," "," "]
["0067","00670020","Thoreau",453,"PK - 05","Non-Title I School (NT)"," "," "]
["0067","00670030","Willard",456,"PK - 05","Non-Title I School (NT)"," "," "]
["0068","00680005","Conway Grammar",177,"PK - 06","Non-Title I School (NT)"," "," "]
["0071","00710505","Danvers High",996,"09 - 12","Non-Title I School (NT)"," "," "]
["0071","00710015","Great Oak",369,"K  - 05","Title I School (TA)","Improvement Year 1 - Aggregate"," "]
["0071","00710010","Highlands",398,"K  - 05","Title I School (TA)"," "," "]
["0071","00710305","Holten Richmond Middle School",947,"06 - 08","Non-Title I School (NT)","Improvement Year 2 - Subgroups","Restructuring Year 2+ - Subgroups"]
["0071","00710032","Ivan G Smith",271,"K  - 05","Title I School (TA)"," "," "]
["0071","00710030","Riverside",336,"PK - 05","Title I School (TA)"," ","Restructuring Year 2+ - Aggregate"]
["0071","00710045","Willis E Thorpe",320,"K  - 05","Non-Title I School (NT)","Improvement Year 1 - Aggregate"," "]
["0072","00720005","Andrew B. Cushman School",124,"PK - K","Non-Title I School (NT)"]
["0072","00720505","Dartmouth High",1164,"09 - 12","Non-Title I School (NT)"," "," "]
["0072","00720050","Dartmouth Middle",1001,"06 - 08","Title I School (TA)","Improvement Year 2 - Subgroups","Restructuring Year 2+ - Subgroups"]
["0072","00720030","George H Potter",410,"01 - 05","Title I School (TA)","Improvement Year 2 - Subgroups"," "]
["0072","00720040","James M. Quinn School",826,"K  - 05","Non-Title I School (NT)","Corrective Action - Subgroups","Improvement Year 1 - Aggregate"]
["0072","00720015","Joseph Demello",439,"01 - 05","Title I School (TA)"," ","Improvement Year 1 - Subgroups"]
["0073","00730010","Avery",217,"01 - 05","Title I School (TA)","Improvement Year 1 - Aggregate","Improvement Year 1 - Subgroups"]
["0073","00730505","Dedham High",803,"09 - 12","Non-Title I School (NT)","Improvement Year 2 - Subgroups"," "]
["0073","00730305","Dedham Middle School",643,"06 - 08","Non-Title I School (NT)","Restructuring Year 1 - Subgroups","Improvement Year 2 - Aggregate"]
["0073","00730005","Early Childhood Center",320,"PK - K","Title I School (TA)"]
["0073","00730025","Greenlodge",318,"01 - 05","Non-Title I School (NT)"," "," "]
["0073","00730030","Oakdale",357,"01 - 05","Non-Title I School (NT)"," "," "]
["0073","00730045","Riverdale",221,"01 - 05","Non-Title I School (NT)","Improvement Year 1 - Aggregate"," "]
["0074","00740015","Deerfield Elem",478,"PK - 06","Title I School (TA)"," ","Improvement Year 2 - Subgroups"]
["0077","00770003","Douglas Early Childhood",92,"PK","Non-Title I School (NT)"]
["0077","00770010","Douglas Elementary",379,"K  - 02","Title I School (TA)"," ","Improvement Year 2 - Aggregate"]
["0077","00770505","Douglas High School",615,"08 - 12","Non-Title I School (NT)"," ","Improvement Year 1 - Aggregate"]
["0077","00770100","Douglas Intermediate School",645,"03 - 07","Non-Title I School (NT)","Restructuring Year 1 - Subgroups","Restructuring Year 1 - Subgroups"]
["0078","00780005","Chickering",548,"K  - 05","Title I School (TA)"," "," "]
["0079","00790035","Brookside Elementary",602,"K  - 04","Title I School (TA)","Corrective Action - Subgroups","Improvement Year 2 - Aggregate"]
["0079","00790505","Dracut Senior High",1114,"09 - 12","Non-Title I School (NT)"," "," "]
["0079","00790040","George H. Englesby Intermediate",623,"05 - 06","Non-Title I School (NT)","Improvement Year 1 - Aggregate","Improvement Year 1 - Subgroups"]
["0079","00790030","Greenmont Avenue",236,"K  - 04","Non-Title I School (NT)","Improvement Year 2 - Aggregate"," "]
["0079","00790020","Joseph A Campbell Elem",594,"PK - 04","Non-Title I School (NT)","Improvement Year 2 - Aggregate","Improvement Year 2 - Subgroups"]
["0079","00790410","Lakeview Junior High",700,"07 - 08","Non-Title I School (NT)","Corrective Action - Subgroups","Restructuring Year 2+ - Aggregate"]
["0079","00790025","Parker Avenue",149,"K  - 03","Title I School (TA)"," "," "]
["0082","00820004","Alden School",780,"03 - 05","Non-Title I School (NT)","Restructuring Year 2+ - Subgroups"," "]
["0082","00820006","Chandler Elementary",667,"PK - 02","Title I School (TA)"," "," "]
["0082","00820505","Duxbury High",963,"09 - 12","Non-Title I School (NT)"," "," "]
["0082","00820305","Duxbury Middle",837,"06 - 08","Non-Title I School (NT)"," ","Restructuring Year 2+ - Subgroups"]
["0083","00830005","Central",791,"PK - 03","Title I School (TA)","Improvement Year 2 - Aggregate"," "]
["0083","00830505","East Bridgewater High",564,"09 - 12","Non-Title I School (NT)"," "," "]
["0083","00830010","Gordon W Mitchell",959,"04 - 08","Non-Title I School (NT)","Corrective Action - Subgroups","Restructuring Year 1 - Subgroups"]
["0085","00850005","Eastham Elementary",209,"K  - 05","Title I School (TA)"," "," "]
["0086","00860005","Center School",199,"K  - 04","Title I School (TA)"," "," "]
["0086","00860505","Easthampton High",447,"09 - 12","Non-Title I School (NT)","Improvement Year 2 - Subgroups","Improvement Year 2 - Subgroups"]
["0086","00860010","Maple",250,"PK - 04","Title I School (TA)"," "," "]
["0086","00860020","Neil A Pepin",201,"K  - 04","Title I School (TA)"," "," "]
["0086","00860305","White Brook Middle School",470,"05 - 08","Title I School (TA)","Restructuring Year 1 - Subgroups","Restructuring Year 2+ - Aggregate"]
["0087","00870305","Birchland Park",684,"06 - 08","Title I School (TA)","Corrective Action - Subgroups","Restructuring Year 2+ - Subgroups"]
["0087","00870505","East Longmeadow High",905,"09 - 12","Non-Title I School (NT)","Improvement Year 1 - Subgroups","Improvement Year 1 - Subgroups"]
["0087","00870010","Mapleshade",323,"03 - 05","Title I School (TA)","Corrective Action - Subgroups","Corrective Action - Subgroups"]
["0087","00870013","Meadow Brook",612,"PK - 02","Non-Title I School (NT)"," ","Improvement Year 2 - Subgroups"]
["0087","00870015","Mountain View",322,"03 - 05","Non-Title I School (NT)","Improvement Year 2 - Subgroups","Improvement Year 2 - Subgroups"]
["0088","00880003","Center School",281,"K  - 02","Non-Title I School (NT)","Improvement Year 1 - Aggregate"," "]
["0088","00880405","Easton Middle School",906,"06 - 08","Title I School (TA)","Improvement Year 2 - Subgroups","Improvement Year 2 - Subgroups"]
["0088","00880030","F L Olmsted",495,"03 - 05","Non-Title I School (NT)","Corrective Action - Subgroups","Improvement Year 2 - Subgroups"]
["0088","00880025","H H Richardson School",443,"03 - 05","Non-Title I School (NT)","Restructuring Year 1 - Subgroups","Corrective Action - Subgroups"]
["0088","00880020","Moreau Hall",223,"PK - 02","Non-Title I School (NT)"," "," "]
["0088","00880505","Oliver Ames High",1180,"09 - 12","Non-Title I School (NT)"," "," "]
["0088","00880015","Parkview Elementary",365,"PK - 02","Non-Title I School (NT)"," "," "]
["0089","00890005","Edgartown Elementary",326,"PK - 08","Title I School (TA)"," "," "]
["0091","00910030","Erving Elementary",164,"PK - 06","Title I School (TA)","Improvement Year 1 - Subgroups"," "]
["0093","00930505","Everett High",1710,"09 - 12","Non-Title I School (NT)","Restructuring Year 2+ - Subgroups","Restructuring Year 2+ - Subgroups"]
["0093","00930028","George Keverian School",811,"K  - 08","Title I School (SW)","Restructuring Year 2+ - Subgroups","Restructuring Year 2+ - Aggregate"]
["0093","00930038","Lafayette School",887,"K  - 08","Non-Title I School (NT)","Restructuring Year 2+ - Subgroups","Restructuring Year 2+ - Subgroups"]
["0093","00930018","Madeline English School",828,"PK - 08","Title I School (SW)","Restructuring Year 1 - Aggregate","Restructuring Year 2+ - Aggregate"]
["0093","00930058","Parlin School",778,"K  - 08","Title I School (SW)","Restructuring Year 1 - Aggregate","Improvement Year 2 - Aggregate"]
["0093","00930010","Sumner G. Whittier School",579,"PK - 08","Title I School (SW)","Restructuring Year 2+ - Aggregate","Restructuring Year 2+ - Aggregate"]
["0093","00930015","Webster School",549,"PK - 05","Non-Title I School (NT)"," "," "]
["0094","00940010","East Fairhaven",429,"PK - 05","Title I School (TA)"," "," "]
["0094","00940505","Fairhaven High",615,"09 - 12","Non-Title I School (NT)"," "," "]
["0094","00940305","Hastings Middle",480,"06 - 08","Title I School (TA)","Improvement Year 2 - Subgroups","Restructuring Year 2+ - Aggregate"]
["0094","00940030","Leroy Wood",234,"K  - 05","Non-Title I School (NT)"," "," "]
["0094","00940020","Rogers",226,"K  - 05","Non-Title I School (NT)"," "," "]
["0095","00950055","ACESE",17,"01 - 05","Title I School (TA)"]
["0095","00950505","B M C Durfee High",2258,"09 - 12","Non-Title I School (NT)","Restructuring Year 2+ - Subgroups","Restructuring Year 2+ - Subgroups"]
["0095","00950009","Carlton M. Viveiros Elementary School",760,"K  - 05","Title I School (SW)","Restructuring Year 2+ - Aggregate","Improvement Year 2 - Aggregate"]
["0095","00950305","Edmond P Talbot Middle",611,"06 - 08","Title I School (SW)","Restructuring Year 2+ - Subgroups","Restructuring Year 2+ - Subgroups"]
["0095","00950310","Henry Lord Middle",469,"06 - 08","Title I School (SW)","Restructuring Year 2+ - Aggregate","Restructuring Year 2+ - Subgroups"]
["0095","00950140","James Tansey",320,"K  - 05","Non-Title I School (NT)","Corrective Action - Subgroups","Improvement Year 1 - Aggregate"]
["0095","00950045","John J Doran",447,"PK - 05","Title I School (SW)","Restructuring Year 2+ - Aggregate","Restructuring Year 2+ - Aggregate"]
["0095","00950013","Letourneau Elementary School",589,"K  - 05","Title I School (SW)","Restructuring Year 2+ - Aggregate","Restructuring Year 2+ - Aggregate"]
["0095","00950011","Mary Fonseca Elementary School",704,"K  - 05","Title I School (SW)","Improvement Year 2 - Aggregate","Improvement Year 2 - Aggregate"]
["0095","00950320","Matthew J Kuss Middle",648,"06 - 08","Title I School (SW)","Restructuring Year 1 - Subgroups","Restructuring Year 2+ - Subgroups"]
["0095","00950315","Morton Middle",559,"06 - 08","Non-Title I School (NT)","Restructuring Year 2+ - Subgroups","Restructuring Year 2+ - Subgroups"]
["0095","00950005","North End Elementary",682,"PK - 05","Non-Title I School (NT)","Restructuring Year 1 - Subgroups","Improvement Year 2 - Subgroups"]
["0095","00950325","Resiliency Preparatory School",163,"09 - 12","Title I School (TA)"," "," "]
["0095","00950145","Samuel Watson",320,"K  - 05","Title I School (SW)","Corrective Action - Aggregate","Restructuring Year 2+ - Aggregate"]
["0095","00950130","Spencer Borden",560,"PK - 05","Non-Title I School (NT)"," "," "]
["0095","00950326","Stone Theraputic Middle Day School",21,"06 - 08","Non-Title I School (NT)"]
["0095","00950065","William S Greene",745,"PK - 05","Title I School (SW)","Restructuring Year 1 - Aggregate","Restructuring Year 2+ - Aggregate"]
["0096","00960005","East Falmouth Elem",347,"PK - 04","Title I School (TA)","Corrective Action - Subgroups"," "]
["0096","00960505","Falmouth High",909,"09 - 12","Non-Title I School (NT)"," "," "]
["0096","00960405","Lawrence",556,"07 - 08","Non-Title I School (NT)","Restructuring Year 2+ - Subgroups","Restructuring Year 2+ - Subgroups"]
["0096","00960305","Morse Pond School",565,"05 - 06","Non-Title I School (NT)","Improvement Year 2 - Subgroups","Restructuring Year 2+ - Subgroups"]
["0096","00960020","Mullen-Hall",512,"K  - 04","Title I School (TA)","Improvement Year 2 - Aggregate"," "]
["0096","00960030","North Falmouth Elem",400,"PK - 04","Non-Title I School (NT)"," "," "]
["0096","00960015","Teaticket",421,"PK - 04","Title I School (TA)"," "," "]
["0097","00970315","Arthur M Longsjo Middle School",553,"05 - 08","Title I School (SW)","Restructuring Year 2+ - Aggregate","Restructuring Year 2+ - Aggregate"]
["0097","00970016","Crocker Elementary",513,"PK - 04","Title I School (SW)","Restructuring Year 1 - Subgroups","Corrective Action - Subgroups"]
["0097","00970510","Fitchburg Alt. ED Program",166,"09 - 12","Non-Title I School (NT)"]
["0097","00970325","Fitchburg Arts Academy",232,"05 - 08","Title I School (SW)","Improvement Year 2 - Subgroups","Corrective Action - Aggregate"]
["0097","00970505","Fitchburg High",1146,"09 - 12","Title I School (TA)","Restructuring Year 2+ - Subgroups","Restructuring Year 2+ - Subgroups"]
["0097","00970030","McKay Campus-FSC",408,"PK - 04","Title I School (SW)","Corrective Action - Subgroups","Corrective Action - Subgroups"]
["0097","00970048","Memorial Intermediate",689,"05 - 08","Title I School (SW)","Corrective Action - Aggregate","Restructuring Year 1 - Subgroups"]
["0097","00970043","Reingold Elementary",583,"PK - 04","Title I School (SW)","Restructuring Year 1 - Aggregate","Restructuring Year 2+ - Subgroups"]
["0097","00970060","South Street Elementary",591,"PK - 04","Title I School (SW)","Restructuring Year 2+ - Aggregate","Restructuring Year 1 - Subgroups"]
["0098","00980005","Abbott Memorial",110,"PK - 08","Title I School (TA)"," "," "]
["0099","00990050","Charles Taylor Elem",303,"K  - 04","Non-Title I School (NT)"," "," "]
["0099","00990505","Foxborough High",840,"09 - 12","Non-Title I School (NT)"," "," "]
["0099","00990405","John J Ahern",916,"05 - 08","Non-Title I School (NT)","Corrective Action - Subgroups","Restructuring Year 2+ - Subgroups"]
["0099","00990015","Mabelle M Burrell",371,"PK - 04","Non-Title I School (NT)"," "," "]
["0099","00990020","Vincent M Igo Elem",406,"K  - 04","Title I School (TA)","Corrective Action - Subgroups"," "]
["0100","01000035","Barbieri Elem",520,"K  - 05","Title I School (SW)","Restructuring Year 2+ - Aggregate","Restructuring Year 1 - Aggregate"]
["0100","01000003","Blocks Pre-School @ King",280,"PK","Non-Title I School (NT)"]
["0100","01000006","Brophy",448,"K  - 05","Title I School (SW)","Restructuring Year 2+ - Aggregate","Restructuring Year 2+ - Aggregate"]
["0100","01000302","Cameron Middle School",495,"06 - 08","Title I School (SW)","Corrective Action - Subgroups","Restructuring Year 2+ - Subgroups"]
["0100","01000007","Charlotte A Dunning",479,"K  - 05","Non-Title I School (NT)","Corrective Action - Subgroups","Improvement Year 2 - Aggregate"]
["0100","01000515","Framingham H S",2152,"09 - 12","Non-Title I School (NT)","Improvement Year 2 - Subgroups","Corrective Action - Subgroups"]
["0100","01000305","Fuller Middle",511,"06 - 08","Title I School (SW)","Restructuring Year 2+ - Aggregate","Restructuring Year 2+ - Aggregate"]
["0100","01000015","Hemenway",574,"K  - 05","Non-Title I School (NT)"," "," "]
["0100","01000045","Mary E Stapleton Elem",388,"K  - 05","Non-Title I School (NT)","Corrective Action - Subgroups","Improvement Year 2 - Subgroups"]
["0100","01000050","Miriam F McCarthy Sch",571,"K  - 05","Title I School (SW)","Corrective Action - Subgroups","Restructuring Year 1 - Subgroups"]
["0100","01000039","Potter Road",499,"K  - 05","Non-Title I School (NT)","Improvement Year 2 - Subgroups"," "]
["0100","01000310","Walsh Middle",723,"06 - 08","Non-Title I School (NT)","Restructuring Year 2+ - Subgroups","Restructuring Year 2+ - Subgroups"]
["0100","01000055","Woodrow Wilson",542,"K  - 05","Title I School (SW)","Restructuring Year 2+ - Aggregate","Restructuring Year 1 - Subgroups"]
["0101","01010040","Annie Sullivan Middle School",420,"06 - 08","Non-Title I School (NT)"," ","Improvement Year 2 - Subgroups"]
["0101","01010035","Davis Thayer",340,"K  - 05","Title I School (TA)"," "," "]
["0101","01010003","Franklin ECDC",187,"PK","Non-Title I School (NT)"]
["0101","01010505","Franklin High",1633,"09 - 12","Non-Title I School (NT)"," "," "]
["0101","01010012","Helen Keller Elementary",595,"K  - 05","Non-Title I School (NT)"," "," "]
["0101","01010405","Horace Mann",518,"06 - 08","Non-Title I School (NT)"," ","Improvement Year 1 - Subgroups"]
["0101","01010013","J F Kennedy Memorial",493,"K  - 05","Non-Title I School (NT)"," "," "]
["0101","01010010","Jefferson Elementary",466,"K  - 05","Non-Title I School (NT)"," "," "]
["0101","01010030","Oak Street Elementary",456,"K  - 05","Non-Title I School (NT)"," "," "]
["0101","01010032","Parmenter",431,"K  - 05","Title I School (TA)","Improvement Year 1 - Subgroups"," "]
["0101","01010310","Remington Middle",493,"06 - 08","Non-Title I School (NT)","Improvement Year 2 - Subgroups"," "]
["0103","01030001","Elm Street School",500,"03 - 05","Title I School (SW)","Restructuring Year 2+ - Aggregate","Restructuring Year 1 - Aggregate"]
["0103","01030515","Gardner Academy for Learning and Technology",55,"09 - 12","Non-Title I School (NT)"]
["0103","01030505","Gardner High",679,"09 - 12","Non-Title I School (NT)","Restructuring Year 1 - Subgroups","Restructuring Year 1 - Aggregate"]
["0103","01030405","Gardner Middle School",605,"06 - 08","Title I School (SW)","Restructuring Year 2+ - Subgroups","Restructuring Year 2+ - Aggregate"]
["0103","01030015","Helen Mae Sauter Elem",233,"01 - 03","Title I School (SW)"," "," "]
["0103","01030020","Waterford Street",491,"PK - 02","Title I School (SW)"," "," "]
["0105","01050505","Georgetown Middle/High",818,"06 - 12","Title I School (TA)","Improvement Year 1 - Subgroups","Improvement Year 1 - Subgroups"]
["0105","01050010","Penn Brook",517,"02 - 05","Non-Title I School (NT)","Improvement Year 2 - Subgroups","Improvement Year 1 - Subgroups"]
["0105","01050005","Perley Elementary",317,"PK - 01","Non-Title I School (NT)"," "," "]
["0107","01070010","Beeman Memorial",286,"K  - 05","Title I School (TA)","Improvement Year 2 - Subgroups","Improvement Year 2 - Aggregate"]
["0107","01070020","East Gloucester Elem",262,"K  - 05","Title I School (TA)","Improvement Year 1 - Subgroups"," "]
["0107","01070505","Gloucester High",1052,"09 - 12","Non-Title I School (NT)"," ","Improvement Year 2 - Subgroups"]
["0107","01070025","Milton L Fuller Elem",65,"PK","Non-Title I School (NT)"]
["0107","01070042","Plum Cove School",221,"K  - 05","Non-Title I School (NT)","Improvement Year 1 - Aggregate"," "]
["0107","01070305","Ralph B O'Maley Middle",695,"06 - 08","Non-Title I School (NT)","Restructuring Year 1 - Subgroups","Restructuring Year 2+ - Subgroups"]
["0107","01070045","Veterans Memorial",238,"K  - 05","Title I School (TA)","Restructuring Year 2+ - Aggregate","Corrective Action - Subgroups"]
["0107","01070050","West Parish",384,"K  - 05","Non-Title I School (NT)","Improvement Year 2 - Subgroups","Corrective Action - Subgroups"]
["0109","01090005","Cuttyhunk Elem",4,"K  - 02","Non-Title I School (NT)"]
["0110","01100200","Grafton Elementary",766,"PK - 05","Title I School (TA)","Restructuring Year 1 - Subgroups","Restructuring Year 1 - Subgroups"]
["0110","01100505","Grafton Memorial Senior",670,"09 - 12","Non-Title I School (NT)"," "," "]
["0110","01100305","Grafton Middle",662,"06 - 08","Non-Title I School (NT)","Corrective Action - Subgroups","Corrective Action - Subgroups"]
["0110","01100025","North Grafton Elementary",354,"PK - 02","Non-Title I School (NT)"," "," "]
["0110","01100005","South Grafton Elementary",420,"PK - 02","Non-Title I School (NT)"," "," "]
["0111","01110004","East Meadow",269,"04 - 06","Non-Title I School (NT)","Restructuring Year 1 - Subgroups","Improvement Year 2 - Subgroups"]
["0111","01110505","Granby Jr Sr High Sch",567,"07 - 12","Non-Title I School (NT)"," ","Improvement Year 1 - Aggregate"]
["0111","01110010","West St",295,"PK - 03","Title I School (TA)"," "," "]
["0112","01120005","Granville Village",149,"K  - 08","Title I School (TA)"," "," "]
["0114","01140010","Federal",205,"K  - 04","Title I School (SW)","Corrective Action - Aggregate"," "]
["0114","01140025","Four Corners",162,"K  - 04","Title I School (SW)","Improvement Year 1 - Aggregate"," "]
["0114","01140505","Greenfield High",483,"08 - 12","Non-Title I School (NT)"," ","Improvement Year 1 - Aggregate"]
["0114","01140305","Greenfield Middle",441,"04 - 07","Title I School (SW)","Restructuring Year 2+ - Subgroups","Restructuring Year 2+ - Aggregate"]
["0114","01140900","MAVA @ Greenfield",217,"K  - 12","Non-Title I School (NT)"," "," "]
["0114","01140035","Newton School",197,"K  - 03","Title I School (SW)"," "," "]
["0114","01140005","The Academy of Early Learning at North Parish",85,"PK","Non-Title I School (NT)"]
["0117","01170015","Hadley Elem",397,"PK - 06","Title I School (TA)","Improvement Year 1 - Aggregate"," "]
["0117","01170505","Hopkins Academy",313,"07 - 12","Non-Title I School (NT)"," ","Improvement Year 1 - Aggregate"]
["0118","01180005","Halifax Elementary",628,"K  - 06","Title I School (TA)","Corrective Action - Subgroups"," "]
["0121","01210005","Hancock Elementary",48,"PK - 06","Non-Title I School (NT)"," "," "]
["0122","01220004","Cedar Elementary",480,"PK - 04","Non-Title I School (NT)","Improvement Year 1 - Subgroups","Improvement Year 1 - Subgroups"]
["0122","01220005","Center Elementary",354,"PK - 02","Non-Title I School (NT)"," "," "]
["0122","01220505","Hanover High",699,"09 - 12","Non-Title I School (NT)"," "," "]
["0122","01220305","Hanover Middle",913,"05 - 08","Title I School (TA)","Improvement Year 1 - Subgroups","Restructuring Year 2+ - Subgroups"]
["0122","01220015","Sylvester",239,"03 - 04","Non-Title I School (NT)","Improvement Year 2 - Subgroups"," "]
["0125","01250505","Bromfield",749,"06 - 12","Non-Title I School (NT)"," "," "]
["0125","01250005","Hildreth Elementary School",518,"PK - 05","Non-Title I School (NT)"," "," "]
["0126","01260005","Harwich Elementary",579,"PK - 04","Title I School (TA)","Improvement Year 2 - Aggregate","Improvement Year 1 - Aggregate"]
["0126","01260505","Harwich High",350,"09 - 12","Non-Title I School (NT)"," "," "]
["0126","01260305","Harwich Middle",404,"05 - 08","Non-Title I School (NT)","Improvement Year 1 - Subgroups","Corrective Action - Subgroups"]
["0127","01270005","Hatfield Elementary",262,"PK - 06","Title I School (TA)"," "," "]
["0127","01270505","Smith Academy",207,"07 - 12","Non-Title I School (NT)"," "," "]
["0128","01280008","Bradford Elementary",623,"K  - 05","Non-Title I School (NT)","Restructuring Year 1 - Subgroups","Improvement Year 2 - Subgroups"]
["0128","01280035","Caleb Dustin Hunking",455,"06 - 08","Non-Title I School (NT)","Improvement Year 2 - Subgroups","Restructuring Year 2+ - Subgroups"]
["0128","01280100","Consentino",695,"05 - 08","Title I School (SW)","Restructuring Year 2+ - Aggregate","Restructuring Year 2+ - Aggregate"]
["0128","01280020","Crowell",62,"K  - 02","Non-Title I School (NT)"," "," "]
["0128","01280050","Dr Paul Nettle",495,"05 - 08","Title I School (SW)","Restructuring Year 2+ - Aggregate","Restructuring Year 2+ - Aggregate"]
["0128","01280026","Golden Hill",466,"K  - 04","Title I School (SW)","Restructuring Year 2+ - Subgroups","Restructuring Year 2+ - Subgroups"]
["0128","01280027","Greenleaf",245,"K  - 02","Non-Title I School (NT)"," "," "]
["0128","01280033","Haverhill Alternative School",48,"06 - 12","Non-Title I School (NT)"]
["0128","01280505","Haverhill High",1748,"09 - 12","Non-Title I School (NT)","Restructuring Year 2+ - Subgroups","Restructuring Year 2+ - Subgroups"]
["0128","01280085","John G Whittier",477,"05 - 08","Non-Title I School (NT)","Improvement Year 2 - Aggregate","Restructuring Year 2+ - Subgroups"]
["0128","01280045","Moody",184,"PK","Non-Title I School (NT)"]
["0128","01280054","Pentucket Lake Elem",497,"K  - 04","Title I School (SW)","Restructuring Year 2+ - Aggregate","Improvement Year 2 - Aggregate"]
["0128","01280073","TEACH",40,"01 - 12","Non-Title I School (NT)"]
["0128","01280075","Tilton",625,"K  - 04","Title I School (SW)","Restructuring Year 2+ - Aggregate","Restructuring Year 1 - Aggregate"]
["0128","01280080","Walnut Square",144,"K  - 02","Non-Title I School (NT)"," "," "]
["0131","01310005","East Elementary School",611,"PK - 05","Title I School (TA)"," "," "]
["0131","01310505","Hingham High",1097,"09 - 12","Non-Title I School (NT)"," "," "]
["0131","01310410","Hingham Middle School",931,"06 - 08","Non-Title I School (NT)","Improvement Year 1 - Subgroups","Improvement Year 1 - Subgroups"]
["0131","01310019","Plymouth River",455,"K  - 05","Non-Title I School (NT)"," "," "]
["0131","01310020","South Elem",519,"K  - 05","Non-Title I School (NT)","Corrective Action - Aggregate"," "]
["0131","01310010","Wm L Foster Elem",487,"K  - 05","Title I School (TA)"," "," "]
["0133","01330505","Holbrook Jr Sr High",472,"07 - 12","Non-Title I School (NT)"," ","Restructuring Year 2+ - Aggregate"]
["0133","01330018","John F Kennedy",425,"PK - 03","Title I School (TA)","Corrective Action - Subgroups"," "]
["0133","01330025","South",290,"04 - 06","Title I School (TA)","Corrective Action - Subgroups"," "]
["0135","01350005","Holland Elementary",245,"PK - 06","Title I School (TA)","Improvement Year 2 - Subgroups","Improvement Year 2 - Subgroups"]
["0136","01360505","Holliston High",863,"09 - 12","Non-Title I School (NT)"," "," "]
["0136","01360007","Miller School",662,"03 - 05","Non-Title I School (NT)"," ","Improvement Year 2 - Subgroups"]
["0136","01360010","Placentino Elementary",700,"PK - 02","Title I School (TA)"," "," "]
["0136","01360305","Robert H. Adams Middle School",645,"06 - 08","Non-Title I School (NT)","Improvement Year 2 - Subgroups","Corrective Action - Subgroups"]
["0137","01370525","Center for Excellence",178,"K  - 12","Title I School (SW)","Improvement Year 2 - Aggregate","Improvement Year 2 - Aggregate"]
["0137","01370045","E N White Elem",500,"K  - 08","Title I School (SW)","Restructuring Year 2+ - Aggregate","Restructuring Year 2+ - Aggregate"]
["0137","01370505","Holyoke High",1268,"09 - 12","Title I School (SW)","Improvement Year 2 - Subgroups","Restructuring Year 1 - Subgroups"]
["0137","01370003","Joseph Metcalf Preschool",206,"PK","Non-Title I School (NT)"]
["0137","01370040","Kelly Elem",573,"K  - 08","Title I School (SW)","Restructuring Year 2+ - Aggregate","Restructuring Year 2+ - Aggregate"]
["0137","01370055","Lt Clayre Sullivan Elem",594,"K  - 08","Title I School (SW)","Restructuring Year 2+ - Subgroups","Restructuring Year 2+ - Aggregate"]
["0137","01370015","Lt Elmer J McMahon Elem",461,"K  - 08","Title I School (SW)","Restructuring Year 2+ - Subgroups","Corrective Action - Aggregate"]
["0137","01370060","Maurice A Donahue Elem",473,"K  - 08","Title I School (SW)","Restructuring Year 2+ - Subgroups","Restructuring Year 1 - Aggregate"]
["0137","01370025","Morgan Elem",372,"K  - 08","Title I School (SW)","Restructuring Year 2+ - Aggregate","Restructuring Year 2+ - Aggregate"]
["0137","01370030","William R. Peck School",612,"K  - 08","Title I School (SW)","Restructuring Year 2+ - Aggregate","Restructuring Year 2+ - Aggregate"]
["0137","01370605","Wm J Dean Voc Tech High",659,"09 - 12","Title I School (SW)"," "," "]
["0138","01380505","Hopedale Jr Sr High",529,"07 - 12","Non-Title I School (NT)"," ","Corrective Action - Subgroups"]
["0138","01380010","Memorial",631,"K  - 06","Title I School (TA)","Improvement Year 1 - Subgroups"," "]
["0138","01380003","Park Street School",119,"PK","Non-Title I School (NT)"]
["0139","01390005","Center",459,"K  - 01","Non-Title I School (NT)"," "," "]
["0139","01390010","Elmwood",538,"02 - 03","Non-Title I School (NT)","Improvement Year 1 - Subgroups"," "]
["0139","01390015","Hopkins Elementary School",537,"04 - 05","Non-Title I School (NT)","Restructuring Year 1 - Subgroups"," "]
["0139","01390505","Hopkinton High",1047,"09 - 12","Non-Title I School (NT)"," "," "]
["0139","01390305","Hopkinton Middle School",822,"06 - 08","Non-Title I School (NT)","Improvement Year 2 - Subgroups","Restructuring Year 2+ - Subgroups"]
["0139","01390003","Hopkinton Pre-School",51,"PK","Non-Title I School (NT)"]
["0141","01410030","C A Farley",519,"01 - 05","Title I School (TA)","Restructuring Year 1 - Aggregate","Restructuring Year 2+ - Aggregate"]
["0141","01410011","C R Hubert",202,"K","Non-Title I School (NT)"]
["0141","01410015","Forest Avenue Elementary",322,"01 - 05","Title I School (TA)","Corrective Action - Subgroups","Corrective Action - Subgroups"]
["0141","01410505","Hudson High",1237,"PK, 08 - 12","Non-Title I School (NT)","Restructuring Year 1 - Subgroups","Restructuring Year 1 - Subgroups"]
["0141","01410410","John F Kennedy",432,"06 - 07","Non-Title I School (NT)","Corrective Action - Subgroups","Restructuring Year 1 - Subgroups"]
["0141","01410007","Mulready Elementary",281,"PK - 05","Non-Title I School (NT)"," "," "]
["0142","01420505","Hull High",358,"09 - 12","Non-Title I School (NT)"," "," "]
["0142","01420015","Lillian M Jacobs",542,"PK - 05","Title I School (TA)","Improvement Year 2 - Subgroups","Improvement Year 1 - Aggregate"]
["0142","01420305","Memorial Middle",264,"06 - 08","Non-Title I School (NT)","Improvement Year 1 - Aggregate","Improvement Year 2 - Subgroups"]
["0144","01440505","Ipswich High",657,"09 - 12","Non-Title I School (NT)"," "," "]
["0144","01440305","Ipswich Middle School",519,"06 - 08","Non-Title I School (NT)","Improvement Year 1 - Subgroups","Improvement Year 1 - Subgroups"]
["0144","01440007","Paul F Doyon Memorial",492,"PK - 05","Non-Title I School (NT)"," "," "]
["0144","01440015","Winthrop",443,"PK - 05","Title I School (TA)","Improvement Year 2 - Subgroups","Improvement Year 2 - Aggregate"]
["0145","01450005","Kingston Elementary",496,"K  - 02","Title I School (TA)"," "," "]
["0145","01450020","Kingston Intermediate",693,"03 - 06","Title I School (TA)","Corrective Action - Subgroups","Restructuring Year 1 - Subgroups"]
["0148","01480005","Lanesborough Elementary",255,"PK - 06","Title I School (TA)","Improvement Year 1 - Aggregate"," "]
["0149","01490015","Alexander B Bruce",541,"02 - 08","Title I School (SW)","Restructuring Year 2+ - Aggregate","Restructuring Year 2+ - Aggregate"]
["0149","01490008","Arlington Elementary School",524,"K  - 04","Title I School (SW)","Restructuring Year 2+ - Aggregate","Corrective Action - Subgroups"]
["0149","01490017","Arlington Middle School",491,"05 - 08","Title I School (SW)","Restructuring Year 1 - Aggregate","Restructuring Year 2+ - Aggregate"]
["0149","01490530","Business Management & Finance High School",474,"09 - 12","Title I School (SW)","Restructuring Year 2+ - Subgroups","Restructuring Year 2+ - Aggregate"]
["0149","01490053","Edward F. Parthum",586,"K  - 04","Title I School (SW)","Restructuring Year 2+ - Subgroups","Restructuring Year 2+ - Aggregate"]
["0149","01490080","Emily G Wetherbee",641,"K  - 08","Title I School (SW)","Restructuring Year 2+ - Subgroups","Restructuring Year 2+ - Aggregate"]
["0149","01490040","Francis M Leahy",493,"K  - 05","Title I School (SW)","Restructuring Year 2+ - Aggregate","Restructuring Year 2+ - Subgroups"]
["0149","01490525","Frost Middle School",462,"05 - 08","Title I School (SW)","Restructuring Year 2+ - Subgroups","Restructuring Year 2+ - Subgroups"]
["0149","01490022","Gerard A. Guilmette",581,"01 - 04","Title I School (SW)","Improvement Year 1 - Subgroups","Improvement Year 2 - Aggregate"]
["0149","01490025","Guilmette Middle School",542,"05 - 08","Title I School (SW)","Corrective Action - Subgroups","Restructuring Year 2+ - Aggregate"]
["0149","01490531","Health & Human Services High School",533,"09 - 12","Title I School (SW)","Improvement Year 1 - Aggregate","Restructuring Year 2+ - Aggregate"]
["0149","01490050","Henry K Oliver",653,"01 - 08","Title I School (SW)","Restructuring Year 1 - Aggregate","Restructuring Year 2+ - Aggregate"]
["0149","01490536","High School Learning Center",270,"09 - 12","Title I School (SW)"]
["0149","01490532","Humanities & Leadership Development High School",542,"09 - 12","Title I School (SW)","Restructuring Year 2+ - Aggregate","Restructuring Year 2+ - Aggregate"]
["0149","01490534","International High School",477,"09 - 12","Title I School (SW)","Restructuring Year 2+ - Aggregate","Restructuring Year 2+ - Aggregate"]
["0149","01490020","James F Hennessey",388,"PK - 01","Title I School (SW)"," "," "]
["0149","01490045","James F Leonard",304,"06 - 08","Title I School (SW)","Restructuring Year 1 - Subgroups","Restructuring Year 2+ - Aggregate"]
["0149","01490003","John Breen School",352,"PK - K","Title I School (SW)"]
["0149","01490075","John K Tarbox",284,"01 - 05","Title I School (SW)","Restructuring Year 2+ - Aggregate"," "]
["0149","01490002","Lawlor ECC",181,"K","Title I School (SW)"]
["0149","01490533","Math, Science & Technology High School",502,"09 - 12","Title I School (SW)","Restructuring Year 2+ - Aggregate","Restructuring Year 2+ - Aggregate"]
["0149","01490027","Parthum Middle School",550,"05 - 08","Title I School (SW)","Restructuring Year 2+ - Subgroups","Restructuring Year 2+ - Aggregate"]
["0149","01490535","Performing & Fine Arts High School",535,"09 - 12","Title I School (SW)","Restructuring Year 2+ - Aggregate","Restructuring Year 2+ - Aggregate"]
["0149","01490018","Robert Frost",543,"K  - 04","Title I School (SW)","Restructuring Year 2+ - Aggregate","Restructuring Year 2+ - Subgroups"]
["0149","01490001","Rollins Early Childhood Center",150,"PK - K","Title I School (SW)"]
["0149","01490537","School for Exceptional Studies",198,"01 - 12","Title I School (SW)","Corrective Action - Subgroups","Improvement Year 2 - Aggregate"]
["0149","01490004","South Lawrence East Elementary School",495,"01 - 04","Title I School (SW)","Restructuring Year 1 - Subgroups","Improvement Year 1 - Subgroups"]
["0149","01490016","South Lawrence East Middle School",492,"05 - 08","Title I School (SW)","Restructuring Year 2+ - Subgroups","Restructuring Year 2+ - Aggregate"]
["0150","01500025","Lee Elementary",355,"PK - 06","Title I School (TA)","Restructuring Year 1 - Aggregate","Restructuring Year 2+ - Subgroups"]
["0150","01500505","Lee Middle/High School",466,"07 - 12","Non-Title I School (NT)","Improvement Year 1 - Subgroups"," "]
["0151","01510505","Leicester High",530,"09 - 12","Non-Title I School (NT)"," "," "]
["0151","01510005","Leicester Memorial Elem",410,"03 - 05","Title I School (TA)","Restructuring Year 1 - Subgroups","Corrective Action - Subgroups"]
["0151","01510015","Leicester Middle",432,"06 - 08","Non-Title I School (NT)","Improvement Year 1 - Subgroups","Restructuring Year 2+ - Subgroups"]
["0151","01510010","Leicester Primary School",487,"PK - 02","Title I School (TA)","Improvement Year 1 - Aggregate"," "]
["0152","01520505","Lenox Memorial High",467,"06 - 12","Non-Title I School (NT)"," "," "]
["0152","01520015","Morris",334,"PK - 05","Title I School (TA)"," ","Improvement Year 1 - Aggregate"]
["0153","01530003","Bennett",159,"PK - K","Non-Title I School (NT)"]
["0153","01530007","Fall Brook",623,"K  - 05","Title I School (SW)","Restructuring Year 2+ - Aggregate"," "]
["0153","01530025","Johnny Appleseed",661,"K  - 05","Title I School (SW)","Restructuring Year 2+ - Subgroups","Corrective Action - Subgroups"]
["0153","01530605","Leominster Ctr Tech Educ",655,"09 - 12","Title I School (SW)"," "," "]
["0153","01530505","Leominster Senior High",1188,"09 - 12","Non-Title I School (NT)"," ","Improvement Year 2 - Aggregate"]
["0153","01530005","Lincoln School",62,"PK","Non-Title I School (NT)"]
["0153","01530030","Northwest",736,"K  - 05","Title I School (SW)","Restructuring Year 2+ - Subgroups","Restructuring Year 1 - Subgroups"]
["0153","01530040","Priest Street",125,"K","Title I School (SW)"]
["0153","01530045","Samoset School",495,"06 - 08","Non-Title I School (NT)","Restructuring Year 1 - Aggregate","Restructuring Year 1 - Subgroups"]
["0153","01530320","Sky View Middle School",901,"06 - 08","Non-Title I School (NT)","Corrective Action - Subgroups","Corrective Action - Aggregate"]
["0153","01530010","Southeast School",609,"K  - 05","Title I School (SW)","Corrective Action - Subgroups","Corrective Action - Subgroups"]
["0154","01540005","Leverett Elementary",159,"PK - 06","Non-Title I School (NT)"," "," "]
["0155","01550008","Bowman",531,"K  - 05","Title I School (TA)"," "," "]
["0155","01550006","Bridge",518,"K  - 05","Title I School (TA)"," "," "]
["0155","01550015","Fiske",472,"K  - 05","Non-Title I School (NT)","Improvement Year 1 - Subgroups"," "]
["0155","01550030","Harrington",463,"PK - 05","Non-Title I School (NT)"," "," "]
["0155","01550305","Jonas Clarke Middle",764,"06 - 08","Non-Title I School (NT)","Improvement Year 1 - Subgroups"," "]
["0155","01550010","Joseph Estabrook",450,"K  - 05","Non-Title I School (NT)"," "," "]
["0155","01550505","Lexington High",1983,"09 - 12","Non-Title I School (NT)"," "," "]
["0155","01550035","Maria Hastings",443,"K  - 05","Non-Title I School (NT)"," "," "]
["0155","01550310","Wm Diamond Middle",742,"06 - 08","Non-Title I School (NT)"," ","Improvement Year 2 - Subgroups"]
["0157","01570305","Hanscom Middle",184,"04 - 08","Title I School (TA)","Improvement Year 2 - Aggregate","Improvement Year 2 - Aggregate"]
["0157","01570006","Hanscom Primary",269,"PK - 03","Title I School (TA)"," "," "]
["0157","01570025","Lincoln School",624,"PK - 08","Non-Title I School (NT)","Corrective Action - Subgroups","Restructuring Year 1 - Subgroups"]
["0158","01580505","Littleton High School",412,"09 - 12","Non-Title I School (NT)"," "," "]
["0158","01580305","Littleton Middle School",378,"06 - 08","Non-Title I School (NT)"," ","Improvement Year 2 - Aggregate"]
["0158","01580015","Russell St Elementary",397,"03 - 05","Title I School (TA)","Improvement Year 2 - Subgroups","Improvement Year 1 - Subgroups"]
["0158","01580005","Shaker Lane Elementary",397,"PK - 02","Title I School (TA)"," "," "]
["0159","01590005","Blueberry Hill",497,"K  - 05","Non-Title I School (NT)","Improvement Year 2 - Subgroups","Improvement Year 2 - Subgroups"]
["0159","01590010","Center",435,"PK - 05","Non-Title I School (NT)"," ","Improvement Year 1 - Subgroups"]
["0159","01590017","Glenbrook Middle",353,"06 - 08","Non-Title I School (NT)"," "," "]
["0159","01590505","Longmeadow High",988,"09 - 12","Non-Title I School (NT)"," "," "]
["0159","01590305","Williams Middle",379,"06 - 08","Non-Title I School (NT)","Improvement Year 1 - Subgroups"," "]
["0159","01590025","Wolf Swamp Road",359,"K  - 05","Title I School (TA)","Corrective Action - Subgroups","Improvement Year 2 - Subgroups"]
["0160","01600020","Abraham Lincoln",474,"PK - 04","Title I School (SW)","Restructuring Year 1 - Aggregate","Improvement Year 2 - Aggregate"]
["0160","01600310","B.F.Butler Middle Sch",516,"05 - 08","Title I School (SW)","Restructuring Year 2+ - Subgroups","Restructuring Year 2+ - Aggregate"]
["0160","01600090","Bartlett Community Partnership",511,"PK - 08","Title I School (SW)","Restructuring Year 2+ - Aggregate","Restructuring Year 2+ - Aggregate"]
["0160","01600030","Charles W Morey",485,"PK - 04","Title I School (SW)"," "," "]
["0160","01600080","Charlotte M Murkland Elem",500,"PK - 04","Title I School (SW)","Restructuring Year 2+ - Aggregate","Restructuring Year 2+ - Aggregate"]
["0160","01600345","Dr An Wang School",663,"05 - 08","Title I School (SW)","Restructuring Year 2+ - Subgroups","Restructuring Year 2+ - Subgroups"]
["0160","01600002","Dr Gertrude Bailey",483,"PK - 04","Title I School (SW)","Restructuring Year 2+ - Subgroups"," "]
["0160","01600015","Greenhalge",465,"PK - 04","Title I School (SW)","Restructuring Year 2+ - Aggregate","Restructuring Year 2+ - Aggregate"]
["0160","01600330","Henry J Robinson Middle",645,"05 - 08","Title I School (SW)","Restructuring Year 2+ - Aggregate","Restructuring Year 2+ - Aggregate"]
["0160","01600315","James S Daley Middle Sch",675,"05 - 08","Title I School (SW)","Restructuring Year 2+ - Subgroups","Restructuring Year 2+ - Subgroups"]
["0160","01600340","James Sullivan Middle Sch",657,"05 - 08","Title I School (SW)","Corrective Action - Aggregate","Restructuring Year 2+ - Subgroups"]
["0160","01600050","John J Shaughnessy",470,"PK - 04","Title I School (SW)","Restructuring Year 2+ - Aggregate","Restructuring Year 1 - Subgroups"]
["0160","01600010","Joseph McAvinnue",477,"PK - 04","Title I School (SW)","Restructuring Year 2+ - Aggregate","Restructuring Year 2+ - Aggregate"]
["0160","01600360","Kathryn P. Stoklosa Middle School",666,"05 - 08","Title I School (SW)","Restructuring Year 2+ - Subgroups","Restructuring Year 2+ - Subgroups"]
["0160","01600505","Lowell High",3403,"09 - 12","Title I School (SW)","Restructuring Year 2+ - Subgroups","Restructuring Year 2+ - Subgroups"]
["0160","01600027","Moody Elem",227,"K  - 04","Title I School (SW)","Restructuring Year 1 - Aggregate","Restructuring Year 1 - Subgroups"]
["0160","01600036","Pawtucketville Memorial",493,"PK - 04","Title I School (SW)","Restructuring Year 2+ - Aggregate"," "]
["0160","01600040","Peter W Reilly",572,"K  - 04","Title I School (SW)","Restructuring Year 2+ - Aggregate","Restructuring Year 2+ - Aggregate"]
["0160","01600018","Pyne Arts",513,"PK - 08","Title I School (SW)"," ","Improvement Year 2 - Subgroups"]
["0160","01600075","S Christa McAuliffe Elementary",471,"PK - 04","Title I School (SW)","Restructuring Year 2+ - Subgroups","Restructuring Year 1 - Subgroups"]
["0160","01600055","Washington",234,"PK - 04","Title I School (SW)","Improvement Year 1 - Subgroups"," "]
["0161","01610020","Chapin Street Elementary School",422,"02 - 03","Title I School (TA)","Improvement Year 1 - Aggregate"," "]
["0161","01610010","East Street Elementary School",459,"PK - 01","Title I School (TA)"]
["0161","01610505","Ludlow Senior High",1008,"09 - 12","Non-Title I School (NT)"," "," "]
["0161","01610305","Paul R Baird Middle",683,"06 - 08","Non-Title I School (NT)","Corrective Action - Subgroups","Restructuring Year 2+ - Subgroups"]
["0161","01610023","Veterans Park Elem",415,"04 - 05","Title I School (TA)","Corrective Action - Subgroups","Improvement Year 1 - Aggregate"]
["0162","01620505","Lunenburg High",536,"09 - 12","Non-Title I School (NT)"," "," "]
["0162","01620010","Lunenburg Primary School",373,"PK - 02","Title I School (TA)"," "," "]
["0162","01620015","Thomas C Passios Elem",360,"03 - 05","Non-Title I School (NT)","Improvement Year 2 - Subgroups","Corrective Action - Subgroups"]
["0162","01620020","Turkey Hill Middle",381,"06 - 08","Non-Title I School (NT)","Improvement Year 1 - Subgroups","Corrective Action - Subgroups"]
["0163","01630016","A Drewicz Elem",431,"PK - 05","Title I School (SW)","Restructuring Year 2+ - Subgroups","Improvement Year 2 - Aggregate"]
["0163","01630011","Aborn",238,"K  - 05","Title I School (SW)"," "," "]
["0163","01630405","Breed Middle School",1168,"06 - 08","Title I School (SW)","Restructuring Year 2+ - Aggregate","Restructuring Year 2+ - Aggregate"]
["0163","01630020","Brickett Elementary",318,"PK - 05","Title I School (SW)","Restructuring Year 1 - Aggregate"," "]
["0163","01630090","Capt William G Shoemaker",353,"PK - 06","Title I School (SW)"," ","Improvement Year 2 - Subgroups"]
["0163","01630505","Classical High",1401,"09 - 12","Non-Title I School (NT)","Improvement Year 1 - Subgroups","Restructuring Year 2+ - Subgroups"]
["0163","01630035","Cobbet Elementary",645,"K  - 05","Title I School (SW)","Restructuring Year 2+ - Aggregate","Restructuring Year 1 - Aggregate"]
["0163","01630045","E J Harrington",563,"PK - 05","Title I School (SW)","Restructuring Year 1 - Aggregate","Corrective Action - Subgroups"]
["0163","01630095","Edward A Sisson",427,"PK - 05","Title I School (SW)"," ","Improvement Year 2 - Subgroups"]
["0163","01630525","Fecteau-Leary Junior/Senior High School",147,"07 - 12","Title I School (SW)","Improvement Year 2 - Aggregate","Improvement Year 2 - Aggregate"]
["0163","01630055","Hood",403,"K  - 05","Title I School (SW)","Restructuring Year 2+ - Subgroups","Restructuring Year 1 - Subgroups"]
["0163","01630060","Ingalls",609,"PK - 08","Title I School (SW)","Restructuring Year 2+ - Aggregate","Corrective Action - Subgroups"]
["0163","01630030","Julia F Callahan",467,"PK - 05","Title I School (SW)","Restructuring Year 2+ - Aggregate","Improvement Year 2 - Aggregate"]
["0163","01630070","Lincoln-Thomson",259,"K  - 05","Title I School (SW)","Corrective Action - Aggregate"," "]
["0163","01630510","Lynn English High",1739,"09 - 12","Non-Title I School (NT)","Improvement Year 2 - Subgroups","Improvement Year 2 - Subgroups"]
["0163","01630605","Lynn Voc Tech Institute",809,"09 - 12","Title I School (SW)","Restructuring Year 2+ - Aggregate","Restructuring Year 2+ - Aggregate"]
["0163","01630075","Lynn Woods",157,"K  - 05","Title I School (SW)","Corrective Action - Aggregate","Improvement Year 1 - Aggregate"]
["0163","01630420","Pickering Middle",645,"06 - 08","Title I School (SW)","Restructuring Year 2+ - Subgroups","Restructuring Year 2+ - Subgroups"]
["0163","01630050","Robert L Ford",547,"K  - 05","Title I School (SW)","Restructuring Year 2+ - Aggregate","Restructuring Year 2+ - Aggregate"]
["0163","01630085","Sewell-Anderson",263,"PK - 05","Title I School (SW)","Corrective Action - Subgroups","Corrective Action - Aggregate"]
["0163","01630305","Thurgood Marshall Mid",930,"06 - 08","Title I School (SW)","Restructuring Year 2+ - Aggregate","Restructuring Year 2+ - Aggregate"]
["0163","01630100","Tracy",385,"K  - 05","Title I School (SW)","Improvement Year 1 - Aggregate"," "]
["0163","01630005","Washington Elementary School",60,"PK - 06","Title I School (SW)","Improvement Year 2 - Aggregate","Improvement Year 2 - Aggregate"]
["0163","01630040","Wm P Connery",583,"K  - 05","Title I School (SW)","Restructuring Year 2+ - Aggregate","Corrective Action - Subgroups"]
["0164","01640010","Huckleberry Hill",375,"K  - 04","Title I School (TA)"," "," "]
["0164","01640505","Lynnfield High",644,"09 - 12","Non-Title I School (NT)"," "," "]
["0164","01640405","Lynnfield Middle School",773,"05 - 08","Non-Title I School (NT)","Improvement Year 2 - Subgroups","Corrective Action - Subgroups"]
["0164","01640005","Lynnfield Preschool",53,"PK","Non-Title I School (NT)"]
["0164","01640020","Summer Street",463,"K  - 04","Non-Title I School (NT)"," "," "]
["0165","01650003","Beebe",914,"K  - 08","Title I School (SW)","Restructuring Year 2+ - Subgroups","Restructuring Year 2+ - Aggregate"]
["0165","01650013","Ferryway",892,"K  - 08","Title I School (SW)","Restructuring Year 2+ - Subgroups","Restructuring Year 2+ - Subgroups"]
["0165","01650027","Forestdale",572,"K  - 08","Title I School (SW)","Restructuring Year 2+ - Subgroups","Restructuring Year 2+ - Subgroups"]
["0165","01650047","Linden",888,"K  - 08","Title I School (SW)","Restructuring Year 2+ - Subgroups","Corrective Action - Subgroups"]
["0165","01650049","Malden ELC",284,"PK - K","Non-Title I School (NT)"]
["0165","01650505","Malden High",1799,"09 - 12","Non-Title I School (NT)","Restructuring Year 2+ - Subgroups","Restructuring Year 2+ - Subgroups"]
["0165","01650057","Salemwood",1216,"K  - 08","Title I School (SW)","Restructuring Year 2+ - Aggregate","Restructuring Year 2+ - Aggregate"]
["0167","01670007","Everett W Robinson",982,"K  - 02","Title I School (TA)","Improvement Year 2 - Subgroups","Improvement Year 1 - Subgroups"]
["0167","01670035","Harold L Qualters Middle",1150,"06 - 08","Non-Title I School (NT)","Corrective Action - Subgroups","Restructuring Year 2+ - Subgroups"]
["0167","01670014","Jordan/Jackson Elementary",1090,"03 - 05","Non-Title I School (NT)","Restructuring Year 2+ - Subgroups","Corrective Action - Subgroups"]
["0167","01670505","Mansfield High",1492,"09 - 12","Non-Title I School (NT)"," "," "]
["0167","01670003","Roland Green School",112,"PK","Non-Title I School (NT)"]
["0168","01680025","Dr Samuel C Eveleth",81,"K","Non-Title I School (NT)"]
["0168","01680015","Elbridge Gerry",169,"K  - 01","Non-Title I School (NT)"," "," "]
["0168","01680020","Glover",266,"01 - 03","Non-Title I School (NT)"," "," "]
["0168","01680010","L H Coffin",167,"02 - 03","Non-Title I School (NT)"," "," "]
["0168","01680005","Malcolm L Bell",382,"PK - 03","Non-Title I School (NT)"," ","Improvement Year 1 - Subgroups"]
["0168","01680505","Marblehead High",961,"09 - 12","Non-Title I School (NT)"," "," "]
["0168","01680300","Marblehead Veterans Middle School",472,"07 - 08","Title I School (TA)"," ","Improvement Year 2 - Subgroups"]
["0168","01680016","Village School",708,"04 - 06","Title I School (TA)"," ","Restructuring Year 2+ - Subgroups"]
["0169","01690005","Sippican",463,"PK - 06","Title I School (TA)"," "," "]
["0170","01700045","1 LT Charles W. Whitcomb School",1407,"04 - 07","Title I School (TA)","Restructuring Year 2+ - Aggregate","Restructuring Year 2+ - Subgroups"]
["0170","01700030","Charles Jaworek School",585,"K  - 03","Title I School (TA)"," "," "]
["0170","01700006","Early Childhood Center",157,"PK","Non-Title I School (NT)"]
["0170","01700008","Francis J Kane",510,"K  - 03","Title I School (TA)","Corrective Action - Subgroups"," "]
["0170","01700505","Marlborough High",1457,"08 - 12","Non-Title I School (NT)","Restructuring Year 1 - Subgroups","Restructuring Year 2+ - Subgroups"]
["0170","01700025","Richer",457,"K  - 03","Title I School (TA)"," "," "]
["0171","01710015","Daniel Webster",445,"PK - 05","Title I School (TA)"," "," "]
["0171","01710005","Eames Way School",362,"K  - 05","Non-Title I School (NT)"," "," "]
["0171","01710310","Furnace Brook Middle",1083,"06 - 08","Title I School (TA)","Improvement Year 1 - Subgroups","Restructuring Year 2+ - Subgroups"]
["0171","01710020","Gov Edward Winslow",474,"PK - 05","Title I School (TA)"," "," "]
["0171","01710505","Marshfield High",1373,"09 - 12","Non-Title I School (NT)"," "," "]
["0171","01710025","Martinson Elementary",473,"K  - 05","Title I School (TA)"," "," "]
["0171","01710010","South River",461,"K  - 05","Non-Title I School (NT)"," "," "]
["0172","01720005","Kenneth Coombs School",506,"PK - 02","Title I School (TA)"," "," "]
["0172","01720505","Mashpee High",467,"09 - 12","Non-Title I School (NT)"," "," "]
["0172","01720020","Mashpee Middle School",261,"07 - 08","Non-Title I School (NT)","Restructuring Year 2+ - Subgroups","Restructuring Year 2+ - Aggregate"]
["0172","01720035","Quashnet School",533,"03 - 06","Non-Title I School (NT)","Restructuring Year 2+ - Subgroups","Restructuring Year 2+ - Subgroups"]
["0173","01730005","Center",293,"PK - 03","Non-Title I School (NT)"," "," "]
["0173","01730010","Old Hammondtown",225,"04 - 06","Title I School (TA)"," "," "]
["0174","01740305","Fowler School",476,"04 - 08","Non-Title I School (NT)","Corrective Action - Subgroups","Corrective Action - Subgroups"]
["0174","01740010","Green Meadow",528,"PK - 03","Title I School (TA)"," "," "]
["0174","01740505","Maynard High",308,"09 - 12","Non-Title I School (NT)"," "," "]
["0175","01750005","Dale Street",454,"04 - 05","Non-Title I School (NT)"," ","Corrective Action - Subgroups"]
["0175","01750505","Medfield Senior High",937,"09 - 12","Non-Title I School (NT)"," "," "]
["0175","01750003","Memorial School",418,"PK - 01","Non-Title I School (NT)"," "," "]
["0175","01750007","Ralph Wheelock School",408,"02 - 03","Non-Title I School (NT)"," "," "]
["0175","01750305","Thomas Blake Middle",722,"06 - 08","Non-Title I School (NT)","Improvement Year 1 - Subgroups","Restructuring Year 2+ - Subgroups"]
["0176","01760130","Brooks School",585,"K  - 05","Non-Title I School (NT)","Corrective Action - Subgroups","Corrective Action - Subgroups"]
["0176","01760140","Christopher Columbus",513,"K  - 05","Title I School (TA)","Improvement Year 1 - Aggregate","Corrective Action - Subgroups"]
["0176","01760510","Curtis-Tufts",25,"09 - 12","Non-Title I School (NT)"]
["0176","01760068","John J McGlynn Elementary School",608,"PK - 05","Title I School (TA)","Restructuring Year 1 - Subgroups","Improvement Year 2 - Subgroups"]
["0176","01760320","John J. McGlynn Middle School",560,"06 - 08","Non-Title I School (NT)","Restructuring Year 1 - Subgroups","Restructuring Year 1 - Subgroups"]
["0176","01760315","Madeleine Dugger Andrews",502,"06 - 08","Non-Title I School (NT)","Improvement Year 1 - Aggregate","Restructuring Year 2+ - Aggregate"]
["0176","01760505","Medford High",1222,"09 - 12","Non-Title I School (NT)"," "," "]
["0176","01760605","Medford Voc Tech High",229,"09 - 12","Non-Title I School (NT)"," "," "]
["0176","01760150","Milton Fuller Roberts",605,"PK - 05","Title I School (TA)","Restructuring Year 2+ - Subgroups","Restructuring Year 2+ - Aggregate"]
["0177","01770010","Francis J Burke Elem",208,"PK - K","Title I School (TA)"]
["0177","01770013","John D Mc Govern Elem",359,"01 - 02","Title I School (TA)"," "," "]
["0177","01770505","Medway High",804,"09 - 12","Non-Title I School (NT)"," "," "]
["0177","01770305","Medway Middle",853,"05 - 08","Title I School (TA)"," "," "]
["0177","01770015","Memorial Elementary",416,"03 - 04","Title I School (TA)","Restructuring Year 1 - Subgroups"," "]
["0178","01780003","Early Childhood Center",255,"PK","Title I School (TA)"]
["0178","01780017","Herbert Clark Hoover",271,"K  - 05","Non-Title I School (NT)"," "," "]
["0178","01780025","Horace Mann",277,"K  - 05","Non-Title I School (NT)"," "," "]
["0178","01780020","Lincoln",332,"K  - 05","Title I School (TA)","Improvement Year 2 - Subgroups","Improvement Year 2 - Subgroups"]
["0178","01780505","Melrose High",984,"09 - 12","Non-Title I School (NT)"," "," "]
["0178","01780305","Melrose Middle",877,"06 - 08","Non-Title I School (NT)","Corrective Action - Subgroups","Corrective Action - Subgroups"]
["0178","01780035","Roosevelt",412,"K  - 05","Non-Title I School (NT)"," "," "]
["0178","01780050","Winthrop",367,"K  - 05","Non-Title I School (NT)"," "," "]
["0181","01810050","Comprehensive Grammar School",1187,"PK - 08","Non-Title I School (NT)","Restructuring Year 2+ - Subgroups","Restructuring Year 2+ - Aggregate"]
["0181","01810060","Donald P Timony Grammar",1379,"PK - 08","Title I School (TA)","Restructuring Year 2+ - Aggregate","Restructuring Year 2+ - Aggregate"]
["0181","01810030","Marsh Grammar School",1328,"PK - 08","Non-Title I School (NT)","Restructuring Year 2+ - Subgroups","Restructuring Year 2+ - Subgroups"]
["0181","01810505","Methuen High",1807,"09 - 12","Non-Title I School (NT)","Corrective Action - Subgroups","Corrective Action - Subgroups"]
["0181","01810004","Pleasant Valley School",35,"PK","Non-Title I School (NT)"]
["0181","01810055","Tenney Grammar School",1376,"PK - 08","Title I School (TA)","Restructuring Year 2+ - Subgroups","Restructuring Year 2+ - Subgroups"]
["0182","01820008","Henry B Burkland Intermed",815,"03 - 05","Title I School (TA)","Restructuring Year 2+ - Aggregate","Corrective Action - Subgroups"]
["0182","01820305","John T. Nichols Middle",892,"06 - 08","Non-Title I School (NT)","Restructuring Year 2+ - Subgroups","Restructuring Year 2+ - Subgroups"]
["0182","01820011","Memorial Early Childhood Center",330,"PK - K","Non-Title I School (NT)"]
["0182","01820505","Middleborough High",852,"09 - 12","Non-Title I School (NT)"," "," "]
["0184","01840003","Fuller Meadow",454,"PK - 03","Title I School (TA)"," "," "]
["0184","01840005","Howe-Manning",364,"04 - 06","Non-Title I School (NT)"," ","Improvement Year 2 - Subgroups"]
["0185","01850065","Brookside",539,"K  - 03","Title I School (TA)","Improvement Year 1 - Aggregate"," "]
["0185","01850010","Memorial",448,"K  - 02","Title I School (TA)"," "," "]
["0185","01850505","Milford High",1144,"09 - 12","Non-Title I School (NT)"," "," "]
["0185","01850310","Milford Middle East",311,"08","Non-Title I School (NT)"," ","Restructuring Year 1 - Aggregate"]
["0185","01850075","Shining Star ECC",154,"PK - 02","Non-Title I School (NT)"]
["0185","01850305","Stacy Middle",960,"05 - 07","Title I School (TA)","Corrective Action - Subgroups","Improvement Year 2 - Subgroups"]
["0185","01850090","Woodland",629,"03 - 04","Title I School (TA)","Restructuring Year 2+ - Subgroups","Restructuring Year 2+ - Subgroups"]
["0186","01860017","Elmwood Street",651,"PK - 03","Title I School (TA)"," "," "]
["0186","01860505","Millbury Jr/Sr High",824,"07 - 12","Non-Title I School (NT)"," ","Restructuring Year 2+ - Subgroups"]
["0186","01860025","Raymond E. Shaw Elementary",369,"04 - 06","Title I School (TA)","Restructuring Year 2+ - Subgroups"," "]
["0187","01870005","Clyde F Brown",638,"PK - 04","Title I School (TA)"," "," "]
["0187","01870505","Millis High School",381,"09 - 12","Non-Title I School (NT)"," "," "]
["0187","01870020","Millis Middle",446,"05 - 08","Non-Title I School (NT)","Improvement Year 1 - Subgroups","Restructuring Year 1 - Subgroups"]
["0189","01890410","Charles S Pierce Middle",847,"06 - 08","Non-Title I School (NT)","Restructuring Year 2+ - Subgroups","Restructuring Year 2+ - Subgroups"]
["0189","01890005","Collicot",637,"PK - 05","Non-Title I School (NT)"," ","Improvement Year 2 - Subgroups"]
["0189","01890007","Cunningham School",475,"K  - 05","Non-Title I School (NT)"," "," "]
["0189","01890010","Glover",545,"K  - 05","Non-Title I School (NT)"," "," "]
["0189","01890505","Milton High",1050,"09 - 12","Non-Title I School (NT)","Improvement Year 1 - Subgroups"," "]
["0189","01890020","Tucker",367,"K  - 05","Title I School (TA)","Corrective Action - Subgroups"," "]
["0191","01910310","Granite Valley Middle",464,"05 - 08","Title I School (TA)","Restructuring Year 1 - Subgroups","Restructuring Year 2+ - Subgroups"]
["0191","01910505","Monson High School",365,"09 - 12","Non-Title I School (NT)"," "," "]
["0191","01910025","Quarry Hill Comm",554,"PK - 04","Title I School (TA)"," "," "]
["0196","01960010","Johnson",240,"PK - 06","Title I School (TA)"," "," "]
["0197","01970010","Cyrus Peirce",283,"06 - 08","Non-Title I School (NT)"," ","Improvement Year 2 - Aggregate"]
["0197","01970005","Nantucket Elementary",614,"PK - 05","Title I School (TA)","Restructuring Year 1 - Aggregate","Restructuring Year 2+ - Aggregate"]
["0197","01970505","Nantucket High",392,"09 - 12","Non-Title I School (NT)"," "," "]
["0198","01980005","Bennett-Hemenway",621,"PK - 04","Non-Title I School (NT)"," "," "]
["0198","01980010","Brown",416,"K  - 04","Non-Title I School (NT)"," "," "]
["0198","01980305","J F Kennedy Middle Sch",560,"05 - 08","Non-Title I School (NT)","Corrective Action - Subgroups","Improvement Year 2 - Subgroups"]
["0198","01980031","Johnson",248,"K  - 04","Title I School (TA)"," "," "]
["0198","01980035","Lilja Elementary",375,"K  - 04","Non-Title I School (NT)"," "," "]
["0198","01980043","Memorial",428,"K  - 04","Non-Title I School (NT)"," "," "]
["0198","01980505","Natick High",1303,"09 - 12","Non-Title I School (NT)"," "," "]
["0198","01980310","Wilson Middle",874,"05 - 08","Non-Title I School (NT)","Corrective Action - Subgroups","Corrective Action - Subgroups"]
["0199","01990005","Broadmeadow",610,"K  - 05","Non-Title I School (NT)","Improvement Year 1 - Subgroups","Improvement Year 1 - Subgroups"]
["0199","01990410","High Rock School",448,"06","Non-Title I School (NT)"," "," "]
["0199","01990035","Hillside Elementary",429,"K  - 05","Title I School (TA)","Improvement Year 1 - Subgroups","Improvement Year 1 - Subgroups"]
["0199","01990020","John Eliot",409,"K  - 05","Title I School (TA)"," "," "]
["0199","01990505","Needham High",1433,"09 - 12","Non-Title I School (NT)"," "," "]
["0199","01990050","Newman Elem",726,"PK - 05","Non-Title I School (NT)","Improvement Year 1 - Subgroups","Improvement Year 2 - Subgroups"]
["0199","01990405","Pollard Middle",829,"07 - 08","Non-Title I School (NT)"," ","Corrective Action - Subgroups"]
["0199","01990040","William Mitchell",474,"K  - 05","Non-Title I School (NT)"," "," "]
["0201","02010095","Abraham Lincoln",695,"K  - 05","Title I School (SW)"," "," "]
["0201","02010063","Alfred J Gomes",779,"PK - 05","Title I School (SW)","Restructuring Year 2+ - Subgroups","Restructuring Year 2+ - Subgroups"]
["0201","02010140","Betsey B Winslow",290,"K  - 05","Title I School (SW)","Improvement Year 2 - Subgroups","Improvement Year 2 - Subgroups"]
["0201","02010105","Carlos Pacheco",322,"PK - 05","Title I School (SW)","Improvement Year 1 - Aggregate"," "]
["0201","02010123","Casimir Pulaski",562,"PK - 05","Title I School (SW)","Restructuring Year 2+ - Aggregate","Corrective Action - Subgroups"]
["0201","02010010","Charles S Ashley",331,"K  - 05","Title I School (SW)","Restructuring Year 2+ - Subgroups","Improvement Year 2 - Aggregate"]
["0201","02010015","Elizabeth Carter Brooks",257,"K  - 05","Title I School (SW)","Restructuring Year 1 - Aggregate","Corrective Action - Subgroups"]
["0201","02010075","Ellen R Hathaway",182,"K  - 05","Title I School (SW)","Corrective Action - Aggregate","Improvement Year 2 - Subgroups"]
["0201","02010020","Elwyn G Campbell",246,"PK - 05","Title I School (SW)","Improvement Year 1 - Aggregate"," "]
["0201","02010078","Hayden/McFadden",713,"PK - 05","Title I School (SW)","Restructuring Year 2+ - Aggregate","Restructuring Year 1 - Subgroups"]
["0201","02010085","Horatio A Kempton",123,"K  - 05","Title I School (SW)","Corrective Action - Subgroups"," "]
["0201","02010040","James B Congdon",269,"K  - 05","Title I School (SW)","Restructuring Year 1 - Aggregate"," "]
["0201","02010130","Jireh Swift",218,"K  - 05","Title I School (SW)","Improvement Year 2 - Aggregate","Corrective Action - Subgroups"]
["0201","02010115","John Avery Parker",256,"K  - 05","Title I School (SW)","Restructuring Year 2+ - Aggregate","Restructuring Year 1 - Subgroups"]
["0201","02010050","John B Devalles",355,"K  - 05","Title I School (SW)","Restructuring Year 2+ - Subgroups","Improvement Year 2 - Aggregate"]
["0201","02010070","John Hannigan",229,"01 - 05","Title I School (SW)","Improvement Year 1 - Subgroups","Improvement Year 2 - Aggregate"]
["0201","02010405","Keith Middle School",1028,"06 - 08","Title I School (SW)","Restructuring Year 2+ - Aggregate","Restructuring Year 2+ - Aggregate"]
["0201","02010505","New Bedford High",2711,"09 - 12","Title I School (SW)","Restructuring Year 2+ - Subgroups","Restructuring Year 2+ - Aggregate"]
["0201","02010410","Normandin Middle School",982,"06 - 08","Title I School (SW)","Restructuring Year 2+ - Subgroups","Restructuring Year 2+ - Aggregate"]
["0201","02010415","Roosevelt Middle School",790,"06 - 08","Title I School (SW)","Corrective Action - Aggregate","Restructuring Year 2+ - Subgroups"]
["0201","02010045","Sgt Wm H Carney Acad",582,"PK - 05","Title I School (SW)"," "," "]
["0201","02010125","Thomas R Rodman",144,"K  - 05","Title I School (SW)"," "," "]
["0201","02010510","Trinity Day Academy",40,"07 - 12","Title I School (SW)"]
["0201","02010515","Whaling City JR./SR. High School",48,"07 - 12","Title I School (SW)"]
["0201","02010135","William H Taylor",274,"K  - 05","Title I School (SW)","Improvement Year 1 - Aggregate"," "]
["0204","02040030","Edward G. Molin Elementary School",365,"04 - 05","Non-Title I School (NT)"," ","Corrective Action - Subgroups"]
["0204","02040005","Francis T Bresnahan Elem",480,"01 - 03","Title I School (TA)"," "," "]
["0204","02040010","George W Brown",236,"PK - K","Title I School (TA)"]
["0204","02040505","Newburyport High",695,"09 - 12","Non-Title I School (NT)"," "," "]
["0204","02040305","Rupert A Nock Middle",491,"06 - 08","Non-Title I School (NT)","Corrective Action - Subgroups","Restructuring Year 2+ - Subgroups"]
["0207","02070005","A E Angier",375,"K  - 05","Non-Title I School (NT)","Improvement Year 2 - Subgroups","Improvement Year 1 - Aggregate"]
["0207","02070305","Bigelow Middle",523,"06 - 08","Title I School (TA)"," ","Restructuring Year 1 - Subgroups"]
["0207","02070015","Bowen",450,"K  - 05","Non-Title I School (NT)","Improvement Year 1 - Subgroups"," "]
["0207","02070020","C C Burr",391,"K  - 05","Non-Title I School (NT)"," "," "]
["0207","02070025","Cabot",452,"K  - 05","Non-Title I School (NT)"," "," "]
["0207","02070310","Charles E Brown Middle",666,"06 - 08","Non-Title I School (NT)","Improvement Year 1 - Subgroups","Improvement Year 2 - Subgroups"]
["0207","02070040","Countryside",499,"K  - 05","Non-Title I School (NT)"," "," "]
["0207","02070315","F A Day Middle",751,"06 - 08","Non-Title I School (NT)","Corrective Action - Subgroups","Restructuring Year 2+ - Subgroups"]
["0207","02070055","Franklin",398,"K  - 05","Title I School (TA)","Improvement Year 1 - Subgroups"," "]
["0207","02070075","Horace Mann",374,"K  - 05","Non-Title I School (NT)"," "," "]
["0207","02070120","John Ward",269,"K  - 05","Non-Title I School (NT)"," "," "]
["0207","02070070","Lincoln-Eliot",293,"K  - 05","Title I School (TA)"," "," "]
["0207","02070080","Mason-Rice",442,"K  - 05","Non-Title I School (NT)"," "," "]
["0207","02070105","Memorial Spaulding",460,"K  - 05","Non-Title I School (NT)","Improvement Year 1 - Subgroups"," "]
["0207","02070108","Newton Early Childhood Center",191,"PK","Non-Title I School (NT)"]
["0207","02070505","Newton North High",1846,"09 - 12","Non-Title I School (NT)"," "," "]
["0207","02070510","Newton South High",1706,"09 - 12","Non-Title I School (NT)"," "," "]
["0207","02070320","Oak Hill Middle",603,"06 - 08","Non-Title I School (NT)","Improvement Year 1 - Subgroups","Improvement Year 1 - Subgroups"]
["0207","02070100","Peirce",318,"K  - 05","Non-Title I School (NT)"," "," "]
["0207","02070115","Underwood",280,"K  - 05","Non-Title I School (NT)"," "," "]
["0207","02070125","Williams",298,"K  - 05","Non-Title I School (NT)"," "," "]
["0207","02070130","Zervas",349,"K  - 05","Non-Title I School (NT)"," "," "]
["0208","02080005","Freeman-Centennial",575,"03 - 06","Non-Title I School (NT)"," ","Corrective Action - Subgroups"]
["0208","02080015","H Olive Day",436,"PK - 02","Non-Title I School (NT)"," "," "]
["0209","02090035","Brayton",467,"PK - 07","Title I School (SW)","Improvement Year 1 - Aggregate","Improvement Year 1 - Aggregate"]
["0209","02090505","Drury High",578,"08 - 12","Non-Title I School (NT)","Improvement Year 2 - Subgroups","Improvement Year 2 - Aggregate"]
["0209","02090015","Greylock",247,"K  - 07","Title I School (SW)","Improvement Year 2 - Subgroups","Improvement Year 1 - Aggregate"]
["0209","02090008","J S Sullivan",265,"K  - 07","Title I School (SW)","Improvement Year 1 - Subgroups"," "]
["0210","02100005","Bridge Street",279,"PK - 05","Title I School (TA)","Restructuring Year 2+ - Aggregate","Corrective Action - Aggregate"]
["0210","02100020","Jackson Street",296,"K  - 05","Title I School (SW)","Corrective Action - Subgroups","Corrective Action - Aggregate"]
["0210","02100410","John F Kennedy Middle School",614,"06 - 08","Title I School (TA)","Improvement Year 2 - Subgroups","Restructuring Year 2+ - Subgroups"]
["0210","02100025","Leeds",350,"K  - 05","Non-Title I School (NT)"," ","Improvement Year 1 - Aggregate"]
["0210","02100505","Northampton High",881,"09 - 12","Non-Title I School (NT)","Improvement Year 1 - Subgroups"," "]
["0210","02100029","R. K. Finn Ryan Road",261,"K  - 05","Title I School (TA)","Improvement Year 2 - Subgroups","Corrective Action - Subgroups"]
["0211","02110018","Annie L Sargent School",625,"K  - 05","Non-Title I School (NT)"," "," "]
["0211","02110001","Atkinson",505,"PK - 05","Title I School (TA)","Improvement Year 2 - Subgroups","Improvement Year 2 - Subgroups"]
["0211","02110010","Franklin",552,"K  - 05","Non-Title I School (NT)","Improvement Year 1 - Subgroups","Improvement Year 1 - Subgroups"]
["0211","02110015","Kittredge",307,"K  - 05","Non-Title I School (NT)"," "," "]
["0211","02110505","North Andover High",1271,"09 - 12","Non-Title I School (NT)"," "," "]
["0211","02110305","North Andover Middle",1088,"06 - 08","Non-Title I School (NT)","Restructuring Year 2+ - Subgroups","Restructuring Year 1 - Subgroups"]
["0211","02110020","Thomson",290,"K  - 05","Title I School (TA)"," "," "]
["0212","02120005","Allen Avenue",221,"K  - 04","Non-Title I School (NT)"," "," "]
["0212","02120007","Amvet Boulevard",402,"K  - 05","Title I School (TA)"," "," "]
["0212","02120030","Community",332,"K  - 05","Title I School (TA)","Improvement Year 2 - Subgroups"," "]
["0212","02120010","Falls",284,"K  - 05","Non-Title I School (NT)"," "," "]
["0212","02120013","Joseph W Martin Jr Elem",699,"K  - 05","Non-Title I School (NT)"," "," "]
["0212","02120505","North Attleboro High",1206,"09 - 12","Non-Title I School (NT)"," "," "]
["0212","02120020","North Attleborough ELC",123,"PK","Non-Title I School (NT)"]
["0212","02120305","North Attleborough Middle",1162,"06 - 08","Non-Title I School (NT)","Improvement Year 2 - Subgroups","Restructuring Year 2+ - Subgroups"]
["0212","02120015","Roosevelt Avenue",263,"K  - 05","Non-Title I School (NT)"," "," "]
["0213","02130015","Fannie E Proctor",310,"K  - 05","Title I School (TA)","Improvement Year 1 - Aggregate","Improvement Year 1 - Aggregate"]
["0213","02130003","Lincoln Street",297,"K  - 05","Title I School (TA)","Improvement Year 1 - Subgroups"," "]
["0213","02130014","Marguerite E Peaslee",291,"K  - 05","Non-Title I School (NT)"," "," "]
["0213","02130020","Marion E Zeh",353,"PK - 05","Non-Title I School (NT)"," "," "]
["0213","02130305","Robert E. Melican Middle School",649,"06 - 08","Title I School (TA)","Improvement Year 1 - Subgroups","Corrective Action - Subgroups"]
["0214","02140005","Northbridge Elementary",567,"PK - 01","Title I School (TA)"]
["0214","02140505","Northbridge High",638,"09 - 12","Non-Title I School (NT)"," "," "]
["0214","02140305","Northbridge Middle",818,"05 - 08","Title I School (TA)","Improvement Year 1 - Subgroups","Restructuring Year 2+ - Subgroups"]
["0214","02140001","W Edward Balmer",580,"02 - 04","Title I School (TA)","Corrective Action - Subgroups","Improvement Year 1 - Aggregate"]
["0215","02150015","North Brookfield Elem",334,"K  - 06","Title I School (TA)","Restructuring Year 1 - Subgroups","Restructuring Year 1 - Aggregate"]
["0215","02150505","North Brookfield High",261,"07 - 12","Non-Title I School (NT)"," "," "]
["0217","02170003","E Ethel Little School",413,"PK - 05","Title I School (TA)"," "," "]
["0217","02170010","J Turner Hood",396,"PK - 05","Title I School (TA)"," "," "]
["0217","02170005","L D Batchelder",536,"K  - 05","Non-Title I School (NT)"," "," "]
["0217","02170505","North Reading High",708,"09 - 12","Non-Title I School (NT)"," "," "]
["0217","02170305","North Reading Middle",622,"06 - 08","Title I School (TA)","Improvement Year 1 - Subgroups","Corrective Action - Subgroups"]
["0218","02180060","Henri A. Yelle",422,"04 - 05","Title I School (TA)","Restructuring Year 1 - Subgroups","Improvement Year 1 - Subgroups"]
["0218","02180015","J C Solmonese",549,"K  - 03","Title I School (TA)"," "," "]
["0218","02180010","L G Nourse Elementary",353,"PK - 03","Title I School (TA)"," "," "]
["0218","02180505","Norton High",758,"09 - 12","Non-Title I School (NT)"," "," "]
["0218","02180305","Norton Middle",698,"06 - 08","Non-Title I School (NT)","Improvement Year 1 - Subgroups","Restructuring Year 2+ - Subgroups"]
["0219","02190005","Grace Farrar Cole",539,"PK - 05","Non-Title I School (NT)","Improvement Year 1 - Subgroups"," "]
["0219","02190505","Norwell High",646,"09 - 12","Non-Title I School (NT)"," "," "]
["0219","02190405","Norwell Middle School",580,"06 - 08","Title I School (TA)"," "," "]
["0219","02190020","William G Vinal",578,"PK - 05","Non-Title I School (NT)"," "," "]
["0220","02200005","Balch",282,"01 - 05","Title I School (TA)"," ","Corrective Action - Subgroups"]
["0220","02200025","Charles J Prescott",233,"K  - 05","Non-Title I School (NT)"," "," "]
["0220","02200010","Cornelius M Callahan",210,"01 - 05","Title I School (TA)"," "," "]
["0220","02200305","Dr. Philip O. Coakley Middle School",763,"06 - 08","Title I School (TA)","Corrective Action - Subgroups","Restructuring Year 2+ - Subgroups"]
["0220","02200015","F A Cleveland",309,"01 - 05","Non-Title I School (NT)"," "," "]
["0220","02200075","George F. Willett",388,"PK - K","Title I School (TA)"]
["0220","02200020","John P Oldham",238,"01 - 05","Title I School (TA)"," "," "]
["0220","02200505","Norwood High",1031,"09 - 12","Non-Title I School (NT)"," "," "]
["0221","02210005","Oak Bluffs Elementary",408,"PK - 08","Title I School (TA)","Corrective Action - Aggregate","Improvement Year 1 - Subgroups"]
["0223","02230003","Butterfield",216,"05 - 06","Title I School (TA)","Restructuring Year 1 - Aggregate","Improvement Year 2 - Aggregate"]
["0223","02230010","Dexter Park",288,"PK - 05","Title I School (TA)","Improvement Year 2 - Aggregate","Corrective Action - Subgroups"]
["0223","02230015","Fisher Hill",282,"K  - 02","Title I School (SW)","Improvement Year 2 - Aggregate"," "]
["0224","02240005","Orleans Elementary",197,"PK - 05","Title I School (TA)"," "," "]
["0226","02260010","Alfred M Chaffee",450,"K  - 02","Title I School (TA)"]
["0226","02260005","Clara Barton",399,"PK - 04","Title I School (TA)","Improvement Year 1 - Aggregate","Improvement Year 1 - Aggregate"]
["0226","02260505","Oxford High",527,"09 - 12","Non-Title I School (NT)"," "," "]
["0226","02260405","Oxford Middle",653,"05 - 08","Title I School (TA)","Improvement Year 1 - Subgroups","Restructuring Year 2+ - Aggregate"]
["0227","02270305","Converse Middle",404,"05 - 07","Title I School (TA)","Improvement Year 2 - Subgroups","Restructuring Year 2+ - Subgroups"]
["0227","02270008","Old Mill Pond",657,"PK - 04","Title I School (TA)","Restructuring Year 1 - Subgroups","Improvement Year 1 - Aggregate"]
["0227","02270505","Palmer High",558,"08 - 12","Non-Title I School (NT)","Corrective Action - Subgroups","Restructuring Year 2+ - Aggregate"]
["0229","02290005","Captain Samuel Brown",341,"K  - 05","Title I School (TA)","Corrective Action - Aggregate"," "]
["0229","02290015","Center",361,"K  - 05","Non-Title I School (NT)"," ","Improvement Year 2 - Subgroups"]
["0229","02290305","J Henry Higgins Middle",1397,"06 - 08","Non-Title I School (NT)","Improvement Year 2 - Subgroups","Restructuring Year 2+ - Subgroups"]
["0229","02290007","John E Burke",314,"K  - 05","Non-Title I School (NT)"," "," "]
["0229","02290016","John E. McCarthy",295,"PK - 05","Title I School (TA)"," "," "]
["0229","02290510","Peabody Veterans Memorial High",1861,"09 - 12","Non-Title I School (NT)","Improvement Year 2 - Subgroups","Restructuring Year 2+ - Subgroups"]
["0229","02290035","South Memorial",404,"PK - 05","Non-Title I School (NT)"," ","Corrective Action - Aggregate"]
["0229","02290010","Thomas Carroll",535,"K  - 05","Title I School (SW)","Restructuring Year 2+ - Subgroups","Corrective Action - Subgroups"]
["0229","02290045","West Memorial",239,"K  - 05","Non-Title I School (NT)","Improvement Year 1 - Aggregate","Improvement Year 1 - Aggregate"]
["0229","02290027","William A Welch Sr",328,"PK - 05","Title I School (SW)"," "," "]
["0230","02300005","Pelham Elementary",120,"K  - 06","Non-Title I School (NT)"," "," "]
["0231","02310003","Bryantville Elementary",687,"K  - 06","Title I School (TA)"," ","Improvement Year 2 - Subgroups"]
["0231","02310010","Hobomock Elementary",481,"K  - 06","Non-Title I School (NT)"," "," "]
["0231","02310015","North Pembroke Elem",733,"PK - 06","Non-Title I School (NT)","Corrective Action - Subgroups","Improvement Year 1 - Subgroups"]
["0231","02310305","Pembroke Community Middle School",545,"07 - 08","Title I School (TA)","Improvement Year 1 - Subgroups","Restructuring Year 1 - Subgroups"]
["0231","02310505","Pembroke High School",932,"09 - 12","Non-Title I School (NT)"," "," "]
["0234","02340005","Petersham Center",113,"K  - 06","Non-Title I School (NT)","Improvement Year 2 - Aggregate","Improvement Year 1 - Aggregate"]
["0236","02360010","Allendale",315,"K  - 05","Non-Title I School (NT)","Improvement Year 2 - Subgroups"," "]
["0236","02360065","Crosby",384,"PK - 05","Title I School (TA)","Restructuring Year 2+ - Subgroups","Improvement Year 2 - Aggregate"]
["0236","02360035","Egremont",488,"K  - 05","Non-Title I School (NT)"," "," "]
["0236","02360305","John T Reid Middle",617,"06 - 08","Title I School (TA)"," ","Restructuring Year 2+ - Subgroups"]
["0236","02360055","Morningside Comm Sch",408,"PK - 05","Title I School (SW)","Restructuring Year 1 - Aggregate","Restructuring Year 1 - Subgroups"]
["0236","02360505","Pittsfield High",976,"09 - 12","Non-Title I School (NT)","Restructuring Year 2+ - Subgroups","Restructuring Year 1 - Subgroups"]
["0236","02360045","Robert T. Capeless Elementary School",262,"PK - 05","Non-Title I School (NT)","Improvement Year 1 - Aggregate","Improvement Year 1 - Aggregate"]
["0236","02360105","Silvio O Conte Community",403,"PK - 05","Title I School (SW)"," "," "]
["0236","02360090","Stearns",247,"K  - 05","Non-Title I School (NT)"," "," "]
["0236","02360510","Taconic High",921,"09 - 12","Non-Title I School (NT)","Improvement Year 2 - Subgroups","Improvement Year 2 - Subgroups"]
["0236","02360310","Theodore Herberg Middle",635,"06 - 08","Title I School (TA)","Restructuring Year 2+ - Subgroups","Restructuring Year 2+ - Subgroups"]
["0236","02360100","Williams",322,"K  - 05","Non-Title I School (NT)","Improvement Year 1 - Aggregate"," "]
["0238","02380010","Anna Ware Jackson",477,"PK - 03","Title I School (TA)"," "," "]
["0238","02380005","Beatrice H Wood Elem",326,"04 - 06","Non-Title I School (NT)","Improvement Year 1 - Subgroups","Improvement Year 1 - Aggregate"]
["0239","02390005","Cold Spring",204,"K  - 05","Title I School (SW)","Improvement Year 1 - Aggregate","Improvement Year 2 - Aggregate"]
["0239","02390011","Federal Furnace Sch",434,"K  - 05","Title I School (TA)","Improvement Year 2 - Subgroups"," "]
["0239","02390010","Hedge",174,"K  - 05","Title I School (SW)","Corrective Action - Subgroups","Improvement Year 1 - Subgroups"]
["0239","02390012","Indian Brook",722,"K  - 05","Non-Title I School (NT)"," "," "]
["0239","02390015","Manomet Elementary",331,"K  - 05","Title I School (TA)","Corrective Action - Subgroups","Improvement Year 1 - Aggregate"]
["0239","02390003","Mount Pleasant",150,"PK","Non-Title I School (NT)"]
["0239","02390030","Nathaniel Morton Elem",607,"K  - 05","Non-Title I School (NT)","Improvement Year 2 - Subgroups","Improvement Year 2 - Subgroups"]
["0239","02390405","Plymouth Commun Intermed",1158,"06 - 08","Non-Title I School (NT)","Restructuring Year 2+ - Subgroups","Restructuring Year 2+ - Subgroups"]
["0239","02390505","Plymouth North High",1071,"09 - 12","Non-Title I School (NT)"," "," "]
["0239","02390515","Plymouth South High",1409,"09 - 12","Non-Title I School (NT)","Improvement Year 1 - Subgroups"," "]
["0239","02390305","Plymouth South Middle",712,"05 - 08","Non-Title I School (NT)","Improvement Year 1 - Subgroups","Improvement Year 2 - Subgroups"]
["0239","02390046","South Elementary",729,"PK - 04","Non-Title I School (NT)","Improvement Year 2 - Aggregate","Improvement Year 2 - Aggregate"]
["0239","02390047","West Elementary",425,"K  - 05","Non-Title I School (NT)"," "," "]
["0240","02400010","Dennett Elementary",231,"K  - 06","Title I School (TA)"," "," "]
["0242","02420020","Provincetown Schools",125,"PK - 12","Title I School (TA)","Improvement Year 1 - Aggregate","Improvement Year 2 - Aggregate"]
["0243","02430040","Atherton Hough",273,"K  - 05","Non-Title I School (NT)"," "," "]
["0243","02430305","Atlantic Middle",467,"06 - 08","Non-Title I School (NT)","Improvement Year 2 - Subgroups","Restructuring Year 2+ - Subgroups"]
["0243","02430020","Beechwood Knoll Elem",364,"K  - 05","Non-Title I School (NT)"," "," "]
["0243","02430310","Broad Meadows Middle",300,"06 - 08","Non-Title I School (NT)","Improvement Year 1 - Subgroups","Improvement Year 2 - Aggregate"]
["0243","02430315","Central Middle",559,"06 - 08","Non-Title I School (NT)","Improvement Year 2 - Subgroups","Improvement Year 2 - Subgroups"]
["0243","02430025","Charles A Bernazzani Elem",347,"K  - 05","Non-Title I School (NT)","Corrective Action - Subgroups"," "]
["0243","02430055","Clifford H Marshall Elem",530,"K  - 04","Title I School (SW)","Restructuring Year 2+ - Aggregate","Improvement Year 2 - Aggregate"]
["0243","02430075","Francis W Parker",297,"K  - 05","Title I School (SW)","Restructuring Year 1 - Aggregate","Improvement Year 2 - Aggregate"]
["0243","02430035","Lincoln-Hancock Comm Sch",629,"PK - 04","Title I School (SW)","Restructuring Year 2+ - Aggregate","Restructuring Year 2+ - Aggregate"]
["0243","02430060","Merrymount",358,"K  - 05","Non-Title I School (NT)"," "," "]
["0243","02430065","Montclair",395,"K  - 05","Non-Title I School (NT)","Restructuring Year 2+ - Subgroups","Improvement Year 2 - Aggregate"]
["0243","02430510","North Quincy High",1362,"09 - 12","Non-Title I School (NT)"," "," "]
["0243","02430325","Point Webster Middle",385,"05 - 08","Non-Title I School (NT)","Restructuring Year 1 - Aggregate","Restructuring Year 2+ - Aggregate"]
["0243","02430505","Quincy High",1441,"09 - 12","Non-Title I School (NT)","Restructuring Year 1 - Subgroups","Restructuring Year 2+ - Subgroups"]
["0243","02430320","Reay E Sterling Middle",346,"05 - 08","Non-Title I School (NT)","Corrective Action - Subgroups","Restructuring Year 2+ - Aggregate"]
["0243","02430090","Snug Harbor Comm School",421,"PK - 05","Title I School (SW)"," ","Improvement Year 1 - Aggregate"]
["0243","02430095","Squantum",350,"K  - 05","Non-Title I School (NT)"," "," "]
["0243","02430110","Wollaston School",301,"K  - 05","Non-Title I School (NT)","Restructuring Year 1 - Subgroups","Improvement Year 1 - Aggregate"]
["0244","02440020","Elizabeth G Lyons Elem",357,"K  - 06","Title I School (TA)","Restructuring Year 2+ - Aggregate","Corrective Action - Subgroups"]
["0244","02440018","J F Kennedy Elem",463,"PK - 06","Title I School (TA)","Restructuring Year 2+ - Aggregate","Restructuring Year 2+ - Aggregate"]
["0244","02440015","Margaret L Donovan",467,"K  - 06","Title I School (TA)","Restructuring Year 2+ - Aggregate","Restructuring Year 2+ - Aggregate"]
["0244","02440040","Martin E Young Elem",375,"K  - 06","Title I School (TA)","Restructuring Year 1 - Aggregate","Restructuring Year 2+ - Aggregate"]
["0244","02440410","Randolph Community Middle",470,"07 - 08","Non-Title I School (NT)","Restructuring Year 2+ - Subgroups","Restructuring Year 2+ - Subgroups"]
["0244","02440505","Randolph High",744,"09 - 12","Non-Title I School (NT)"," "," "]
["0246","02460002","Alice M Barrows",399,"K  - 05","Non-Title I School (NT)"," "," "]
["0246","02460305","Arthur W Coolidge Middle",490,"06 - 08","Non-Title I School (NT)"," "," "]
["0246","02460005","Birch Meadow",419,"K  - 05","Non-Title I School (NT)"," ","Improvement Year 1 - Subgroups"]
["0246","02460017","J Warren Killam",447,"K  - 05","Title I School (TA)","Improvement Year 2 - Subgroups","Corrective Action - Subgroups"]
["0246","02460010","Joshua Eaton",425,"K  - 05","Non-Title I School (NT)"," "," "]
["0246","02460505","Reading Memorial High",1336,"09 - 12","Non-Title I School (NT)"," "," "]
["0246","02460310","Walter S Parker Middle",593,"06 - 08","Non-Title I School (NT)","Improvement Year 1 - Subgroups","Restructuring Year 2+ - Subgroups"]
["0246","02460020","Wood End Elementary School",350,"K  - 05","Non-Title I School (NT)","Improvement Year 1 - Subgroups"," "]
["0248","02480003","A. C. Whelan Elementary School",757,"K  - 05","Title I School (SW)","Improvement Year 2 - Subgroups","Improvement Year 1 - Subgroups"]
["0248","02480025","Abraham Lincoln",578,"PK - 05","Title I School (SW)","Corrective Action - Subgroups"," "]
["0248","02480013","Beachmont Veterans Memorial School",307,"PK - 05","Title I School (SW)"," "," "]
["0248","02480056","Garfield Elementary School",751,"PK - 05","Title I School (SW)","Improvement Year 1 - Aggregate","Improvement Year 2 - Aggregate"]
["0248","02480057","Garfield Middle School",438,"06 - 08","Title I School (SW)","Improvement Year 1 - Subgroups","Restructuring Year 2+ - Aggregate"]
["0248","02480050","Paul Revere",389,"K  - 05","Title I School (SW)","Corrective Action - Subgroups"," "]
["0248","02480505","Revere High",1474,"09 - 12","Title I School (SW)"," "," "]
["0248","02480014","Rumney Marsh Academy",496,"06 - 08","Title I School (SW)"," ","Restructuring Year 2+ - Subgroups"]
["0248","02480520","Seacoast School",125,"09 - 12","Title I School (SW)"]
["0248","02480305","Susan B. Anthony Middle School",444,"06 - 08","Title I School (SW)","Improvement Year 2 - Aggregate","Restructuring Year 1 - Aggregate"]
["0248","02480035","William McKinley",470,"K  - 05","Title I School (SW)","Restructuring Year 1 - Aggregate","Corrective Action - Subgroups"]
["0249","02490005","Richmond Consolidated",166,"PK - 08","Non-Title I School (NT)"," ","Improvement Year 1 - Aggregate"]
["0250","02500005","Rochester Memorial",543,"PK - 06","Title I School (TA)","Corrective Action - Subgroups","Improvement Year 2 - Subgroups"]
["0251","02510060","Jefferson Elementary School",362,"PK - 05","Title I School (TA)","Restructuring Year 1 - Aggregate"," "]
["0251","02510305","John W Rogers Middle",547,"06 - 08","Non-Title I School (NT)","Restructuring Year 1 - Subgroups","Restructuring Year 2+ - Aggregate"]
["0251","02510020","Memorial Park",299,"01 - 05","Title I School (TA)","Improvement Year 1 - Aggregate"," "]
["0251","02510025","R Stewart Esten",456,"K  - 05","Non-Title I School (NT)"," ","Improvement Year 2 - Subgroups"]
["0251","02510505","Rockland Senior High",596,"09 - 12","Non-Title I School (NT)"," "," "]
["0252","02520005","Rockport Elementary",393,"PK - 05","Title I School (TA)"," "," "]
["0252","02520510","Rockport High",305,"09 - 12","Non-Title I School (NT)"," "," "]
["0252","02520305","Rockport Middle",248,"06 - 08","Non-Title I School (NT)"," ","Improvement Year 1 - Subgroups"]
["0253","02530005","Rowe Elem",66,"PK - 06","Non-Title I School (NT)"," "," "]
["0258","02580003","Bates",335,"K  - 05","Title I School (SW)","Restructuring Year 2+ - Aggregate","Restructuring Year 1 - Aggregate"]
["0258","02580005","Bentley",358,"K  - 05","Title I School (SW)","Restructuring Year 2+ - Aggregate","Restructuring Year 1 - Aggregate"]
["0258","02580015","Carlton",205,"K  - 05","Title I School (SW)","Corrective Action - Aggregate","Improvement Year 2 - Subgroups"]
["0258","02580305","Collins Middle",659,"06 - 08","Title I School (SW)","Restructuring Year 2+ - Subgroups","Restructuring Year 2+ - Aggregate"]
["0258","02580030","Horace Mann Laboratory",313,"K  - 05","Title I School (SW)","Restructuring Year 1 - Aggregate","Improvement Year 2 - Aggregate"]
["0258","02580025","Nathaniel Bowditch",507,"K  - 08","Title I School (SW)","Restructuring Year 2+ - Aggregate","Restructuring Year 2+ - Aggregate"]
["0258","02580001","Salem Early Childhood",116,"PK","Non-Title I School (NT)"]
["0258","02580505","Salem High",1231,"09 - 12","Non-Title I School (NT)","Restructuring Year 2+ - Subgroups","Restructuring Year 1 - Subgroups"]
["0258","02580050","Saltonstall School",381,"K  - 08","Title I School (SW)","Corrective Action - Subgroups","Restructuring Year 2+ - Subgroups"]
["0258","02580070","Witchcraft Heights",460,"K  - 05","Title I School (SW)","Restructuring Year 2+ - Subgroups","Corrective Action - Subgroups"]
["0261","02610010","Forestdale",766,"K  - 08","Title I School (TA)","Improvement Year 1 - Subgroups","Improvement Year 2 - Subgroups"]
["0261","02610005","Henry T Wing",847,"PK - 08","Non-Title I School (NT)"," ","Restructuring Year 1 - Subgroups"]
["0261","02610025","Oak Ridge",802,"K  - 08","Non-Title I School (NT)","Corrective Action - Subgroups","Restructuring Year 2+ - Subgroups"]
["0261","02610505","Sandwich High",1017,"09 - 12","Non-Title I School (NT)"," "," "]
["0262","02620001","Ballard School",81,"PK","Non-Title I School (NT)"]
["0262","02620305","Belmonte Saugus Middle",709,"06 - 08","Title I School (TA)","Corrective Action - Subgroups","Restructuring Year 2+ - Aggregate"]
["0262","02620067","Douglas Waybright",224,"K  - 05","Non-Title I School (NT)"," "," "]
["0262","02620040","Lynnhurst",277,"K  - 05","Non-Title I School (NT)"," "," "]
["0262","02620050","Oaklandvale",230,"K  - 05","Title I School (TA)"," "," "]
["0262","02620505","Saugus High",727,"09 - 12","Non-Title I School (NT)"," "," "]
["0262","02620065","Veterans Memorial",601,"PK - 05","Title I School (TA)"," ","Restructuring Year 1 - Subgroups"]
["0263","02630010","Savoy Elem",39,"PK - 05","Title I School (TA)"," "," "]
["0264","02640007","Cushing Elementary",442,"K  - 06","Non-Title I School (NT)"," "," "]
["0264","02640305","Gates Intermediate School",508,"07 - 09","Title I School (TA)"," ","Improvement Year 2 - Subgroups"]
["0264","02640010","Hatherly Elementary",361,"K  - 06","Non-Title I School (NT)"," "," "]
["0264","02640015","Jenkins Elementary School",642,"K  - 06","Title I School (TA)"," "," "]
["0264","02640505","Scituate High School",906,"09 - 12","Non-Title I School (NT)"," "," "]
["0264","02640020","Wampatuck Elementary",417,"K  - 06","Non-Title I School (NT)"," "," "]
["0265","02650405","Dr. Kevin M. Hurley Middle School",525,"06 - 08","Title I School (TA)"," ","Improvement Year 2 - Subgroups"]
["0265","02650007","George R Martin",479,"PK - 05","Title I School (TA)","Improvement Year 2 - Aggregate"," "]
["0265","02650015","Mildred Aitken School",460,"K  - 05","Non-Title I School (NT)"," "," "]
["0265","02650505","Seekonk High",677,"09 - 12","Non-Title I School (NT)"," "," "]
["0266","02660005","Cottage Street",429,"K  - 05","Title I School (TA)"," "," "]
["0266","02660010","East Elementary",421,"PK - 05","Non-Title I School (NT)"," "," "]
["0266","02660015","Heights Elementary",598,"K  - 05","Title I School (TA)"," "," "]
["0266","02660505","Sharon High",1178,"09 - 12","Non-Title I School (NT)"," "," "]
["0266","02660305","Sharon Middle",809,"06 - 08","Non-Title I School (NT)","Improvement Year 1 - Subgroups","Improvement Year 2 - Subgroups"]
["0269","02690010","Pine Hill",430,"PK - 05","Title I School (TA)"," "," "]
["0271","02710005","Beal School",355,"K  - 01","Non-Title I School (NT)"," "," "]
["0271","02710015","Calvin Coolidge",381,"K  - 04","Title I School (TA)","Improvement Year 1 - Subgroups"," "]
["0271","02710020","Floral Street School",745,"01 - 04","Title I School (TA)","Corrective Action - Subgroups"," "]
["0271","02710030","Oak Middle School",915,"07 - 08","Non-Title I School (NT)"," "," "]
["0271","02710040","Parker Road Preschool",239,"PK","Non-Title I School (NT)"]
["0271","02710305","Sherwood Middle School",934,"05 - 06","Non-Title I School (NT)","Improvement Year 2 - Subgroups","Improvement Year 2 - Subgroups"]
["0271","02710505","Shrewsbury Sr High",1617,"09 - 12","Non-Title I School (NT)"," "," "]
["0271","02710035","Spring Street",381,"K  - 04","Non-Title I School (NT)"," "," "]
["0271","02710025","Walter J Paton",371,"01 - 04","Non-Title I School (NT)"," "," "]
["0272","02720005","Shutesbury Elementary",146,"PK - 06","Title I School (TA)"," "," "]
["0273","02730005","Chace Street",364,"PK - 05","Title I School (TA)"," "," "]
["0273","02730008","North Elementary",477,"K  - 05","Title I School (TA)","Improvement Year 1 - Aggregate","Improvement Year 1 - Aggregate"]
["0273","02730305","Somerset Middle School",584,"06 - 08","Non-Title I School (NT)","Improvement Year 2 - Subgroups","Restructuring Year 1 - Subgroups"]
["0273","02730015","South",233,"K  - 05","Title I School (TA)"," ","Improvement Year 1 - Aggregate"]
["0273","02730025","Wilbur",136,"K  - 05","Title I School (TA)"," "," "]
["0274","02740087","Albert F. Argenziano School at Lincoln Park",553,"K  - 08","Title I School (SW)","Restructuring Year 2+ - Aggregate","Improvement Year 1 - Aggregate"]
["0274","02740075","Arthur D Healey",533,"K  - 08","Title I School (SW)","Restructuring Year 2+ - Aggregate","Restructuring Year 2+ - Aggregate"]
["0274","02740015","Benjamin G Brown",264,"K  - 06","Non-Title I School (NT)"," "," "]
["0274","02740005","Capuano ECC",406,"PK - K","Title I School (SW)"]
["0274","02740111","E Somerville Community",524,"01 - 08","Title I School (SW)","Restructuring Year 1 - Aggregate","Restructuring Year 2+ - Aggregate"]
["0274","02740510","Full Circle High School",41,"09 - 12","Non-Title I School (NT)"]
["0274","02740083","John F Kennedy",448,"PK - 08","Title I School (SW)","Restructuring Year 2+ - Subgroups","Restructuring Year 2+ - Subgroups"]
["0274","02740410","Next Wave Junior High",26,"06 - 09","Title I School (SW)"]
["0274","02740505","Somerville High",1344,"09 - 12","Non-Title I School (NT)","Restructuring Year 2+ - Subgroups","Restructuring Year 2+ - Subgroups"]
["0274","02740115","West Somerville Neighborhood",324,"PK - 08","Title I School (SW)","Improvement Year 2 - Subgroups","Restructuring Year 2+ - Subgroups"]
["0274","02740120","Winter Hill Community",392,"K  - 08","Title I School (SW)","Restructuring Year 2+ - Aggregate","Restructuring Year 2+ - Aggregate"]
["0275","02750005","William E Norris",557,"PK - 06","Title I School (TA)","Improvement Year 2 - Subgroups","Corrective Action - Subgroups"]
["0276","02760050","Albert S. Woodward Memorial School",308,"02 - 03","Title I School (TA)"," "," "]
["0276","02760020","Margaret A Neary",368,"04 - 05","Title I School (TA)"," "," "]
["0276","02760008","Mary E Finn School",325,"PK - 01","Non-Title I School (NT)"," "," "]
["0276","02760305","P Brent Trottier",499,"06 - 08","Title I School (TA)","Improvement Year 1 - Subgroups"," "]
["0277","02770005","Charlton Street",398,"02 - 04","Title I School (SW)","Restructuring Year 2+ - Aggregate","Improvement Year 2 - Aggregate"]
["0277","02770010","Eastford Road",428,"PK - 01","Title I School (SW)"]
["0277","02770305","Mary E Wells Jr High",511,"04 - 08","Non-Title I School (NT)","Restructuring Year 2+ - Subgroups","Restructuring Year 2+ - Aggregate"]
["0277","02770505","Southbridge High",445,"07 - 12","Non-Title I School (NT)","Restructuring Year 1 - Aggregate","Restructuring Year 1 - Aggregate"]
["0277","02770020","West Street",422,"PK - 05","Title I School (SW)","Restructuring Year 2+ - Aggregate","Restructuring Year 2+ - Subgroups"]
["0278","02780305","Michael E. Smith Middle School",631,"05 - 08","Non-Title I School (NT)","Corrective Action - Subgroups","Restructuring Year 2+ - Aggregate"]
["0278","02780020","Mosier",449,"02 - 04","Title I School (TA)","Restructuring Year 2+ - Subgroups","Improvement Year 2 - Subgroups"]
["0278","02780015","Plains Elementary",340,"PK - 01","Title I School (TA)"," "," "]
["0278","02780505","South Hadley High",655,"09 - 12","Non-Title I School (NT)"," "," "]
["0281","02810095","Alfred G Zanetti",434,"PK - 08","Title I School (SW)","Restructuring Year 1 - Subgroups","Restructuring Year 1 - Aggregate"]
["0281","02810175","Alice B Beal Elem",301,"K  - 05","Title I School (SW)","Corrective Action - Subgroups","Restructuring Year 2+ - Aggregate"]
["0281","02810165","Arthur T Talmadge",295,"K  - 05","Title I School (SW)"," "," "]
["0281","02810360","Balliet Middle School",null,null,"Non-Title I School (NT)"]
["0281","02810010","Boland School",748,"PK - 05","Title I School (SW)","Restructuring Year 2+ - Aggregate","Restructuring Year 2+ - Aggregate"]
["0281","02810025","Brightwood",403,"K  - 05","Title I School (SW)","Restructuring Year 2+ - Aggregate","Restructuring Year 2+ - Aggregate"]
["0281","02810310","Chestnut Street Middle",967,"06 - 08","Title I School (SW)","Restructuring Year 2+ - Aggregate","Restructuring Year 2+ - Aggregate"]
["0281","02810035","Daniel B Brunton",513,"PK - 05","Title I School (SW)","Restructuring Year 2+ - Aggregate","Restructuring Year 2+ - Subgroups"]
["0281","02810125","Dryden Memorial",296,"PK - 05","Title I School (SW)"," "," "]
["0281","02810565","Early College High School",null,null,"Non-Title I School (NT)"]
["0281","02810030","Elias Brookings",343,"PK - 05","Title I School (SW)","Restructuring Year 2+ - Aggregate","Restructuring Year 2+ - Aggregate"]
["0281","02810325","Forest Park Middle",798,"06 - 08","Title I School (SW)","Restructuring Year 2+ - Aggregate","Restructuring Year 2+ - Aggregate"]
["0281","02810075","Frank H Freedman",282,"K  - 05","Title I School (SW)","Restructuring Year 2+ - Aggregate","Improvement Year 2 - Subgroups"]
["0281","02810080","Frederick Harris",578,"PK - 05","Title I School (SW)","Restructuring Year 2+ - Aggregate"," "]
["0281","02810575","Gateway to College",null,null,"Non-Title I School (NT)"]
["0281","02810195","Gerena",702,"PK - 05","Title I School (SW)","Restructuring Year 2+ - Aggregate","Restructuring Year 2+ - Aggregate"]
["0281","02810065","Glenwood",311,"K  - 05","Title I School (SW)","Improvement Year 2 - Aggregate","Improvement Year 1 - Aggregate"]
["0281","02810068","Glickman Elementary",261,"K  - 05","Title I School (SW)","Restructuring Year 1 - Aggregate","Corrective Action - Aggregate"]
["0281","02810510","High School Of Commerce",1286,"09 - 12","Title I School (SW)","Restructuring Year 2+ - Aggregate","Restructuring Year 2+ - Aggregate"]
["0281","02810530","High School/Science-Tech",1267,"09 - 12","Title I School (SW)","Restructuring Year 2+ - Aggregate","Restructuring Year 2+ - Aggregate"]
["0281","02810050","Hiram L Dorman",298,"K  - 05","Title I School (SW)","Restructuring Year 1 - Subgroups","Improvement Year 2 - Subgroups"]
["0281","02810085","Homer Street",416,"K  - 05","Title I School (SW)","Restructuring Year 2+ - Aggregate","Restructuring Year 2+ - Aggregate"]
["0281","02810100","Indian Orchard Elem",690,"PK - 05","Title I School (SW)","Restructuring Year 2+ - Aggregate","Restructuring Year 2+ - Subgroups"]
["0281","02810328","John F Kennedy Middle",646,"06 - 08","Title I School (SW)","Restructuring Year 2+ - Aggregate","Restructuring Year 2+ - Aggregate"]
["0281","02810320","John J Duggan Middle",432,"06 - 08","Title I School (SW)","Restructuring Year 2+ - Subgroups","Restructuring Year 2+ - Aggregate"]
["0281","02810110","Kensington Avenue",362,"K  - 05","Title I School (SW)","Corrective Action - Aggregate"," "]
["0281","02810115","Liberty",276,"K  - 05","Title I School (SW)","Improvement Year 2 - Aggregate"," "]
["0281","02810560","Liberty Preparatory Academy",null,null,"Non-Title I School (NT)"]
["0281","02810120","Lincoln",349,"K  - 05","Title I School (SW)","Restructuring Year 2+ - Aggregate"," "]
["0281","02810330","M Marcus Kiley Middle",828,"06 - 08","Title I School (SW)","Restructuring Year 2+ - Aggregate","Restructuring Year 2+ - Aggregate"]
["0281","02810060","Margaret C Ells",245,"PK - 01","Title I School (SW)"," "," "]
["0281","02810140","Mary M Lynch",258,"K  - 05","Title I School (SW)","Restructuring Year 1 - Aggregate","Improvement Year 1 - Aggregate"]
["0281","02810155","Mary M Walsh",272,"K  - 05","Title I School (SW)","Restructuring Year 2+ - Aggregate","Restructuring Year 1 - Aggregate"]
["0281","02810145","Mary O Pottenger",415,"K  - 05","Title I School (SW)","Restructuring Year 2+ - Aggregate","Improvement Year 2 - Aggregate"]
["0281","02810023","Milton Bradley School",493,"K  - 05","Title I School (SW)","Restructuring Year 2+ - Subgroups","Restructuring Year 2+ - Subgroups"]
["0281","02810620","Putnam Voc Tech High Sch",1545,"09 - 12","Title I School (SW)","Restructuring Year 2+ - Aggregate","Restructuring Year 2+ - Aggregate"]
["0281","02810055","Rebecca M Johnson",845,"PK - 05","Title I School (SW)","Corrective Action - Aggregate","Restructuring Year 1 - Aggregate"]
["0281","02810020","Samuel Bowles",312,"K  - 05","Title I School (SW)","Restructuring Year 2+ - Subgroups"," "]
["0281","02810355","South End Middle School",null,null,"Non-Title I School (NT)"]
["0281","02810506","Springfield Academy for Excellence",475,"K  - 12","Title I School (SW)","Restructuring Year 2+ - Aggregate","Restructuring Year 2+ - Aggregate"]
["0281","02810500","Springfield Central High",2046,"09 - 12","Title I School (SW)","Restructuring Year 2+ - Subgroups","Restructuring Year 2+ - Aggregate"]
["0281","02810570","Springfield High School",null,null,"Non-Title I School (NT)"]
["0281","02810005","Springfield Public Day Elementary School",null,null,"Non-Title I School (NT)"]
["0281","02810550","Springfield Public Day High School",null,null,"Non-Title I School (NT)"]
["0281","02810345","Springfield Public Day Middle School",null,null,"Non-Title I School (NT)"]
["0281","02810350","STEM Middle Academy",255,"06 - 08","Title I School (SW)","Improvement Year 1 - Aggregate"," "]
["0281","02810160","Sumner Avenue",540,"PK - 05","Title I School (SW)","Restructuring Year 1 - Aggregate","Corrective Action - Aggregate"]
["0281","02810205","The Springfield Renaissance School",651,"06 - 12","Title I School (SW)","Restructuring Year 1 - Subgroups","Restructuring Year 1 - Subgroups"]
["0281","02810015","Thomas M Balliet",345,"PK - 05","Title I School (SW)","Restructuring Year 1 - Aggregate","Improvement Year 2 - Aggregate"]
["0281","02810340","Van Sickle Middle School",983,"06 - 08","Title I School (SW)","Restructuring Year 2+ - Aggregate","Restructuring Year 2+ - Aggregate"]
["0281","02810180","Warner",315,"PK - 05","Title I School (SW)","Improvement Year 2 - Aggregate"," "]
["0281","02810185","Washington",498,"PK - 05","Title I School (SW)","Improvement Year 1 - Aggregate"," "]
["0281","02810190","White Street",368,"K  - 05","Title I School (SW)","Restructuring Year 2+ - Aggregate","Restructuring Year 2+ - Aggregate"]
["0281","02810045","William N. DeBerry",270,"K  - 05","Title I School (SW)","Restructuring Year 2+ - Aggregate","Improvement Year 1 - Aggregate"]
["0284","02840003","Central",344,"K  - 05","Title I School (TA)","Corrective Action - Subgroups","Corrective Action - Subgroups"]
["0284","02840005","Colonial Park",266,"PK - 05","Title I School (TA)"," "," "]
["0284","02840025","Robin Hood",305,"K  - 05","Non-Title I School (NT)"," "," "]
["0284","02840030","South",315,"PK - 05","Title I School (TA)"," "," "]
["0284","02840505","Stoneham High",731,"09 - 12","Non-Title I School (NT)"," "," "]
["0284","02840405","Stoneham Middle School",589,"06 - 08","Non-Title I School (NT)","Corrective Action - Subgroups","Restructuring Year 2+ - Subgroups"]
["0285","02850012","Edwin A Jones ECC",78,"PK","Non-Title I School (NT)"]
["0285","02850010","Helen Hansen Elementary",290,"K  - 05","Non-Title I School (NT)","Improvement Year 2 - Subgroups","Improvement Year 2 - Aggregate"]
["0285","02850025","Joseph H Gibbons",395,"K  - 05","Non-Title I School (NT)","Corrective Action - Aggregate","Improvement Year 1 - Aggregate"]
["0285","02850014","Joseph R Dawe Jr Elem",401,"K  - 05","Non-Title I School (NT)"," "," "]
["0285","02850405","O'Donnell Middle School",890,"06 - 08","Non-Title I School (NT)","Corrective Action - Subgroups","Restructuring Year 2+ - Subgroups"]
["0285","02850015","South Elementary",263,"K  - 05","Non-Title I School (NT)"," "," "]
["0285","02850505","Stoughton High",1098,"09 - 12","Non-Title I School (NT)"," "," "]
["0285","02850020","West Elementary",362,"K  - 05","Title I School (SW)","Improvement Year 2 - Aggregate","Improvement Year 2 - Subgroups"]
["0287","02870005","Burgess Elementary",939,"PK - 06","Title I School (TA)","Improvement Year 1 - Aggregate"," "]
["0288","02880305","Ephraim Curtis Middle",1064,"06 - 08","Title I School (TA)"," ","Corrective Action - Subgroups"]
["0288","02880025","General John Nixon Elem",435,"K  - 05","Title I School (TA)"," "," "]
["0288","02880015","Israel Loring School",519,"K  - 05","Title I School (TA)"," "," "]
["0288","02880010","Josiah Haynes",427,"K  - 05","Non-Title I School (NT)"," "," "]
["0288","02880030","Peter Noyes",650,"PK - 05","Non-Title I School (NT)"," ","Improvement Year 1 - Subgroups"]
["0289","02890005","Sunderland Elementary",172,"PK - 06","Title I School (TA)"," "," "]
["0290","02900003","Sutton Early Learning",400,"PK - 02","Title I School (TA)","Improvement Year 2 - Subgroups","Improvement Year 2 - Aggregate"]
["0290","02900005","Sutton Elementary",428,"03 - 05","Non-Title I School (NT)","Restructuring Year 1 - Subgroups","Improvement Year 2 - Aggregate"]
["0290","02900510","Sutton High School",394,"09 - 12","Non-Title I School (NT)"," "," "]
["0290","02900305","Sutton Middle School",410,"06 - 08","Non-Title I School (NT)","Corrective Action - Subgroups","Improvement Year 2 - Subgroups"]
["0291","02910005","Clarke",228,"K  - 04","Title I School (TA)"," "," "]
["0291","02910010","Hadley",281,"K  - 04","Title I School (TA)"," "," "]
["0291","02910020","Stanley",297,"K  - 04","Non-Title I School (NT)"," "," "]
["0291","02910505","Swampscott High",743,"09 - 12","Non-Title I School (NT)"," "," "]
["0291","02910305","Swampscott Middle",724,"05 - 08","Non-Title I School (NT)"," ","Corrective Action - Subgroups"]
["0292","02920006","Elizabeth S Brown",265,"03 - 05","Title I School (TA)","Improvement Year 2 - Aggregate"," "]
["0292","02920015","Gardner",245,"K  - 02","Title I School (TA)"," "," "]
["0292","02920505","Joseph Case High",581,"09 - 12","Non-Title I School (NT)"," "," "]
["0292","02920305","Joseph Case Jr High",500,"06 - 08","Non-Title I School (NT)","Improvement Year 1 - Subgroups","Improvement Year 2 - Subgroups"]
["0292","02920020","Joseph G Luther",217,"03 - 05","Non-Title I School (NT)"," "," "]
["0292","02920017","Mark G Hoyle Elem",230,"PK - 02","Non-Title I School (NT)"," "," "]
["0293","02930315","Benjamin Friedman Middle",1025,"05 - 08","Non-Title I School (NT)"," ","Corrective Action - Subgroups"]
["0293","02930005","Caleb Barnum",301,"PK","Non-Title I School (NT)"]
["0293","02930010","East Taunton Elem",634,"PK - 04","Non-Title I School (NT)","Restructuring Year 2+ - Subgroups"," "]
["0293","02930007","Edmund Hatch Bennett",389,"K  - 04","Title I School (SW)","Restructuring Year 2+ - Aggregate","Corrective Action - Subgroups"]
["0293","02930056","Edward F Leddy",123,"K  - 04","Title I School (SW)","Restructuring Year 1 - Subgroups","Improvement Year 1 - Aggregate"]
["0293","02930027","Elizabeth Pole",571,"K  - 04","Title I School (SW)","Restructuring Year 2+ - Subgroups"," "]
["0293","02930057","H H Galligan",259,"K  - 04","Title I School (SW)","Corrective Action - Subgroups"," "]
["0293","02930035","Hopewell",391,"K  - 04","Title I School (SW)","Improvement Year 1 - Subgroups"," "]
["0293","02930305","John F Parker Middle",567,"05 - 08","Non-Title I School (NT)","Restructuring Year 1 - Subgroups","Restructuring Year 2+ - Aggregate"]
["0293","02930008","Joseph C Chamberlain",481,"K  - 04","Non-Title I School (NT)"," "," "]
["0293","02930042","Joseph H Martin",815,"05 - 08","Non-Title I School (NT)","Improvement Year 1 - Subgroups","Restructuring Year 2+ - Subgroups"]
["0293","02930015","Mulcahey Elementary School",436,"K  - 04","Title I School (SW)","Restructuring Year 1 - Subgroups","Corrective Action - Subgroups"]
["0293","02930505","Taunton High",1920,"08 - 12","Non-Title I School (NT)","Restructuring Year 2+ - Subgroups","Restructuring Year 2+ - Subgroups"]
["0295","02950002","Center School",109,"PK","Non-Title I School (NT)"]
["0295","02950010","Heath-Brook",406,"K  - 02","Title I School (TA)"]
["0295","02950023","John F. Ryan",705,"05 - 06","Non-Title I School (NT)","Restructuring Year 1 - Subgroups","Restructuring Year 2+ - Subgroups"]
["0295","02950305","John W. Wynn Middle",752,"07 - 08","Non-Title I School (NT)","Improvement Year 1 - Subgroups","Restructuring Year 2+ - Subgroups"]
["0295","02950001","L F Dewing",507,"PK - 02","Non-Title I School (NT)"]
["0295","02950025","Louise Davy Trahan",301,"03 - 04","Non-Title I School (NT)","Improvement Year 2 - Aggregate"," "]
["0295","02950020","North Street",361,"03 - 04","Title I School (TA)","Restructuring Year 1 - Aggregate"," "]
["0295","02950505","Tewksbury Memorial High",908,"09 - 12","Non-Title I School (NT)"," "," "]
["0296","02960005","Tisbury Elementary",321,"PK - 08","Title I School (TA)"," "," "]
["0298","02980005","Proctor Elementary",277,"04 - 06","Non-Title I School (NT)"," "," "]
["0298","02980010","Steward Elementary",372,"PK - 03","Title I School (TA)"," "," "]
["0300","03000005","Truro Central",146,"PK - 06","Title I School (TA)"," "," "]
["0301","03010020","Tyngsborough Elementary",953,"PK - 05","Title I School (TA)","Restructuring Year 1 - Subgroups","Improvement Year 2 - Subgroups"]
["0301","03010505","Tyngsborough High School",486,"09 - 12","Non-Title I School (NT)"," "," "]
["0301","03010305","Tyngsborough Middle",500,"06 - 08","Non-Title I School (NT)","Restructuring Year 1 - Subgroups","Restructuring Year 1 - Subgroups"]
["0304","03040005","Earl D Taft",850,"PK - 04","Title I School (TA)","Restructuring Year 2+ - Subgroups","Improvement Year 2 - Subgroups"]
["0304","03040505","Uxbridge High",446,"09 - 12","Non-Title I School (NT)"," "," "]
["0304","03040015","Whitin Middle",656,"05 - 08","Non-Title I School (NT)"," ","Restructuring Year 1 - Subgroups"]
["0305","03050005","Dolbeare",430,"PK - 04","Non-Title I School (NT)"," "," "]
["0305","03050310","Galvin Middle School",1091,"05 - 08","Title I School (TA)"," ","Restructuring Year 1 - Subgroups"]
["0305","03050020","Greenwood",275,"K  - 04","Non-Title I School (NT)"," "," "]
["0305","03050505","Wakefield Memorial High",951,"09 - 12","Non-Title I School (NT)"," "," "]
["0305","03050040","Walton",204,"K  - 04","Non-Title I School (NT)"," "," "]
["0305","03050015","Woodville School",408,"PK - 04","Title I School (TA)"," "," "]
["0306","03060005","Wales Elementary",169,"PK - 06","Title I School (TA)"," "," "]
["0307","03070305","Bird Middle",511,"06 - 08","Non-Title I School (NT)"," ","Corrective Action - Subgroups"]
["0307","03070010","Boyden",459,"K  - 05","Title I School (TA)"," "," "]
["0307","03070002","Daniel Feeney Preschool Center",71,"PK","Non-Title I School (NT)"]
["0307","03070310","Eleanor N Johnson Middle",442,"06 - 08","Non-Title I School (NT)"," ","Improvement Year 1 - Aggregate"]
["0307","03070005","Elm Street School",444,"K  - 05","Non-Title I School (NT)"," "," "]
["0307","03070015","Fisher",466,"K  - 05","Title I School (TA)","Improvement Year 1 - Subgroups","Improvement Year 1 - Subgroups"]
["0307","03070018","Old Post Road",493,"K  - 05","Title I School (TA)"," "," "]
["0307","03070505","Walpole High",1075,"09 - 12","Non-Title I School (NT)"," "," "]
["0308","03080032","Douglas MacArthur Elementary School",336,"K  - 05","Non-Title I School (NT)","Improvement Year 1 - Aggregate"," "]
["0308","03080065","Henry Whittemore Elementary School",321,"K  - 05","Title I School (TA)","Restructuring Year 2+ - Aggregate","Restructuring Year 2+ - Aggregate"]
["0308","03080060","James Fitzgerald Elementary School",430,"K  - 05","Non-Title I School (NT)","Improvement Year 2 - Subgroups"," "]
["0308","03080404","John F Kennedy Middle",523,"06 - 08","Non-Title I School (NT)","Corrective Action - Subgroups","Restructuring Year 2+ - Subgroups"]
["0308","03080415","John W. McDevitt Middle School",516,"06 - 08","Non-Title I School (NT)","Restructuring Year 1 - Subgroups","Restructuring Year 1 - Subgroups"]
["0308","03080040","Northeast Elementary School",472,"PK - 05","Non-Title I School (NT)","Restructuring Year 2+ - Aggregate","Corrective Action - Subgroups"]
["0308","03080050","Thomas R Plympton Elementary School",384,"K  - 05","Title I School (TA)","Corrective Action - Subgroups"," "]
["0308","03080505","Waltham Sr High",1375,"09 - 12","Non-Title I School (NT)","Improvement Year 1 - Subgroups","Restructuring Year 1 - Subgroups"]
["0308","03080005","William F. Stanley Elementary School",439,"PK - 05","Title I School (TA)","Restructuring Year 2+ - Aggregate","Corrective Action - Subgroups"]
["0309","03090020","Stanley M Koziol Elem Sch",478,"PK - 03","Title I School (SW)"," ","Corrective Action - Subgroups"]
["0309","03090505","Ware Junior/Senior High School",498,"07 - 12","Non-Title I School (NT)","Restructuring Year 1 - Subgroups","Restructuring Year 2+ - Subgroups"]
["0309","03090305","Ware Middle School",301,"04 - 06","Title I School (SW)","Restructuring Year 1 - Subgroups","Restructuring Year 2+ - Subgroups"]
["0310","03100025","East Wareham School",84,"PK","Non-Title I School (NT)"]
["0310","03100020","Ethel E Hammond",150,"K  - 01","Title I School (SW)"]
["0310","03100003","John William Decas",714,"K  - 05","Title I School (SW)","Restructuring Year 2+ - Aggregate","Improvement Year 1 - Subgroups"]
["0310","03100017","Minot Forest",527,"K  - 05","Title I School (SW)"," ","Improvement Year 1 - Subgroups"]
["0310","03100315","Wareham Cooperative Junior/Senior High School",100,"07 - 12","Non-Title I School (NT)"," "," "]
["0310","03100305","Wareham Middle",713,"06 - 08","Title I School (SW)","Improvement Year 1 - Aggregate","Restructuring Year 2+ - Subgroups"]
["0310","03100505","Wareham Senior High",782,"09 - 12","Non-Title I School (NT)"," "," "]
["0310","03100310","West Wareham Academy",14,"07 - 12","Non-Title I School (NT)"]
["0314","03140015","Cunniff",286,"PK - 05","Non-Title I School (NT)"," "," "]
["0314","03140020","Hosmer",656,"PK - 05","Non-Title I School (NT)","Restructuring Year 2+ - Aggregate","Improvement Year 2 - Aggregate"]
["0314","03140025","James Russell Lowell",395,"PK - 05","Non-Title I School (NT)","Improvement Year 2 - Subgroups","Improvement Year 2 - Subgroups"]
["0314","03140505","Watertown High",733,"09 - 12","Title I School (TA)"," "," "]
["0314","03140305","Watertown Middle",579,"06 - 08","Title I School (TA)","Restructuring Year 2+ - Subgroups","Restructuring Year 2+ - Subgroups"]
["0315","03150005","Claypit Hill School",571,"01 - 05","Non-Title I School (NT)","Improvement Year 1 - Subgroups","Improvement Year 1 - Subgroups"]
["0315","03150015","Happy Hollow School",440,"01 - 05","Non-Title I School (NT)"," "," "]
["0315","03150020","Loker School",174,"PK - K","Non-Title I School (NT)"]
["0315","03150505","Wayland High School",867,"09 - 12","Non-Title I School (NT)"," "," "]
["0315","03150305","Wayland Middle School",634,"06 - 08","Non-Title I School (NT)"," ","Restructuring Year 1 - Subgroups"]
["0316","03160505","Bartlett Jr Sr High Sch",810,"07 - 12","Title I School (SW)","Corrective Action - Subgroups","Restructuring Year 2+ - Subgroups"]
["0316","03160015","Park Avenue Elementary",495,"PK - 02","Title I School (SW)"," "," "]
["0316","03160305","Webster Middle School",577,"03 - 06","Title I School (SW)","Restructuring Year 2+ - Subgroups","Restructuring Year 2+ - Subgroups"]
["0317","03170050","Ernest F Upham",231,"K  - 05","Non-Title I School (NT)"," "," "]
["0317","03170025","Hunnewell",303,"K  - 05","Non-Title I School (NT)"," "," "]
["0317","03170020","John D Hardy",296,"K  - 05","Non-Title I School (NT)"," "," "]
["0317","03170015","Joseph E Fiske",473,"PK - 05","Title I School (TA)"," "," "]
["0317","03170005","Katharine Lee Bates",404,"K  - 05","Non-Title I School (NT)"," "," "]
["0317","03170045","Schofield",356,"K  - 05","Title I School (TA)"," "," "]
["0317","03170048","Sprague Elementary School",400,"K  - 05","Non-Title I School (NT)"," "," "]
["0317","03170305","Wellesley Middle",1135,"06 - 08","Non-Title I School (NT)","Improvement Year 1 - Subgroups","Corrective Action - Subgroups"]
["0317","03170505","Wellesley Sr High",1294,"09 - 12","Title I School (TA)"," "," "]
["0318","03180005","Wellfleet Elementary",141,"PK - 05","Title I School (TA)"," "," "]
["0321","03210010","Annie E Fales",277,"K  - 03","Non-Title I School (NT)"," "," "]
["0321","03210025","Elsie A Hastings Elem",415,"PK - 03","Title I School (TA)"," "," "]
["0321","03210005","J Harding Armstrong",407,"K  - 03","Non-Title I School (NT)"," "," "]
["0321","03210045","Mill Pond School",802,"04 - 06","Title I School (TA)","Improvement Year 2 - Subgroups","Restructuring Year 1 - Subgroups"]
["0321","03210305","Sarah W Gibbons Middle",558,"07 - 08","Non-Title I School (NT)","Corrective Action - Subgroups","Corrective Action - Subgroups"]
["0321","03210505","Westborough High",1054,"09 - 12","Non-Title I School (NT)"," "," "]
["0322","03220005","Major Edwards Elementary",436,"PK - 05","Title I School (TA)"," "," "]
["0322","03220505","West Boylston Jr-Sr High",521,"06 - 12","Non-Title I School (NT)"," "," "]
["0323","03230305","Howard School",317,"04 - 06","Title I School (TA)"," "," "]
["0323","03230003","Rose L Macdonald",280,"01 - 03","Title I School (TA)"," "," "]
["0323","03230005","Spring Street School",103,"PK - K","Non-Title I School (NT)"]
["0323","03230505","West Bridgewater Jr-Sr",599,"07 - 12","Non-Title I School (NT)"," ","Improvement Year 1 - Subgroups"]
["0325","03250020","Abner Gibbs",196,"K  - 05","Title I School (SW)","Improvement Year 2 - Subgroups","Improvement Year 1 - Aggregate"]
["0325","03250003","Fort Meadow ECC",134,"PK","Non-Title I School (NT)"]
["0325","03250015","Franklin Ave",322,"K  - 05","Title I School (SW)","Improvement Year 2 - Aggregate","Improvement Year 2 - Aggregate"]
["0325","03250025","Highland",474,"K  - 05","Title I School (SW)","Restructuring Year 2+ - Aggregate","Restructuring Year 1 - Aggregate"]
["0325","03250055","Juniper Park",195,"K  - 03","Non-Title I School (NT)","Improvement Year 1 - Aggregate"," "]
["0325","03250033","Munger Hill",374,"K  - 05","Non-Title I School (NT)"," "," "]
["0325","03250305","North Middle School",704,"06 - 08","Non-Title I School (NT)","Corrective Action - Subgroups","Restructuring Year 2+ - Aggregate"]
["0325","03250036","Paper Mill",474,"K  - 05","Title I School (TA)","Improvement Year 1 - Subgroups","Corrective Action - Subgroups"]
["0325","03250310","South Middle School",569,"06 - 08","Title I School (SW)","Restructuring Year 2+ - Subgroups","Restructuring Year 2+ - Aggregate"]
["0325","03250040","Southampton Road",432,"K  - 05","Title I School (TA)"," "," "]
["0325","03250505","Westfield High",1580,"09 - 12","Non-Title I School (NT)","Restructuring Year 1 - Subgroups","Corrective Action - Subgroups"]
["0325","03250605","Westfield Voc Tech High",484,"09 - 12","Title I School (SW)","Improvement Year 2 - Subgroups"," "]
["0326","03260004","Abbot Elem",388,"03 - 05","Non-Title I School (NT)"," "," "]
["0326","03260310","Blanchard Middle",570,"06 - 08","Non-Title I School (NT)"," "," "]
["0326","03260025","Col John Robinson",344,"K  - 02","Non-Title I School (NT)"," "," "]
["0326","03260007","Day Elementary",431,"03 - 05","Non-Title I School (NT)"," "," "]
["0326","03260045","John A. Crisafulli Elementary School",414,"03 - 05","Non-Title I School (NT)","Improvement Year 1 - Subgroups","Improvement Year 1 - Subgroups"]
["0326","03260013","Millennium Elementary",81,"PK","Non-Title I School (NT)"]
["0326","03260015","Nabnasset",387,"K  - 02","Non-Title I School (NT)"," "," "]
["0326","03260055","Rita E. Miller Elementary School",367,"K  - 02","Non-Title I School (NT)"," "," "]
["0326","03260330","Stony Brook School",674,"06 - 08","Non-Title I School (NT)"," "," "]
["0326","03260505","Westford Academy",1635,"09 - 12","Non-Title I School (NT)"," "," "]
["0327","03270005","Westhampton Elem School",138,"PK - 06","Non-Title I School (NT)"," "," "]
["0330","03300010","Country",355,"PK - 03","Title I School (TA)"," "," "]
["0330","03300012","Field Elem School",364,"04 - 05","Title I School (TA)","Improvement Year 2 - Subgroups","Improvement Year 1 - Subgroups"]
["0330","03300505","Weston High",748,"09 - 12","Non-Title I School (NT)"," "," "]
["0330","03300305","Weston Middle",575,"06 - 08","Title I School (TA)"," "," "]
["0330","03300015","Woodland",323,"PK - 03","Title I School (TA)"," "," "]
["0331","03310015","Alice A Macomber",234,"PK - K","Title I School (TA)"]
["0331","03310030","Westport Elementary",544,"01 - 04","Title I School (TA)","Corrective Action - Subgroups","Improvement Year 2 - Subgroups"]
["0331","03310505","Westport High",507,"09 - 12","Non-Title I School (NT)"," "," "]
["0331","03310305","Westport Middle",550,"05 - 08","Title I School (TA)","Improvement Year 1 - Subgroups","Improvement Year 1 - Subgroups"]
["0332","03320005","John Ashley",287,"PK - K","Title I School (TA)"]
["0332","03320010","John R Fausey",423,"01 - 05","Non-Title I School (NT)","Corrective Action - Aggregate","Improvement Year 2 - Subgroups"]
["0332","03320025","Memorial",201,"01 - 05","Title I School (SW)","Improvement Year 2 - Aggregate","Improvement Year 2 - Aggregate"]
["0332","03320030","Mittineague",145,"01 - 05","Title I School (TA)","Improvement Year 2 - Aggregate","Improvement Year 1 - Aggregate"]
["0332","03320007","Philip G Coburn",438,"K  - 05","Title I School (SW)","Improvement Year 1 - Aggregate","Corrective Action - Subgroups"]
["0332","03320040","Tatham",231,"01 - 05","Non-Title I School (NT)","Improvement Year 1 - Aggregate"," "]
["0332","03320505","West Springfield High",1303,"09 - 12","Non-Title I School (NT)","Improvement Year 2 - Subgroups","Improvement Year 2 - Aggregate"]
["0332","03320305","West Springfield Middle",904,"06 - 08","Title I School (SW)","Restructuring Year 1 - Subgroups","Restructuring Year 2+ - Subgroups"]
["0335","03350010","Deerfield School",251,"K  - 05","Non-Title I School (NT)"," "," "]
["0335","03350012","Downey",279,"K  - 05","Non-Title I School (NT)","Improvement Year 1 - Subgroups"," "]
["0335","03350305","E W Thurston Middle",741,"06 - 08","Non-Title I School (NT)"," ","Corrective Action - Subgroups"]
["0335","03350017","Martha Jones",359,"K  - 05","Non-Title I School (NT)"," "," "]
["0335","03350015","Paul Hanlon",226,"K  - 05","Non-Title I School (NT)"," "," "]
["0335","03350505","Westwood High",873,"09 - 12","Non-Title I School (NT)"," "," "]
["0335","03350050","Westwood Integrated Preschool",49,"PK","Non-Title I School (NT)"]
["0335","03350025","William E Sheehan",370,"K  - 05","Non-Title I School (NT)"," "," "]
["0336","03360310","Abigail Adams Middle School",1037,"05 - 06","Title I School (TA)","Corrective Action - Subgroups","Restructuring Year 2+ - Subgroups"]
["0336","03360005","Academy Avenue",289,"K  - 04","Non-Title I School (NT)"," "," "]
["0336","03360050","Frederick C Murphy",303,"K  - 04","Non-Title I School (NT)","Improvement Year 2 - Subgroups","Improvement Year 1 - Aggregate"]
["0336","03360003","Johnson ECC",264,"PK","Non-Title I School (NT)"]
["0336","03360065","Lawrence W Pingree",241,"K  - 04","Non-Title I School (NT)"," "," "]
["0336","03360020","Maria Weston Chapman Middle School",1039,"07 - 08","Title I School (TA)","Restructuring Year 2+ - Subgroups","Restructuring Year 2+ - Aggregate"]
["0336","03360085","Ralph Talbot",281,"K  - 04","Non-Title I School (NT)"," "," "]
["0336","03360060","Thomas V Nash",277,"K  - 04","Non-Title I School (NT)"," "," "]
["0336","03360105","Thomas W. Hamilton Primary School",328,"K  - 04","Non-Title I School (NT)"," "," "]
["0336","03360110","Wessagusset",387,"K  - 04","Non-Title I School (NT)","Corrective Action - Aggregate","Improvement Year 1 - Subgroups"]
["0336","03360505","Weymouth High School",2104,"09 - 12","Non-Title I School (NT)","Restructuring Year 2+ - Subgroups","Restructuring Year 1 - Subgroups"]
["0336","03360080","William Seach",385,"K  - 04","Title I School (SW)","Corrective Action - Aggregate","Improvement Year 2 - Aggregate"]
["0337","03370005","Whately Elementary",138,"PK - 06","Non-Title I School (NT)"," "," "]
["0340","03400005","Anne T Dunphy",74,"03 - 06","Non-Title I School (NT)"," "," "]
["0340","03400015","Helen James",94,"PK - 02","Title I School (TA)"," "," "]
["0341","03410010","Williamstown Elementary",407,"PK - 06","Title I School (TA)"," "," "]
["0342","03420005","Boutwell",139,"PK - K","Non-Title I School (NT)"]
["0342","03420060","North Intermediate",323,"04 - 05","Non-Title I School (NT)","Improvement Year 1 - Subgroups","Improvement Year 2 - Subgroups"]
["0342","03420025","Shawsheen Elem",391,"01 - 03","Non-Title I School (NT)","Improvement Year 1 - Aggregate"," "]
["0342","03420080","West Intermediate",276,"04 - 05","Non-Title I School (NT)","Improvement Year 1 - Aggregate","Improvement Year 1 - Subgroups"]
["0342","03420015","Wildwood",189,"PK - K","Non-Title I School (NT)"]
["0342","03420505","Wilmington High",980,"09 - 12","Non-Title I School (NT)"," "," "]
["0342","03420330","Wilmington Middle School",944,"06 - 08","Non-Title I School (NT)","Restructuring Year 1 - Subgroups","Restructuring Year 2+ - Subgroups"]
["0342","03420020","Woburn Street",490,"01 - 03","Title I School (TA)"," "," "]
["0343","03430040","Memorial",341,"K  - 02","Title I School (SW)"," "," "]
["0343","03430505","Murdock Middle/High",755,"06 - 12","Non-Title I School (NT)","Restructuring Year 1 - Aggregate","Restructuring Year 1 - Subgroups"]
["0343","03430050","Toy Town Elem",378,"03 - 05","Title I School (SW)","Restructuring Year 2+ - Aggregate","Restructuring Year 2+ - Aggregate"]
["0343","03430010","Winchendon PreSchool Program",77,"PK","Non-Title I School (NT)"]
["0344","03440045","Ambrose Elementary",500,"K  - 05","Non-Title I School (NT)","Improvement Year 1 - Subgroups","Improvement Year 1 - Subgroups"]
["0344","03440005","Lincoln Elementary",469,"K  - 05","Non-Title I School (NT)"," "," "]
["0344","03440020","Lynch Elementary",463,"PK - 05","Title I School (TA)","Improvement Year 1 - Subgroups","Improvement Year 1 - Subgroups"]
["0344","03440305","McCall Middle",992,"06 - 08","Non-Title I School (NT)"," ","Improvement Year 1 - Subgroups"]
["0344","03440040","Muraco Elementary",466,"K  - 05","Non-Title I School (NT)"," "," "]
["0344","03440025","Vinson-Owen Elementary",303,"K  - 05","Non-Title I School (NT)"," "," "]
["0344","03440505","Winchester High School",1089,"09 - 12","Non-Title I School (NT)"," "," "]
["0346","03460020","Arthur T. Cummings Elementary School",464,"03 - 05","Non-Title I School (NT)","Restructuring Year 2+ - Aggregate","Restructuring Year 2+ - Subgroups"]
["0346","03460015","William P. Gorman/Fort Banks Elementary",498,"PK - 02","Title I School (TA)","Improvement Year 2 - Aggregate"," "]
["0346","03460305","Winthrop Middle School",460,"06 - 08","Non-Title I School (NT)","Corrective Action - Subgroups","Restructuring Year 2+ - Aggregate"]
["0346","03460505","Winthrop Sr High",539,"09 - 12","Non-Title I School (NT)"," "," "]
["0347","03470005","Clapp - Goodyear Elementary School",370,"K  - 05","Title I School (TA)"," "," "]
["0347","03470040","Clyde Reeves",506,"PK - 05","Non-Title I School (NT)"," "," "]
["0347","03470410","Daniel L Joyce Middle School",511,"06 - 08","Non-Title I School (NT)"," ","Restructuring Year 1 - Subgroups"]
["0347","03470020","Daniel P Hurld",212,"K  - 05","Non-Title I School (NT)"," "," "]
["0347","03470405","John F Kennedy Middle School",557,"06 - 08","Non-Title I School (NT)","Improvement Year 2 - Subgroups","Restructuring Year 2+ - Aggregate"]
["0347","03470025","Linscott-Rumford",223,"K  - 05","Title I School (TA)"," "," "]
["0347","03470055","Malcolm White",265,"K  - 05","Title I School (TA)"," "," "]
["0347","03470065","Mary D Altavesta",213,"K  - 05","Title I School (TA)"," "," "]
["0347","03470043","Shamrock",373,"PK - 05","Title I School (TA)"," "," "]
["0347","03470505","Woburn High",1359,"09 - 12","Non-Title I School (NT)","Improvement Year 1 - Subgroups"," "]
["0347","03470060","Wyman",220,"K  - 05","Non-Title I School (NT)"," "," "]
["0348","03480020","Belmont Street Community",488,"PK - 06","Title I School (SW)","Restructuring Year 2+ - Aggregate","Improvement Year 2 - Aggregate"]
["0348","03480405","Burncoat Middle School",580,"07 - 08","Non-Title I School (NT)","Restructuring Year 2+ - Subgroups","Restructuring Year 2+ - Subgroups"]
["0348","03480503","Burncoat Senior High",1072,"09 - 12","Non-Title I School (NT)","Restructuring Year 2+ - Aggregate","Restructuring Year 2+ - Aggregate"]
["0348","03480035","Burncoat Street",217,"K  - 06","Title I School (SW)","Restructuring Year 2+ - Aggregate","Improvement Year 2 - Aggregate"]
["0348","03480045","Canterbury",323,"PK - 06","Title I School (SW)","Restructuring Year 2+ - Aggregate","Restructuring Year 2+ - Aggregate"]
["0348","03480050","Chandler Elem Community",378,"PK - 06","Title I School (SW)","Restructuring Year 2+ - Aggregate","Restructuring Year 2+ - Aggregate"]
["0348","03480052","Chandler Magnet",460,"PK - 06","Title I School (SW)","Restructuring Year 2+ - Aggregate","Restructuring Year 2+ - Aggregate"]
["0348","03480053","City View",592,"PK - 06","Title I School (SW)","Restructuring Year 2+ - Aggregate","Restructuring Year 2+ - Aggregate"]
["0348","03480350","Claremont Academy",395,"07 - 12","Non-Title I School (NT)","Restructuring Year 2+ - Subgroups","Restructuring Year 2+ - Aggregate"]
["0348","03480055","Clark St Community",405,"PK - 06","Title I School (SW)"," "," "]
["0348","03480060","Columbus Park",404,"PK - 06","Title I School (SW)","Restructuring Year 1 - Aggregate","Restructuring Year 1 - Subgroups"]
["0348","03480512","Doherty Memorial High",1327,"09 - 12","Non-Title I School (NT)","Restructuring Year 2+ - Subgroups","Restructuring Year 2+ - Subgroups"]
["0348","03480095","Elm Park Community",497,"PK - 06","Title I School (SW)","Restructuring Year 2+ - Aggregate","Restructuring Year 2+ - Aggregate"]
["0348","03480090","Flagg Street",470,"K  - 06","Non-Title I School (NT)"," "," "]
["0348","03480415","Forest Grove Middle",882,"07 - 08","Non-Title I School (NT)","Improvement Year 1 - Subgroups","Restructuring Year 2+ - Aggregate"]
["0348","03480177","Francis J McGrath Elem",262,"PK - 06","Title I School (SW)","Improvement Year 2 - Aggregate","Improvement Year 2 - Aggregate"]
["0348","03480110","Gates Lane",701,"PK - 06","Title I School (SW)","Restructuring Year 2+ - Aggregate","Corrective Action - Subgroups"]
["0348","03480100","Goddard Sch/Science Tech",586,"PK - 06","Title I School (SW)","Restructuring Year 2+ - Aggregate","Restructuring Year 2+ - Subgroups"]
["0348","03480115","Grafton Street",394,"PK - 06","Title I School (SW)","Restructuring Year 2+ - Aggregate","Improvement Year 2 - Subgroups"]
["0348","03480002","Head Start",701,"PK","Non-Title I School (NT)"]
["0348","03480136","Heard Street",271,"K  - 06","Title I School (SW)"," "," "]
["0348","03480140","Jacob Hiatt Magnet",446,"PK - 06","Title I School (SW)","Restructuring Year 2+ - Aggregate","Improvement Year 1 - Aggregate"]
["0348","03480145","Lake View",296,"K  - 06","Title I School (SW)","Corrective Action - Subgroups","Improvement Year 2 - Subgroups"]
["0348","03480160","Lincoln Street",244,"PK - 06","Title I School (SW)","Restructuring Year 2+ - Aggregate"," "]
["0348","03480175","May Street",303,"K  - 06","Title I School (SW)","Corrective Action - Subgroups","Improvement Year 1 - Subgroups"]
["0348","03480185","Midland Street",224,"K  - 06","Non-Title I School (NT)","Corrective Action - Aggregate","Improvement Year 1 - Aggregate"]
["0348","03480200","Nelson Place",467,"PK - 06","Non-Title I School (NT)"," "," "]
["0348","03480202","Norrback Avenue",610,"PK - 06","Title I School (SW)","Restructuring Year 2+ - Subgroups","Restructuring Year 2+ - Aggregate"]
["0348","03480515","North High",1149,"09 - 12","Non-Title I School (NT)","Restructuring Year 2+ - Subgroups","Restructuring Year 2+ - Subgroups"]
["0348","03480210","Quinsigamond",693,"PK - 06","Title I School (SW)","Restructuring Year 2+ - Aggregate","Restructuring Year 2+ - Aggregate"]
["0348","03480215","Rice Square",455,"K  - 06","Title I School (SW)","Restructuring Year 2+ - Aggregate","Restructuring Year 2+ - Aggregate"]
["0348","03480220","Roosevelt",706,"PK - 06","Title I School (SW)","Restructuring Year 2+ - Subgroups","Restructuring Year 2+ - Subgroups"]
["0348","03480520","South High Community",1297,"09 - 12","Non-Title I School (NT)","Restructuring Year 2+ - Subgroups","Restructuring Year 2+ - Subgroups"]
["0348","03480423","Sullivan Middle",794,"07 - 08","Non-Title I School (NT)","Restructuring Year 2+ - Subgroups","Restructuring Year 2+ - Aggregate"]
["0348","03480230","Tatnuck",417,"K  - 06","Title I School (SW)"," ","Restructuring Year 1 - Subgroups"]
["0348","03480235","Thorndyke Road",322,"K  - 06","Title I School (SW)","Restructuring Year 1 - Subgroups","Improvement Year 2 - Subgroups"]
["0348","03480240","Union Hill School",344,"PK - 06","Title I School (SW)","Restructuring Year 1 - Aggregate","Restructuring Year 1 - Aggregate"]
["0348","03480285","University Pk Campus Sch",241,"07 - 12","Non-Title I School (NT)"," ","Corrective Action - Subgroups"]
["0348","03480280","Vernon Hill School",450,"PK - 06","Title I School (SW)","Restructuring Year 2+ - Aggregate","Improvement Year 2 - Aggregate"]
["0348","03480026","Wawecus Road School",147,"K  - 06","Title I School (SW)","Restructuring Year 1 - Subgroups","Corrective Action - Subgroups"]
["0348","03480260","West Tatnuck",331,"PK - 06","Non-Title I School (NT)"," "," "]
["0348","03480030","Woodland Academy",491,"PK - 06","Title I School (SW)","Restructuring Year 2+ - Aggregate","Restructuring Year 2+ - Aggregate"]
["0348","03480225","Worcester Arts Magnet Sch",367,"PK - 06","Title I School (SW)"," "," "]
["0348","03480420","Worcester East Middle",593,"07 - 08","Non-Title I School (NT)","Restructuring Year 2+ - Subgroups","Restructuring Year 2+ - Aggregate"]
["0348","03480605","Worcester Technical High",1400,"09 - 12","Non-Title I School (NT)"," "," "]
["0350","03500010","Charles E Roderick",511,"04 - 06","Non-Title I School (NT)","Improvement Year 2 - Subgroups"," "]
["0350","03500003","Delaney",718,"PK - 03","Title I School (TA)"," "," "]
["0406","04060705","Smith Voc and Agr High",444,"09 - 12","Title I School (TA)"," ","Corrective Action - Subgroups"]
["0410","04100205","Excel Academy Charter School",212,"05 - 08","Title I School (SW)"," "," "]
["0412","04120530","Academy Of the Pacific Rim Charter Public School",484,"05 - 12","Title I School (SW)","Improvement Year 2 - Subgroups"," "]
["0413","04130505","Four Rivers Charter Public School",205,"07 - 12","Title I School (TA)"," ","Improvement Year 1 - Aggregate"]
["0414","04140305","Berkshire Arts and Technology Charter Public School",262,"06 - 12","Title I School (SW)"," ","Restructuring Year 2+ - Subgroups"]
["0415","04150505","Amesbury Academy Charter Public School",49,"09 - 12","Title I School (SW)"]
["0416","04160305","Boston Preparatory Charter Public School",346,"06 - 12","Title I School (SW)","Improvement Year 1 - Subgroups"," "]
["0418","04180305","Christa McAuliffe Regional Charter Public School",252,"06 - 08","Title I School (TA)","Improvement Year 2 - Subgroups"," "]
["0419","04190305","Smith Leadership Academy Charter Public School",207,"06 - 08","Title I School (SW)","Restructuring Year 1 - Subgroups","Restructuring Year 2+ - Aggregate"]
["0420","04200205","Benjamin Banneker Charter Public School",341,"K  - 06","Title I School (SW)"," "," "]
["0423","04230010","Barnstable Horace Mann Charter School",817,"04 - 05","Title I School (TA)","Improvement Year 1 - Aggregate","Corrective Action - Subgroups"]
["0424","04240505","Boston Day and Evening Academy Charter School",323,"09 - 12","Title I School (SW)","Restructuring Year 1 - Aggregate","Restructuring Year 1 - Aggregate"]
["0427","04270010","Barnstable Community Horace Mann Charter Public School",334,"K  - 03","Title I School (TA)"," "," "]
["0428","04280305","Edward Brooke Charter School",450,"K  - 08","Title I School (SW)"," "," "]
["0429","04290010","KIPP Academy Lynn Charter School",370,"05 - 08","Title I School (SW)","Improvement Year 1 - Aggregate","Improvement Year 2 - Subgroups"]
["0430","04300305","Advanced Math and Science Academy Charter School",963,"06 - 12","Title I School (TA)"," ","Improvement Year 1 - Subgroups"]
["0432","04320530","Cape Cod Lighthouse Charter School",228,"06 - 08","Non-Title I School (NT)"," ","Improvement Year 2 - Aggregate"]
["0435","04350305","Innovation Academy Charter School",590,"05 - 12","Title I School (TA)"," ","Improvement Year 1 - Subgroups"]
["0436","04360305","Community Charter School of Cambridge",329,"07 - 12","Title I School (SW)"," "," "]
["0437","04370505","City On A Hill Charter Public School",294,"09 - 12","Title I School (SW)"," "," "]
["0438","04380505","Codman Academy Charter Public School",136,"09 - 12","Title I School (SW)","Improvement Year 1 - Aggregate"," "]
["0439","04390050","Conservatory Lab Charter School",154,"PK - 05","Title I School (SW)"," ","Improvement Year 2 - Subgroups"]
["0440","04400205","Community Day Charter Public School",331,"K  - 08","Title I School (SW)"," "," "]
["0441","04410505","Sabis International Charter School",1574,"K  - 12","Title I School (SW)"," ","Restructuring Year 1 - Subgroups"]
["0444","04440205","Neighborhood House Charter School",397,"PK - 08","Title I School (SW)","Improvement Year 1 - Subgroups"," "]
["0445","04450105","Abby Kelley Foster Charter Public School",1426,"K  - 12","Title I School (SW)","Restructuring Year 1 - Subgroups","Restructuring Year 2+ - Aggregate"]
["0446","04460550","Foxborough Regional Charter School",1177,"K  - 12","Title I School (TA)","Improvement Year 2 - Subgroups","Corrective Action - Subgroups"]
["0447","04470205","Benjamin Franklin Classical Charter Public School",438,"K  - 08","Non-Title I School (NT)"," "," "]
["0448","04480205","Gloucester Community Arts Charter School",67,"04 - 07","Non-Title I School (NT)"," "," "]
["0449","04490305","Boston Collegiate Charter School",554,"05 - 12","Title I School (SW)","Improvement Year 2 - Subgroups","Improvement Year 2 - Subgroups"]
["0450","04500105","Hilltown Cooperative Charter Public School",165,"K  - 08","Title I School (TA)"," "," "]
["0452","04520505","Edward M. Kennedy Academy for Health Careers (Horace Mann Ch",218,"09 - 12","Title I School (SW)"," "," "]
["0453","04530005","Holyoke Community Charter School",710,"K  - 08","Title I School (SW)","Restructuring Year 1 - Subgroups","Restructuring Year 1 - Subgroups"]
["0454","04540205","Lawrence Family Development Charter School",592,"K  - 08","Title I School (SW)"," "," "]
["0455","04550050","Hill View Montessori Charter Public School",296,"K  - 08","Title I School (TA)"," ","Improvement Year 1 - Aggregate"]
["0456","04560050","Lowell Community Charter Public School",791,"K  - 06","Title I School (SW)","Restructuring Year 2+ - Subgroups","Restructuring Year 2+ - Subgroups"]
["0458","04580505","Lowell Middlesex Academy Charter School",108,"09 - 12","Title I School (SW)"," "," "]
["0464","04640305","Marblehead Community Charter Public School",230,"04 - 08","Non-Title I School (NT)"," "," "]
["0466","04660550","Martha's Vineyard Charter School",181,"K  - 12","Title I School (TA)"," "," "]
["0468","04680505","Ma Academy for Math and Science School",96,"11 - 12","Non-Title I School (NT)"]
["0469","04690505","MATCH Charter Public School",447,"06 - 12","Title I School (SW)","Improvement Year 1 - Aggregate"," "]
["0470","04700105","Mystic Valley Regional Charter School",1390,"K  - 12","Non-Title I School (NT)","Restructuring Year 1 - Subgroups","Restructuring Year 2+ - Subgroups"]
["0471","04710405","New Leadership Charter School",489,"06 - 12","Title I School (SW)","Restructuring Year 2+ - Subgroups","Restructuring Year 2+ - Subgroups"]
["0474","04740505","North Central Charter Essential School",368,"07 - 12","Title I School (TA)","Restructuring Year 2+ - Subgroups","Restructuring Year 2+ - Aggregate"]
["0475","04750505","Dorchester Collegiate Academy Charter",70,"04 - 05","Title I School (SW)"," "," "]
["0476","04760505","Spirit of Knowledge Academy Charter School",135,"07 - 09","Non-Title I School (NT)"," "," "]
["0477","04770010","Silver Hill Horace Mann Charter School",577,"K  - 05","Title I School (SW)","Restructuring Year 2+ - Aggregate","Restructuring Year 1 - Aggregate"]
["0478","04780505","Francis W. Parker Charter Essential School",393,"07 - 12","Non-Title I School (NT)"," "," "]
["0479","04790505","Pioneer Valley Performing Arts Charter Public School",404,"07 - 12","Title I School (TA)"," ","Improvement Year 2 - Subgroups"]
["0481","04810550","Boston Renaissance Charter Public School",1100,"K  - 06","Title I School (SW)","Restructuring Year 2+ - Subgroups","Improvement Year 1 - Aggregate"]
["0482","04820050","River Valley Charter School",288,"K  - 08","Non-Title I School (NT)"," "," "]
["0483","04830305","Rising Tide Charter Public School",317,"05 - 08","Title I School (TA)"," ","Improvement Year 2 - Subgroups"]
["0484","04840505","Roxbury Preparatory Charter School",257,"06 - 08","Title I School (SW)"," ","Improvement Year 1 - Subgroups"]
["0485","04850485","Salem Academy Charter School",309,"06 - 12","Title I School (SW)"," ","Restructuring Year 1 - Subgroups"]
["0486","04860105","Seven Hills Charter School",664,"K  - 08","Title I School (SW)","Restructuring Year 2+ - Aggregate","Restructuring Year 2+ - Aggregate"]
["0487","04870550","Prospect Hill Academy Charter School",1115,"K  - 12","Title I School (SW)","Corrective Action - Subgroups","Improvement Year 2 - Subgroups"]
["0488","04880550","South Shore Charter Public School",534,"K  - 12","Title I School (TA)"," ","Restructuring Year 1 - Subgroups"]
["0489","04890505","Sturgis Charter Public School",413,"09 - 12","Non-Title I School (NT)"," "," "]
["0491","04910550","Atlantis Charter School",742,"K  - 08","Title I School (SW)","Restructuring Year 1 - Subgroups","Improvement Year 2 - Subgroups"]
["0492","04920005","Martin Luther King Jr. Charter School of Excellence",407,"K  - 05","Title I School (SW)","Corrective Action - Subgroups","Improvement Year 1 - Subgroups"]
["0493","04930505","Phoenix Charter Academy",192,"09 - 12","Title I School (SW)"," "," "]
["0494","04940205","Pioneer Charter School of Science",294,"07 - 11","Title I School (SW)"," "," "]
["0496","04960305","Global Learning Charter Public School",483,"05 - 12","Title I School (SW)","Corrective Action - Subgroups","Corrective Action - Aggregate"]
["0497","04970205","Pioneer Valley Chinese Immersion Charter School",199,"K  - 07","Non-Title I School (NT)"," "," "]
["0499","04990305","Hampden Charter School of Science",234,"06 - 10","Title I School (SW)","Improvement Year 1 - Aggregate"," "]
["0600","06000505","Acton-Boxborough Reg High",1990,"09 - 12","Non-Title I School (NT)"," "," "]
["0600","06000405","Raymond J Grey JH",953,"07 - 08","Title I School (TA)"," ","Corrective Action - Subgroups"]
["0603","06030004","Cheshire Elementary",267,"PK - 06","Non-Title I School (NT)","Improvement Year 2 - Aggregate","Improvement Year 1 - Aggregate"]
["0603","06030505","Hoosac Valley High",668,"07 - 12","Non-Title I School (NT)","Improvement Year 1 - Subgroups","Improvement Year 1 - Subgroups"]
["0603","06030020","Plunkett Elementary",568,"K  - 06","Title I School (SW)","Restructuring Year 2+ - Aggregate","Corrective Action - Aggregate"]
["0605","06050505","Amherst Regional High",1103,"09 - 12","Non-Title I School (NT)","Corrective Action - Subgroups","Corrective Action - Subgroups"]
["0605","06050405","Amherst Regional MS",471,"07 - 08","Non-Title I School (NT)","Improvement Year 1 - Subgroups","Restructuring Year 2+ - Subgroups"]
["0610","06100025","Briggs Elem",445,"K  - 05","Title I School (TA)","Corrective Action - Aggregate","Improvement Year 1 - Aggregate"]
["0610","06100010","Meetinghouse School",208,"PK - 01","Title I School (TA)"," "," "]
["0610","06100505","Oakmont Regional H S",685,"09 - 12","Non-Title I School (NT)"," "," "]
["0610","06100305","Overlook Middle School",596,"06 - 08","Non-Title I School (NT)","Improvement Year 2 - Subgroups","Corrective Action - Subgroups"]
["0610","06100005","Westminster Elem",403,"02 - 05","Title I School (TA)","Corrective Action - Subgroups","Corrective Action - Subgroups"]
["0615","06150505","Athol High",451,"09 - 12","Non-Title I School (NT)","Improvement Year 1 - Aggregate","Improvement Year 2 - Subgroups"]
["0615","06150305","Athol-Royalston Middle School",456,"05 - 08","Title I School (TAP)","Corrective Action - Subgroups","Improvement Year 2 - Subgroups"]
["0615","06150005","Ellen Bigelow",30,"03 - 12","Non-Title I School (NT)"]
["0615","06150016","Pleasant St",217,"PK - 04","Non-Title I School (NT)","Improvement Year 2 - Aggregate","Improvement Year 2 - Subgroups"]
["0615","06150020","Riverbend",150,"K  - 05","Title I School (SW)","Corrective Action - Subgroups","Corrective Action - Aggregate"]
["0615","06150050","Royalston Community Sch",145,"PK - 06","Non-Title I School (NT)","Improvement Year 2 - Aggregate"," "]
["0615","06150025","Sanders Street",156,"K  - 03","Title I School (SW)","Corrective Action - Aggregate"," "]
["0618","06180505","Monument Mt Reg High",547,"09 - 12","Non-Title I School (NT)"," "," "]
["0618","06180310","Monument Valley Regional Middle School",391,"05 - 08","Title I School (TA)"," ","Restructuring Year 2+ - Aggregate"]
["0618","06180035","Muddy Brook Regional Elementary School",413,"PK - 04","Non-Title I School (NT)"," ","Improvement Year 2 - Aggregate"]
["0620","06200505","Tahanto Reg High",415,"07 - 12","Non-Title I School (NT)"," "," "]
["0622","06220015","A F Maloney",219,"04 - 05","Title I School (TA)","Restructuring Year 1 - Aggregate","Improvement Year 1 - Aggregate"]
["0622","06220505","Blackstone Millville RHS",552,"09 - 12","Non-Title I School (NT)"," "," "]
["0622","06220405","Frederick W. Hartnett Middle School",490,"06 - 08","Title I School (TA)","Restructuring Year 1 - Subgroups","Restructuring Year 2+ - Subgroups"]
["0622","06220008","John F Kennedy Elem",430,"K  - 03","Title I School (TA)"," "," "]
["0622","06220010","Millville Elem",322,"PK - 05","Non-Title I School (NT)"," "," "]
["0625","06250320","Bridgewater Middle School",574,"07 - 08","Non-Title I School (NT)","Improvement Year 1 - Subgroups","Restructuring Year 2+ - Subgroups"]
["0625","06250505","Bridgewater-Raynham Reg",1597,"09 - 12","Non-Title I School (NT)","Improvement Year 2 - Subgroups","Improvement Year 2 - Subgroups"]
["0625","06250050","Laliberte Elementary School",556,"02 - 04","Title I School (TA)","Restructuring Year 1 - Subgroups","Improvement Year 1 - Aggregate"]
["0625","06250020","Merrill Elementary School",339,"PK - 01","Title I School (TA)"," "," "]
["0625","06250002","Mitchell Elementary School",1017,"PK - 03","Title I School (TA)"," "," "]
["0625","06250315","Raynham Middle School",728,"05 - 08","Non-Title I School (NT)","Improvement Year 1 - Subgroups","Restructuring Year 2+ - Subgroups"]
["0625","06250300","Williams Intermediate School",896,"04 - 06","Title I School (TA)","Improvement Year 1 - Subgroups","Restructuring Year 2+ - Subgroups"]
["0632","06320025","New Hingham Regional Elem",169,"PK - 06","Non-Title I School (NT)","Improvement Year 2 - Aggregate"," "]
["0635","06350005","Becket Washington School",104,"PK - 05","Title I School (TA)"," "," "]
["0635","06350010","Berkshire Trail Elem",99,"PK - 05","Title I School (TA)"," ","Improvement Year 2 - Aggregate"]
["0635","06350025","Craneville",462,"K  - 05","Title I School (TA)","Improvement Year 1 - Aggregate"," "]
["0635","06350035","Kittredge",167,"PK - 05","Title I School (TA)"," ","Improvement Year 1 - Aggregate"]
["0635","06350305","Nessacus Regional Middle School",508,"05 - 08","Title I School (TA)","Improvement Year 2 - Subgroups","Restructuring Year 1 - Subgroups"]
["0635","06350505","Wahconah Regional High",593,"09 - 12","Non-Title I School (NT)"," "," "]
["0640","06400505","Concord Carlisle High",1208,"09 - 12","Title I School (TA)"," "," "]
["0645","06450505","Dennis-Yarmouth Reg High",870,"09 - 12","Non-Title I School (NT)","Improvement Year 2 - Subgroups","Corrective Action - Subgroups"]
["0645","06450005","Ezra H Baker",368,"PK - 03","Title I School (TA)"," "," "]
["0645","06450020","Laurence C MacArthur Elem",269,"PK - 03","Title I School (TA)"," ","Improvement Year 1 - Aggregate"]
["0645","06450015","Marguerite E Small Elem",317,"04 - 05","Title I School (SW)","Corrective Action - Subgroups","Corrective Action - Subgroups"]
["0645","06450305","Mattacheese Middle Sch",494,"06 - 08","Title I School (SW)","Improvement Year 2 - Subgroups","Restructuring Year 2+ - Subgroups"]
["0645","06450310","N H Wixon Middle",473,"04 - 08","Title I School (SW)","Restructuring Year 1 - Aggregate","Restructuring Year 2+ - Aggregate"]
["0645","06450025","Station Avenue Elem",408,"K  - 03","Title I School (TA)","Restructuring Year 1 - Subgroups"," "]
["0650","06500005","Dighton Elementary",477,"PK - 04","Title I School (TA)","Improvement Year 1 - Aggregate"," "]
["0650","06500305","Dighton Middle School",421,"05 - 08","Title I School (TA)","Improvement Year 1 - Subgroups","Improvement Year 1 - Subgroups"]
["0650","06500505","Dighton-Rehoboth Rhs",964,"09 - 12","Non-Title I School (NT)"," "," "]
["0650","06500310","Dorothy L Beckwith",614,"05 - 08","Title I School (TA)","Improvement Year 2 - Subgroups","Restructuring Year 2+ - Subgroups"]
["0650","06500010","Palmer River",710,"PK - 04","Title I School (TA)","Restructuring Year 2+ - Subgroups","Corrective Action - Subgroups"]
["0655","06550505","Dover-Sherborn Reg High",605,"09 - 12","Non-Title I School (NT)"," "," "]
["0655","06550405","Dover-Sherborn Reg MS",550,"06 - 08","Title I School (TA)"," ","Improvement Year 2 - Subgroups"]
["0658","06580020","Charlton Elementary",418,"PK - 01","Non-Title I School (NT)"," "," "]
["0658","06580310","Charlton Middle School",791,"05 - 08","Non-Title I School (NT)"," ","Improvement Year 2 - Subgroups"]
["0658","06580005","Dudley Elementary",433,"02 - 04","Title I School (TA)"," "," "]
["0658","06580305","Dudley Middle School",625,"05 - 08","Title I School (TA)","Improvement Year 1 - Subgroups","Restructuring Year 1 - Subgroups"]
["0658","06580030","Heritage School",511,"02 - 04","Non-Title I School (NT)","Improvement Year 2 - Subgroups"," "]
["0658","06580010","Mason Rd School",344,"PK - 01","Title I School (TA)"," "," "]
["0658","06580505","Shepherd Hill Reg High",1153,"09 - 12","Non-Title I School (NT)"," "," "]
["0660","06600305","Nauset Reg Middle",551,"06 - 08","Title I School (TA)","Improvement Year 2 - Subgroups","Restructuring Year 2+ - Subgroups"]
["0660","06600505","Nauset Regional High",975,"09 - 12","Non-Title I School (NT)"," "," "]
["0662","06620020","Farmington River Elem",144,"PK - 06","Title I School (TA)"," ","Improvement Year 1 - Aggregate"]
["0665","06650505","Apponequet Regional High",828,"09 - 12","Non-Title I School (NT)"," "," "]
["0665","06650002","Assawompset Elementary School",null,null,"Non-Title I School (NT)"]
["0665","06650001","Freetown Elementary School",null,null,"Non-Title I School (NT)"]
["0665","06650305","Freetown-Lakeville Middle School",830,"06 - 08","Title I School (TA)","Corrective Action - Subgroups","Restructuring Year 2+ - Subgroups"]
["0665","06650015","George R Austin Intermediate School",262,"05","Non-Title I School (NT)","Corrective Action - Subgroups","Improvement Year 2 - Subgroups"]
["0670","06700505","Frontier Reg",692,"07 - 12","Title I School (TA)","Corrective Action - Subgroups","Corrective Action - Subgroups"]
["0672","06720059","Chester Elementary",135,"PK - 04","Title I School (TA)","Restructuring Year 1 - Aggregate"," "]
["0672","06720505","Gateway Reg High",335,"09 - 12","Non-Title I School (NT)"," "," "]
["0672","06720405","Gateway Regional Junior High School",197,"07 - 08","Non-Title I School (NT)","Improvement Year 2 - Subgroups","Restructuring Year 2+ - Aggregate"]
["0672","06720410","Gateway Regional Middle School",150,"05 - 06","Title I School (TA)","Improvement Year 2 - Subgroups"," "]
["0672","06720143","Littleville Elementary School",286,"PK - 04","Non-Title I School (NT)","Restructuring Year 1 - Aggregate","Improvement Year 1 - Aggregate"]
["0673","06730001","Boutwell School",77,"PK","Non-Title I School (NT)"]
["0673","06730010","Florence Roche School",558,"K  - 04","Title I School (TA)"," "," "]
["0673","06730305","Groton Dunstable Reg Middle",926,"05 - 08","Title I School (TA)"," "," "]
["0673","06730505","Groton Dunstable Regional",866,"09 - 12","Non-Title I School (NT)"," "," "]
["0673","06730005","Swallow/Union School",344,"K  - 04","Non-Title I School (NT)"," "," "]
["0674","06740005","Gill Elem",135,"K  - 06","Non-Title I School (NT)"," "," "]
["0674","06740310","Great Falls Middle",251,"06 - 08","Non-Title I School (NT)","Corrective Action - Subgroups","Restructuring Year 2+ - Subgroups"]
["0674","06740050","Montague Elementary School",401,"PK - 05","Title I School (SW)"," "," "]
["0674","06740505","Turners Fall High",294,"09 - 12","Non-Title I School (NT)","Improvement Year 1 - Aggregate","Improvement Year 1 - Aggregate"]
["0675","06750007","Bessie Buker Elementary",266,"K  - 05","Title I School (TA)","Improvement Year 1 - Aggregate"," "]
["0675","06750010","Cutler School",291,"K  - 05","Title I School (TA)"," "," "]
["0675","06750505","Hamilton-Wenham Reg High",685,"09 - 12","Non-Title I School (NT)"," "," "]
["0675","06750310","Miles River Middle",447,"06 - 08","Non-Title I School (NT)"," ","Restructuring Year 2+ - Subgroups"]
["0675","06750015","Winthrop School",287,"PK - 05","Title I School (TA)"," "," "]
["0680","06800005","Green Meadows Elem",329,"PK - 04","Title I School (TA)"," "," "]
["0680","06800025","Mile Tree Elementary",366,"PK - 01","Non-Title I School (NT)"," "," "]
["0680","06800505","Minnechaug Reg High",1257,"09 - 12","Non-Title I School (NT)"," "," "]
["0680","06800030","Soule Road",394,"04 - 05","Title I School (TA)","Improvement Year 2 - Subgroups"," "]
["0680","06800050","Stony Hill School",314,"02 - 03","Title I School (TA)"," "," "]
["0680","06800305","Thornton Burgess",302,"05 - 08","Title I School (TA)"," ","Restructuring Year 1 - Subgroups"]
["0680","06800310","Wilbraham Middle",634,"06 - 08","Non-Title I School (NT)"," ","Improvement Year 1 - Subgroups"]
["0683","06830505","Hampshire Reg High",810,"07 - 12","Title I School (TA)","Improvement Year 2 - Subgroups","Restructuring Year 2+ - Subgroups"]
["0685","06850005","Hawlemont Reg",98,"PK - 06","Title I School (TA)"," ","Improvement Year 1 - Aggregate"]
["0690","06900510","King Philip Middle School",847,"07 - 08","Title I School (TA)","Improvement Year 2 - Subgroups","Restructuring Year 2+ - Subgroups"]
["0690","06900505","King Philip Reg High",1295,"09 - 12","Non-Title I School (NT)"," "," "]
["0695","06950505","Lincoln-Sudbury Reg High",1614,"09 - 12","Title I School (TA)"," "," "]
["0698","06980020","Essex Elementary",279,"PK - 05","Title I School (TA)"," "," "]
["0698","06980510","Manchester Essex Regional High School",461,"09 - 12","Non-Title I School (NT)"," "," "]
["0698","06980030","Manchester Essex Regional Middle School",350,"06 - 08","Non-Title I School (NT)"," "," "]
["0698","06980010","Manchester Memorial Elementary",428,"PK - 05","Non-Title I School (NT)"," "," "]
["0700","07000505","Marthas Vineyard Reg High",677,"09 - 12","Title I School (TA)"," "," "]
["0705","07050505","Masconomet Regional HS",1340,"09 - 12","Non-Title I School (NT)"," "," "]
["0705","07050405","Masconomet RMS",750,"07 - 08","Title I School (TA)"," ","Improvement Year 2 - Subgroups"]
["0710","07100179","Henry P Clough",504,"PK - 04","Title I School (TA)"," "," "]
["0710","07100001","Memorial School",577,"PK - 04","Non-Title I School (NT)"," "," "]
["0710","07100015","Miscoe Hill School",888,"05 - 08","Non-Title I School (NT)","Improvement Year 1 - Subgroups","Restructuring Year 2+ - Subgroups"]
["0710","07100510","Nipmuc Regional High",751,"09 - 12","Non-Title I School (NT)"," "," "]
["0715","07150505","Mt Greylock Reg High",602,"07 - 12","Title I School (TA)","Improvement Year 1 - Subgroups","Corrective Action - Subgroups"]
["0717","07170005","Buckland-Shelburne Reg",197,"PK - 06","Title I School (TA)","Restructuring Year 1 - Aggregate","Improvement Year 2 - Aggregate"]
["0717","07170010","Colrain Central",108,"PK - 06","Title I School (TA)","Improvement Year 1 - Subgroups","Improvement Year 1 - Subgroups"]
["0717","07170015","Heath Elementary",83,"PK - 06","Title I School (TA)"," ","Improvement Year 2 - Aggregate"]
["0717","07170505","Mohawk Trail Reg High",566,"07 - 12","Non-Title I School (NT)"," ","Restructuring Year 1 - Subgroups"]
["0717","07170020","Sanderson Academy",122,"K  - 06","Title I School (TA)"," "," "]
["0720","07200005","Baldwinville Elementary",171,"K  - 04","Title I School (TA)","Corrective Action - Aggregate","Improvement Year 1 - Subgroups"]
["0720","07200305","Narragansett Middle",511,"05 - 08","Non-Title I School (NT)"," ","Corrective Action - Subgroups"]
["0720","07200505","Narragansett Reg High",455,"09 - 12","Non-Title I School (NT)"," "," "]
["0720","07200003","Phillipston Memorial",126,"PK - 04","Title I School (TA)"," "," "]
["0720","07200020","Templeton Center",112,"K  - 02","Title I School (TA)"," "," "]
["0725","07250020","Center School",201,"04 - 05","Non-Title I School (NT)"," "," "]
["0725","07250025","Florence Sawyer Sch",873,"PK - 08","Non-Title I School (NT)"," ","Improvement Year 2 - Subgroups"]
["0725","07250310","Hale",295,"06 - 08","Non-Title I School (NT)"," "," "]
["0725","07250305","Luther Burbank Middle School",257,"06 - 08","Title I School (TA)"," ","Improvement Year 1 - Subgroups"]
["0725","07250010","Mary Rowlandson Elementary",520,"PK - 05","Title I School (TA)"," "," "]
["0725","07250505","Nashoba Regional",991,"09 - 12","Non-Title I School (NT)"," "," "]
["0725","07250015","Pompositticut",358,"K  - 03","Non-Title I School (NT)"," "," "]
["0728","07280015","Swift River",145,"PK - 06","Title I School (TA)"," "," "]
["0730","07300505","Algonquin Reg High",1438,"09 - 12","Non-Title I School (NT)"," "," "]
["0735","07350010","Ashby Elementary",211,"K  - 05","Title I School (TA)"," "," "]
["0735","07350030","Hawthorne Brook",607,"05 - 08","Non-Title I School (NT)","Corrective Action - Subgroups","Restructuring Year 2+ - Aggregate"]
["0735","07350310","Nissitissit Middle School",661,"05 - 08","Non-Title I School (NT)","Improvement Year 2 - Subgroups","Restructuring Year 2+ - Subgroups"]
["0735","07350505","North Middlesex Reg",1106,"09 - 12","Non-Title I School (NT)"," "," "]
["0735","07350515","Peter Fitzpatrick School",null,null,"Non-Title I School (NT)"]
["0735","07350005","Spaulding Memorial",517,"K  - 04","Title I School (TA)","Improvement Year 1 - Aggregate","Improvement Year 1 - Aggregate"]
["0735","07350002","Squannacook Early Childhood Center",109,"PK","Non-Title I School (NT)"]
["0735","07350035","Varnum Brook",698,"K  - 04","Title I School (TA)","Improvement Year 1 - Aggregate","Improvement Year 1 - Aggregate"]
["0740","07400505","Old Rochester Reg High",727,"09 - 12","Non-Title I School (NT)"," "," "]
["0740","07400405","Old Rochester Reg Jr High",463,"07 - 08","Title I School (TA)","Improvement Year 2 - Subgroups","Improvement Year 2 - Subgroups"]
["0745","07450020","Dr Frederick N Sweetsir",250,"PK - 02","Title I School (TA)","Improvement Year 1 - Aggregate"," "]
["0745","07450015","Dr John C Page School",489,"PK - 06","Non-Title I School (NT)","Improvement Year 1 - Subgroups"," "]
["0745","07450005","Elmer S Bagnall",650,"PK - 06","Non-Title I School (NT)"," "," "]
["0745","07450010","Helen R Donaghue School",401,"03 - 06","Non-Title I School (NT)","Improvement Year 2 - Subgroups","Improvement Year 2 - Subgroups"]
["0745","07450405","Pentucket Reg Middle",537,"07 - 08","Non-Title I School (NT)","Improvement Year 1 - Subgroups","Improvement Year 1 - Aggregate"]
["0745","07450505","Pentucket Reg Sr High",802,"09 - 12","Non-Title I School (NT)"," "," "]
["0750","07500006","Bernardston Elem",213,"PK - 06","Title I School (TA)","Restructuring Year 1 - Aggregate"," "]
["0750","07500008","Northfield Elementary",276,"PK - 06","Title I School (TA)","Improvement Year 2 - Aggregate","Restructuring Year 1 - Aggregate"]
["0750","07500007","Pearl E Rhodes Elem",54,"PK - 06","Non-Title I School (NT)"," "," "]
["0750","07500505","Pioneer Valley Reg",536,"07 - 12","Non-Title I School (NT)","Improvement Year 2 - Subgroups","Improvement Year 1 - Aggregate"]
["0750","07500009","Warwick Community School",53,"PK - 06","Title I School (TA)"," "," "]
["0753","07530005","Hardwick Elem",254,"K  - 06","Title I School (TA)","Improvement Year 1 - Aggregate","Improvement Year 1 - Aggregate"]
["0753","07530010","Hubbardston Center",397,"K  - 06","Non-Title I School (NT)","Restructuring Year 1 - Subgroups","Improvement Year 2 - Aggregate"]
["0753","07530020","New Braintree Grade",167,"PK - 01","Title I School (TA)"]
["0753","07530025","Oakham Center",204,"02 - 06","Title I School (TA)"," "," "]
["0753","07530505","Quabbin Regional High School",895,"09 - 12","Non-Title I School (NT)"," "," "]
["0753","07530405","Quabbin Regional Middle School",500,"07 - 08","Non-Title I School (NT)"," ","Restructuring Year 1 - Subgroups"]
["0753","07530030","Ruggles Lane",443,"K  - 06","Title I School (TA)","Corrective Action - Aggregate","Improvement Year 2 - Subgroups"]
["0755","07550515","Pathways Early College Innovation School",19,"11","Non-Title I School (NT)"]
["0755","07550505","Ralph C Mahar Reg",802,"07 - 12","Title I School (TA)"," ","Restructuring Year 2+ - Subgroups"]
["0755","07550525","The Gateway to College",null,null,"Non-Title I School (NT)"]
["0760","07600505","Silver Lake Reg High",1307,"09 - 12","Title I School (TA)"," "," "]
["0760","07600405","Silver Lake Regional Middle School",619,"07 - 08","Title I School (TA)","Improvement Year 1 - Subgroups","Improvement Year 1 - Aggregate"]
["0765","07650015","Monterey",11,"K","Non-Title I School (NT)"]
["0765","07650505","Mt Everett Regional",396,"07 - 12","Non-Title I School (NT)"," ","Improvement Year 1 - Aggregate"]
["0765","07650018","New Marlborough Central",75,"PK - 04","Non-Title I School (NT)","Improvement Year 2 - Aggregate"," "]
["0765","07650030","South Egremont",19,"K  - 01","Non-Title I School (NT)"]
["0765","07650035","Undermountain",369,"PK - 06","Title I School (TA)","Improvement Year 2 - Subgroups","Corrective Action - Subgroups"]
["0766","07660305","Powder Mill",572,"05 - 08","Title I School (TA)","Corrective Action - Subgroups","Improvement Year 2 - Subgroups"]
["0766","07660505","Southwick-Tolland Regional High",553,"09 - 12","Non-Title I School (NT)"," "," "]
["0766","07660010","Woodland Elementary",606,"PK - 04","Title I School (TA)","Restructuring Year 1 - Aggregate"," "]
["0767","07670505","David Prouty High",474,"09 - 12","Non-Title I School (NT)"," "," "]
["0767","07670008","East Brookfield Elementary",236,"PK - 06","Non-Title I School (NT)","Improvement Year 1 - Aggregate"," "]
["0767","07670415","Knox Trail Junior High",316,"07 - 08","Non-Title I School (NT)","Improvement Year 2 - Subgroups","Improvement Year 2 - Aggregate"]
["0767","07670010","Lake Street",314,"01 - 03","Title I School (TA)"," "," "]
["0767","07670005","Maple Street School",215,"PK - K","Non-Title I School (NT)"]
["0767","07670040","Wire Village School",417,"04 - 06","Title I School (TA)","Restructuring Year 2+ - Subgroups","Restructuring Year 2+ - Subgroups"]
["0770","07700405","Tantasqua Reg Jr High",557,"07 - 08","Title I School (TA)"," ","Restructuring Year 1 - Subgroups"]
["0770","07700505","Tantasqua Reg Sr High",867,"09 - 12","Non-Title I School (NT)"," "," "]
["0770","07700605","Tantasqua Reg Voc",358,"09 - 12","Title I School (TA)"," "," "]
["0773","07730020","Newbury Elementary",661,"PK - 06","Non-Title I School (NT)","Improvement Year 1 - Subgroups"," "]
["0773","07730025","Pine Grove",564,"PK - 06","Non-Title I School (NT)"," ","Improvement Year 1 - Subgroups"]
["0773","07730015","Salisbury Elementary",587,"PK - 06","Title I School (TA)","Improvement Year 1 - Aggregate","Improvement Year 1 - Subgroups"]
["0773","07730505","Triton Regional High School",788,"09 - 12","Non-Title I School (NT)"," "," "]
["0773","07730405","Triton Regional Middle School",459,"07 - 08","Non-Title I School (NT)","Improvement Year 2 - Subgroups","Improvement Year 2 - Subgroups"]
["0774","07740010","Chilmark Elementary",52,"PK - 05","Non-Title I School (NT)"," "," "]
["0774","07740020","West Tisbury Elem",265,"PK - 08","Non-Title I School (NT)"," "," "]
["0775","07750310","Central Tree Middle",401,"06 - 08","Title I School (TA)"," ","Improvement Year 1 - Subgroups"]
["0775","07750315","Chocksett Middle School",414,"05 - 08","Title I School (TA)","Improvement Year 2 - Subgroups","Improvement Year 1 - Subgroups"]
["0775","07750018","Davis Hill Elementary",511,"K  - 05","Title I School (TA)"," "," "]
["0775","07750020","Dawson",588,"PK - 05","Non-Title I School (NT)"," "," "]
["0775","07750060","Glenwood Elementary School",430,"03 - 05","Title I School (TA)"," "," "]
["0775","07750027","Houghton Elementary",511,"K  - 04","Title I School (TA)"," "," "]
["0775","07750032","Leroy E.Mayo",475,"K  - 05","Non-Title I School (NT)"," "," "]
["0775","07750305","Mountview Middle",788,"06 - 08","Non-Title I School (NT)","Improvement Year 1 - Subgroups","Improvement Year 1 - Subgroups"]
["0775","07750005","Naquag Elementary School",389,"K  - 02","Title I School (TA)"]
["0775","07750040","Paxton Center",527,"K  - 08","Title I School (TA)"," ","Improvement Year 1 - Subgroups"]
["0775","07750045","Thomas Prince",425,"K  - 08","Non-Title I School (NT)"," "," "]
["0775","07750505","Wachusett Regional High",2031,"09 - 12","Non-Title I School (NT)"," ","Improvement Year 1 - Subgroups"]
["0778","07780505","Quaboag Regional High",582,"07 - 12","Non-Title I School (NT)","Improvement Year 1 - Subgroups","Restructuring Year 1 - Subgroups"]
["0778","07780005","Warren Elementary",500,"PK - 06","Title I School (SW)","Restructuring Year 2+ - Subgroups","Corrective Action - Subgroups"]
["0778","07780010","West Brookfield Elem",364,"PK - 06","Non-Title I School (NT)"," ","Improvement Year 2 - Aggregate"]
["0780","07800315","Hanson Middle School",483,"06 - 08","Non-Title I School (NT)"," ","Restructuring Year 1 - Subgroups"]
["0780","07800035","Indian Head",454,"03 - 05","Non-Title I School (NT)","Improvement Year 2 - Subgroups","Restructuring Year 1 - Subgroups"]
["0780","07800030","John H Duval",585,"K  - 05","Title I School (TA)","Corrective Action - Subgroups"," "]
["0780","07800010","Louise A Conley",632,"PK - 05","Title I School (TA)","Corrective Action - Subgroups","Improvement Year 2 - Subgroups"]
["0780","07800025","Maquan Elementary",475,"PK - 02","Non-Title I School (NT)","Improvement Year 1 - Subgroups"," "]
["0780","07800505","Whitman Hanson Regional",1226,"09 - 12","Non-Title I School (NT)","Improvement Year 1 - Subgroups"," "]
["0780","07800310","Whitman Middle",536,"06 - 08","Non-Title I School (NT)","Corrective Action - Subgroups","Restructuring Year 1 - Subgroups"]
["0801","08010605","Assabet Valley Voc HS",997,"09 - 12","Title I School (TA)"," ","Improvement Year 1 - Subgroups"]
["0805","08050605","Blackstone Valley",1146,"09 - 12","Title I School (TA)"," "," "]
["0806","08060605","Blue Hills Reg Voc Tech",849,"09 - 12","Title I School (TA)"," "," "]
["0810","08100605","Bristol-Plymouth Voc Tech",1237,"09 - 12","Title I School (TA)"," "," "]
["0815","08150605","Cape Cod Region Voc Tech",693,"09 - 12","Title I School (TA)"," "," "]
["0818","08180605","Franklin County Tech",502,"09 - 12","Title I School (TA)"," "," "]
["0821","08210605","Diman Reg Voc Tech High",1361,"09 - 12","Title I School (SW)"," "," "]
["0823","08230605","Gr Lawrence Reg Voc Tech",1222,"09 - 12","Title I School (SW)","Restructuring Year 2+ - Subgroups","Restructuring Year 2+ - Subgroups"]
["0825","08250605","Gr New Bedford Voc Tech",2132,"09 - 12","Title I School (SW)"," ","Corrective Action - Subgroups"]
["0828","08280605","Gr Lowell Reg Voc Tech",2056,"09 - 12","Title I School (TA)"," ","Improvement Year 1 - Subgroups"]
["0829","08290605","Joseph P Keefe Tech HS",672,"09 - 12","Title I School (SW)"," "," "]
["0830","08300605","Minuteman Regional High",616,"09 - 12","Title I School (TA)"," "," "]
["0832","08320605","Montachusett Reg Voc Tech",1400,"09 - 12","Title I School (TA)"," ","Improvement Year 1 - Subgroups"]
["0851","08510605","Charles McCann Voc Tech",474,"09 - 12","Title I School (TA)"," "," "]
["0852","08520605","Nashoba Valley Tech H S",665,"09 - 12","Title I School (TA)"," "," "]
["0853","08530605","Northeast Metro Reg Voc",1265,"09 - 12","Title I School (SW)"," ","Improvement Year 2 - Subgroups"]
["0854","08540605","North Shore Reg Voc",466,"09 - 12","Title I School (TA)"," "," "]
["0855","08550605","Old Colony Reg Voc Tech",562,"09 - 12","Title I School (TA)"," "," "]
["0860","08600605","Pathfinder Voc Tech",635,"09 - 12","Title I School (SW)"," ","Improvement Year 2 - Subgroups"]
["0871","08710605","Shawsheen Valley Voc Tech High School",1324,"09 - 12","Title I School (TA)"," "," "]
["0872","08720605","Southeastern Reg Voc Tech",1262,"09 - 12","Title I School (SW)","Improvement Year 1 - Subgroups","Improvement Year 1 - Subgroups"]
["0873","08730605","So Shore Voc Tech High",599,"09 - 12","Title I School (TA)"," "," "]
["0876","08760605","Bay Path Reg Voc Tech H S",1077,"09 - 12","Title I School (TA)","Improvement Year 2 - Subgroups","Improvement Year 2 - Aggregate"]
["0878","08780605","Tri County Reg Voc Tech",963,"09 - 12","Title I School (TA)"," ","Improvement Year 2 - Subgroups"]
["0879","08790605","Upper Cape Cod Voc Tech",666,"09 - 12","Title I School (TA)"," "," "]
["0885","08850605","Whittier Reg Voc",1251,"09 - 12","Title I School (TA)"," "," "]
["0910","09100705","Bristol County Agr High",457,"09 - 12","Title I School (TA)"," "," "]
["0913","09130705","Essex Agr and Tech Inst",482,"09 - 12","Title I School (TA)"," "," "]
["0915","09150705","Norfolk County Agr",484,"09 - 12","Title I School (TA)"," "," "]

{"sheet":"Amendment","index":5,"n_rows":65,"n_cols":8,"rows_kept":65,"cut":false,"hidden":true,"merged":[[27,2,27,7],[28,2,28,7],[52,2,52,4],[51,2,51,4],[19,5,19,7],[37,2,37,3],[26,2,26,7],[25,1,25,7],[59,6,59,7],[57,6,57,7],[63,5,63,7],[59,4,59,5],[58,4,58,5],[57,4,57,5],[63,2,63,4],[62,2,62,4],[61,2,61,4],[62,5,62,7],[58,6,58,7],[64,5,64,7],[61,5,61,7],[29,1,29,2],[30,1,30,2],[60,2,60,4],[56,1,56,7],[54,2,54,4],[52,5,52,7],[53,5,53,7],[60,5,60,7],[54,5,54,7],[51,5,51,7],[53,2,53,4],[29,4,29,5],[30,4,30,5],[31,1,31,3],[1,1,1,7],[2,1,2,7],[3,1,3,7],[13,1,14,1],[16,1,17,1],[13,2,13,3],[16,2,16,3],[13,4,13,5],[4,1,4,7],[6,1,6,7],[9,2,9,7],[10,2,10,7],[7,2,7,7],[8,2,8,7],[15,4,15,7],[17,2,17,3],[12,2,12,3],[14,2,14,3],[11,1,12,1],[15,2,15,3],[11,2,11,3],[16,4,17,7],[18,2,18,3],[24,1,24,7],[20,5,20,7],[18,1,20,1],[20,2,20,3],[23,1,23,7],[22,1,22,5],[19,2,19,3],[18,5,18,7]]}
[]
[null,"Massachusetts Department of Elementary and Secondary Education"]
[null,"STANDARD APPLICATION FOR PROGRAM GRANTS"]
[null,"FORM AM 1"]
[null,"(AMENDMENT REQUEST FORM)"]
[]
[null,"PART 1:"]
[null,"A.","Fill in the highlighted sections of Parts I and II only (Part III will be calculated automatically) and submit the request at least 30 days prior to the proposed change and no later than 30 days prior to the termination date of the project."]
[null,"B. ","Email the entire workbook to: srg@doe.mass.edu"]
[null,"C.","Also, mail two copies of this signed Amendment form to: \nAmanda Trainor, Office of Effective Practices\nMassachusetts Department of Elementary and Secondary Education\n75 Pleasant Street   Malden, MA  02148-4906 "]
[null,"D.","Amendment requests must be approved in writing by an authorized representative of the Department of Elementary and Secondary Education prior to implementation."]
[null,"E.","Grant Recipient:",null,{"$f":"VLOOKUP('Cover Sheet'!$H$4,suptlist,5,FALSE)","v":"ORGANIZATION NAME"}]
[null,null,"(Legal Name of Agency",null,{"$f":"LEFT(VLOOKUP('Cover Sheet'!$H$4,suptlist,6,FALSE),4)","v":"ORGA"}]
[null,"F.","Address:",null,{"$f":"VLOOKUP('Cover Sheet'!$H$4,suptlist,7,FALSE)","v":"ADDRESS LINE 1"},{"$f":"VLOOKUP('Cover Sheet'!$H$4,'supt list 040604'!B16:L407,5,FALSE)","v":{"$error":"#N/A"}}]
[null,null,"(Street, City/Town/Zip Code)",null,{"$f":"VLOOKUP('Cover Sheet'!$H$4,suptlist,9,FALSE)","v":"CITY/TOWN"},{"$f":"VLOOKUP('Cover Sheet'!$H$4,suptlist,11,FALSE)","v":"ZIP CODE"}]
[null,"G.","Project Number:"]
[null,"H.","Name of grant program/",null,"Level 3 Turnaround Grant Fund Code 539"]
[null,null,"Source of funds"]
[null,"I.","Name of person ",null,"Name:"]
[null,null,"Completing this report:",null,"Title:"]
[null,null,"(Print or Type)",null,"Phone Number: "]
[]
[null,"PART II"]
[null,"Justification:  (Explain and justify why the proposed amendment should be implemented; attach additional sheets if the space provided is insufficient for this.)"]
[]
[null,"PART III: "]
[null,"A.","Leave Column B blank, if the budget approved originally has not been previously amended."]
[null,"B. ","Under Column C, indicate the amount of increase (+) or decrease (-) for the affected line items."]
[null,"C. ","Column D is automatically calculated based on information entered in Column A, B and C."]
[]
[]
[null,null,null,null,"Column A","Column B","Column C","Column D"]
[null,null,null,null,"BUDGET","APPROVED"]
[null,null,"LINE ITEM",null,"APPROVED","AMENDED","AMENDMENT","REVISED"]
[null,null,null,null,"ORIGINALLY","BUDGET","REQUEST","BUDGET"]
[null,null,null,null,null,"(If applicable)"]
[]
[null,"1.","Administrators",null,null,null,{"$f":"IF(F38 =\"\",H38-E38,H38-F38)","v":0},{"$f":"'Budget Pages'!N18","v":0}]
[null,"2.","Instructional/Direct Service Staff",null,null,null,{"$f":"IF(F39 =\"\",H39-E39,H39-F39)","v":0},{"$f":"'Budget Pages'!N27","v":0}]
[null,"3.","Support Staff",null,null,null,{"$f":"IF(F40 =\"\",H40-E40,H40-F40)","v":0},{"$f":"'Budget Pages'!N36","v":0}]
[null,"4.","Fringe","MTRS",null,null,{"$f":"IF(F41 =\"\",H41-E41,H41-F41)","v":0},{"$f":"'Budget Pages'!N50","v":0}]
[null,null,"Benefits","Other",null,null,{"$f":"IF(F42 =\"\",H42-E42,H42-F42)","v":0},{"$f":"'Budget Pages'!N49","v":0}]
[null,"5.","Contractual Services",null,null,null,0,{"$f":"'Budget Pages'!N63","v":0}]
[null,"6.","Supplies",null,null,null,0,{"$f":"'Budget Pages'!N73","v":0}]
[null,"7.","Travel",null,null,null,0,{"$f":"'Budget Pages'!N80","v":0}]
[null,"8.","Other",null,null,null,0,{"$f":"'Budget Pages'!N92","v":0}]
[null,"9.","Indirect Costs",null,null,null,0,{"$f":"'Budget Pages'!N93","v":0}]
[null,"10.","Equipment",null,null,null,{"$f":"IF(F48 =\"\",H48-F48,H48-E48)","v":0},{"$f":"'Budget Pages'!N98","v":0}]
[null,"11.","Total",null,{"$f":"SUM(E38:E48)","v":0},{"$f":"SUM(F38:F48)","v":0},{"$f":"SUM(G38:G48)","v":0},{"$f":"SUM(H38:H48)","v":0}]
[]
[null,"I certify that all the information contained in this AMENDMENT REQUEST is true and correct."]
[null,"1.","Signature of Authorized Representative:",null,null,"X"]
[null,"2.","Typed or Printed Name:"]
[null,"3.","Title: "]
[null,"4.","Date Report Submitted:"]
[]
[null,"PART IV (To be completed by the Department of Education)   ACTION TAKEN"]
[null,"A. ","APPROVED",null,"EFFECTIVE DATE OF APPROVAL:"]
[null,"B.","DISAPPROVED",null,"REASON FOR DISAPPROVAL:"]
[]
[null,"1.","Signature of Authorized DESE Representative:",null,null,"X"]
[null,"2.","Typed or Printed Name:"]
[null,"3.","Title: "]
[null,"4.","Date:"]
[null,null," ",null,null," "]

{"sheet":"Indirect Costs","index":6,"n_rows":30,"n_cols":4,"rows_kept":30,"cut":false,"hidden":false,"merged":[[0,1,0,3],[29,1,29,3],[25,1,25,3],[26,1,26,3],[27,1,27,3],[28,1,28,3],[3,1,3,3],[4,1,4,3],[5,1,5,3],[24,1,24,3]]}
[null,"Indirect Cost Calculation Worksheet"]
[]
[]
[null,"The following worksheet will automatically calculate the amount of funds that can be used by a school district for indirect costs."]
[null,"You will need to insert your school district's approved allowable rate and total funds requested in the yellow boxes. "]
[null,"You will need to input the rate in either percentage (A) or decimal form (B).  The \"amount that can be used for indirect\" is the maximum amount that your school districts can put in for indirect costs in line item 9. This worksheet assumes no capital expenditures.  See other important notes below."]
[null,"Indirect Cost Calculation (A)",null,"Input Your"]
[null,"Note: if percentage format used",null,"Grant Information"]
[null,null,"Example","Below"]
[null,"Total Funds Requested",100000,199742]
[null,"Indirect Cost Percentage: If percentage used (2.18%)",2.18E-2,1.2E-2]
[null,"Total Funds/(1+Percentage)",{"$f":"+C10/(1+C11)","v":97866.510080250533},{"$f":"+D10/(1+D11)","v":197373.51778656125}]
[null,"Maximum Amount that can be used for Indirect:",{"$f":"+C10-C12","v":2133.4899197494669},{"$f":"+D10-D12","v":2368.4822134387505}]
[null," "]
[null," "]
[null,"Indirect Cost Calculation (B)",null,"Input Your"]
[null,"Note: if decimal format used",null,"Grant Information"]
[null,null,"Example","Below"]
[null,"Total Funds Requested",100000,199542]
[null,"Indirect Cost Percentage: If decimals used  (.0218)",2.18E-2,1.2E-2]
[null,"Total Funds/(1+Percentage)",{"$f":"+C19/(1+C20)","v":97866.510080250533},{"$f":"+D19/(1+D20)","v":197175.88932806323}]
[null,"Maximum Amount that can be used for Indirect:",{"$f":"+C19-C21","v":2133.4899197494669},{"$f":"+D19-D21","v":2366.1106719367672}]
[]
[]
[null,"Important Notes regarding Indirect Costs:"]
[null,"For all school districts in Massachusetts, costs must be consistent with the rate established by the Department's Office of School Finance. For other than school systems, applicant agencies must comply with provisions of CFR 34 S.76.561. (Please note that indirect costs are not allowable under certain grant programs.  If you have any questions regarding this issue, contact the appropriate representative of the Department.)"]
[null,"Districts are allowed to take less than the maximum, but not more than the maximum allowable for indirect costs."]
[null,"In calculating the indirect cost allowable for a particular grant, note that indirect costs cannot be charged on either capital expenditures or on indirect costs themselves. To arrive at the allowable amount one cannot simply multiply a total entitlement by the indirect rate."]
[null,"The decision to recover indirect costs using these established rates is a local option. The rates are developed for school districts as the maximum allowable rate for a given fiscal year."]
[null,"If indirect costs are recovered, they shall be returned to the general fund of the city or town in accordance with G.L. Chapter 44, Section 53. In the case of regional schools, indirect costs shall be returned to the regional school general fund."]

{"sheet":"supt list 040604","index":7,"n_rows":395,"n_cols":11,"rows_kept":395,"cut":false,"hidden":true,"merged":[]}
[1,"FUNCTION","FIRST NAME","LAST NAME","ORGANIZATION NAME","ORGANIZATION CODE","ADDRESS LINE 1","ADDRESS LINE 2","CITY/TOWN","STATE","ZIP CODE"]
[2,"Charter School Leader","Kathleen Greenwood",null,"Abby Kelley Foster Charter","04450000","10 New Bond Street",null,"Worcester","MA","01606"]
[3,"Superintendent","Peter Schafer",null,"Abington","00010000","171 Adams St",null,"Abington","MA","02351"]
[4,"Charter School Leader","Susan Thompson",null,"Academy Of the Pacific Rim Charter","04120000","1 Westinghouse Plaza",null,"Hyde Park","MA","02136"]
[5,"Superintendent","Stephen Mills",null,"Acton","00020000","16 Charter Road",null,"Acton","MA","01720"]
[6,"Superintendent","Stephen Mills",null,"Acton-Boxborough","06000000","16 Charter Rd",null,"Acton","MA","01720"]
[7,"Superintendent","Stephen Donovan",null,"Acushnet","00030000","708 Middle Road","Suite 1","Acushnet","MA","02743"]
[8,"Superintendent","Alfred Skrocki",null,"Adams-Cheshire","06030000","125 Savoy Road",null,"Cheshire","MA","01225"]
[9,"Charter School Leader","Barbara McGann",null,"Advanced Math and Science Academy Charter","04300000","201 Forest Street",null,"Marlborough","MA","01752"]
[10,"Superintendent","Mary Czajkowski",null,"Agawam","00050000","1305 Springfield St","Suite 1","Feeding Hills","MA","01030"]
[11,"Superintendent","David Jack",null,"Amesbury","00070000","10 Congress Street",null,"Amesbury","MA","01913"]
[12,"Charter School Leader","Donna Georges",null,"Amesbury Academy Charter","04150000","9 Water Street",null,"Amesbury","MA","01913"]
[13,"Superintendent","Maria Geryk",null,"Amherst","00080000","170 Chestnut Street",null,"Amherst","MA","01002"]
[14,"Superintendent","Maria Geryk",null,"Amherst-Pelham","06050000","170 Chestnut Street",null,"Amherst","MA","01002"]
[15,"Superintendent","Marinel McGrath",null,"Andover","00090000","36 Bartlet Street",null,"Andover","MA","01810"]
[16,"Superintendent","Kathleen Bodie",null,"Arlington","00100000","869 Massachusetts Avenue",null,"Arlington","MA","02476"]
[17,"Superintendent","Michael Zapantis",null,"Ashburnham-Westminster","06100000","11 Oakmont Drive","c/o Office of the Superintendent","Ashburnham","MA","01430"]
[18,"Superintendent","Ann Marie Dargon",null,"Ashland","00140000","87 West Union Street",null,"Ashland","MA","01721"]
[19,"Superintendent","Mary Jo Nawrocki",null,"Assabet Valley Regional Vocational Technical","08010000","215 Fitchburg Street",null,"Marlborough","MA","01752"]
[20,"Superintendent","Anthony Polito",null,"Athol-Royalston","06150000","P.O.Box 968","1062 Pleasant Street","Athol","MA","01331"]
[21,"Charter School Leader","Robert Beatty",null,"Atlantis Charter","04910000","37 Park Street Street",null,"Fall River","MA","02721"]
[22,"Superintendent","Pia Durkin",null,"Attleboro","00160000","100 Rathbun Willard Drive",null,"Attleboro","MA","02703"]
[23,"Superintendent","Maryellen Brunelle",null,"Auburn","00170000","5 West Street",null,"Auburn","MA","01501"]
[24,"Superintendent","Margaret Frieswyk",null,"Avon","00180000","Patrick Clark Drive",null,"Avon","MA","02322"]
[25,"Superintendent","George Frost",null,"Ayer","00190000","141 Washington Street",null,"Ayer","MA","01432"]
[26,"Superintendent","Patricia Grenier",null,"Barnstable","00200000","P O Box 955","230 South Street","Hyannis","MA","02601"]
[27,"Charter School Leader","Kenneth Keenan",null,"Barnstable Community Horace Mann Charter","04270000","165 Bearses Way",null,"Hyannis","MA","02601"]
[28,"Charter School Leader","Kara Peterson",null,"Barnstable Horace Mann Charter","04230000","730 Osterville-W. Barnstable Road",null,"Marstons Mills","MA","02648"]
[29,"Superintendent","Maureen Lacroix",null,"Bedford","00230000","97 McMahon Road",null,"Bedford","MA","01730"]
[30,"Superintendent","Judith Houle",null,"Belchertown","00240000","PO Box 841",null,"Belchertown","MA","01007"]
[31,"Superintendent","David Fischer",null,"Bellingham","00250000","60 Harpin Street",null,"Bellingham","MA","02019"]
[32,"Superintendent","George Entwistle",null,"Belmont","00260000","644 Pleasant Street",null,"Belmont","MA","02478"]
[33,"Charter School Leader","Marlon Davis",null,"Benjamin Banneker Charter ","04200000","21 Notre Dame Avenue",null,"Cambridge","MA","02140"]
[34,"Charter School Leader","Kevin O'Malley",null,"Benjamin Franklin Classical Charter","04470000","201 Main Street",null,"Franklin","MA","02038"]
[35,"Superintendent","Thomas Lynch",null,"Berkley","00270000","21 North Main Street",null,"Berkley","MA","02779"]
[36,"Charter School Leader","Julia Bowen",null,"Berkshire Arts and Technology Charter","04140000","1 Commercial Pl","PO Box 267","Adams","MA","01220"]
[37,"Superintendent","Peter Dillon",null,"Berkshire Hills","06180000","50 Main Street","PO Box 617","Stockbridge","MA","01262"]
[38,"Superintendent","Brian McDermott",null,"Berlin","00280000","215 Main Street",null,"Boylston","MA","01505"]
[39,"Superintendent","Brian McDermott",null,"Berlin-Boylston","06200000","215 Main Street",null,"Boylston","MA","01505"]
[40,"Superintendent","Marie Galinski",null,"Beverly","00300000","502 Cabot St",null,"Beverly","MA","01915"]
[41,"Superintendent","Anthony Serio",null,"Billerica","00310000","365 Boston Rd",null,"Billerica","MA","01821"]
[42,"Superintendent","Michael Fitzpatrick",null,"Blackstone Valley Regional Vocational Technical","08050000","65 Pleasant Street",null,"Upton","MA","01568"]
[43,"Superintendent","Kimberly Shaver-Hood",null,"Blackstone-Millville","06220000","175 Lincoln Street",null,"Blackstone","MA","01504"]
[44,"Superintendent","James Quaglia",null,"Blue Hills Regional Vocational Technical","08060000","800 Randolph Street",null,"Canton","MA","02021"]
[45,"Superintendent","Carol Johnson",null,"Boston","00350000","26 Court Street",null,"Boston","MA","02108"]
[46,"Charter School Leader","Kathleen Sullivan",null,"Boston Collegiate Charter","04490000","11 Mayhew Street",null,"Dorchester","MA","02125"]
[47,"Charter School Leader","Beatriz McConnie Zapater",null,"Boston Day and Evening Academy Charter","04240000","20 Kearsarge Ave",null,"Roxbury","MA","02119"]
[48,"Charter School Leader","Howard Mccue",null,"Boston Preparatory Charter","04160000","1286 Hyde Park Avenue",null,"Hyde Park","MA","02136"]
[49,"Charter School Leader","Roger Harris",null,"Boston Renaissance Charter","04810000","1415 Hyde Park Ave",null,"Hyde Park","MA","02136"]
[50,"Superintendent","Steven Lamarche",null,"Bourne","00360000","36 Sandwich Rd",null,"Bourne","MA","02532"]
[51,"Superintendent","Curtis Bates",null,"Boxborough","00370000","493 Massachusetts Avenue",null,"Boxborough","MA","01719"]
[52,"Superintendent","Bernard Creeden",null,"Boxford","00380000","28 Middleton Road",null,"Boxford","MA","01921"]
[53,"Superintendent","Brian McDermott",null,"Boylston","00390000","215 Main Street",null,"Boylston","MA","01505"]
[54,"Superintendent","Peter Kurzberg",null,"Braintree","00400000","348 Pond Street",null,"Braintree","MA","02184"]
[55,"Superintendent","Richard Hoffmann",null,"Brewster","00410000","78 Eldredge Pkwy",null,"Orleans","MA","02653"]
[56,"Superintendent","Jacqueline Forbes",null,"Bridgewater-Raynham","06250000","166 Mt. Prospect Street",null,"Bridgewater","MA","02324"]
[57,"Superintendent","Daniel Durgin",null,"Brimfield","00430000","320A Brookfield Rd",null,"Fiskdale","MA","01518"]
[58,"Superintendent","Krista Paynton",null,"Bristol County Agricultural","09100000","135 Center Street",null,"Dighton","MA","02715"]
[59,"Superintendent","Richard Gross",null,"Bristol-Plymouth Regional Vocational Technical","08100000","940 County Street",null,"Taunton","MA","02780"]
[60,"Superintendent","Matthew Malone",null,"Brockton","00440000","43 Crescent Street",null,"Brockton","MA","02301"]
[61,"Superintendent","Daniel Durgin",null,"Brookfield","00450000","320 Brookfield Rd",null,"Fiskdale","MA","01518"]
[62,"Superintendent","William Lupini",null,"Brookline","00460000","333 Washington Street",null,"Brookline","MA","02445"]
[63,"Superintendent","Eric Conti",null,"Burlington","00480000","123 Cambridge Street",null,"Burlington","MA","01803"]
[64,"Superintendent","Jeffrey Young",null,"Cambridge","00490000","159 Thorndike Street",null,"Cambridge","MA","02141"]
[65,"Superintendent","Jeffrey Granatino",null,"Canton","00500000","960 Washington Street",null,"Canton","MA","02021"]
[66,"Charter School Leader","Katherine McNamara",null,"Cape Cod Lighthouse Charter","04320000","225 Rte 6A Bayberry Square",null,"Orleans","MA","02653"]
[67,"Superintendent","Robert Sanborn",null,"Cape Cod Regional Vocational Technical","08150000","351 Pleasant Lake Avenue",null,"Harwich","MA","02645"]
[68,"Superintendent","Joyce Mehaffey",null,"Carlisle","00510000","83 School Street",null,"Carlisle","MA","01741"]
[69,"Superintendent","Elizabeth Sorrell",null,"Carver","00520000","3 Carver Square Blvd.",null,"Carver","MA","02330"]
[70,"Superintendent","James Stankiewicz",null,"Central Berkshire","06350000","PO Box 299",null,"Dalton","MA","01227"]
[71,"Superintendent","Mary Ann Lanzo",null,"Chatham","00550000","425 Crowell Rd",null,"Chatham","MA","02633"]
[72,"Superintendent","Frank Tiano",null,"Chelmsford","00560000","230 North Road",null,"Chelmsford","MA","01824"]
[73,"Superintendent","Thomas Kingston",null,"Chelsea","00570000","500 Broadway Street","c/o City Hall Room 216","Chelsea","MA","02150"]
[74,"Superintendent","Craig Jurgensen",null,"Chesterfield-Goshen","06320000","19 Stage Rd",null,"Westhampton","MA","01027"]
[75,"Superintendent","Richard Rege",null,"Chicopee","00610000","180 Broadway Street",null,"Chicopee","MA","01020"]
[76,"Charter School Leader","Kristin Harrison",null,"Christa McAuliffe Regional Charter","04180000","25 Clinton Street",null,"Framingham","MA","01702"]
[77,"Charter School Leader","Erica Brown",null,"City On A Hill Charter","04370000","58 Circuit Street",null,"Roxbury","MA","02119"]
[78,"Superintendent","Jon Lev",null,"Clarksburg","00630000","777 West Crossroad",null,"Clarksburg","MA","01247"]
[79,"Superintendent","Terrance Ingano",null,"Clinton","00640000","150 School Street",null,"Clinton","MA","01510"]
[80,"Charter School Leader","Margaret Campbell",null,"Codman Academy Charter","04380000","637 Washington Street",null,"Dorchester","MA","02124"]
[81,"Superintendent","Denise Walsh",null,"Cohasset","00650000","143 Pond Street",null,"Cohasset","MA","02025"]
[82,"Charter School Leader","Paula Evans",null,"Community Charter School of Cambridge","04360000","245 Bent Street",null,"Cambridge","MA","02141"]
[83,"Charter School Leader","Sheila Balboni",null,"Community Day Charter","04400000","190 Hampshire Street",null,"Lawrence","MA","01840"]
[84,"Superintendent","Diana Rigby",null,"Concord","00670000","120 Meriam Rd",null,"Concord","MA","01742"]
[85,"Superintendent","Diana Rigby",null,"Concord-Carlisle","06400000","120 Meriam Rd",null,"Concord","MA","01742"]
[86,"Charter School Leader","Diana Lam",null,"Conservatory Lab Charter","04390000","25 Arlington Street",null,"Brighton","MA","02135"]
[87,"Superintendent","Regina Nash",null,"Conway","00680000","219 Christian Ln RFD1",null,"South Deerfield","MA","01373"]
[88,"Superintendent","Lisa Dana",null,"Danvers","00710000","64 Cabot Road",null,"Danvers","MA","01923"]
[89,"Superintendent","Stephen Russell",null,"Dartmouth","00720000","8 Bush Street",null,"Dartmouth","MA","02748"]
[90,"Superintendent","June Doe",null,"Dedham","00730000","100 Whiting Avenue",null,"Dedham","MA","02026"]
[91,"Superintendent","Regina Nash",null,"Deerfield","00740000","219 Christian Ln RFD1",null,"South Deerfield","MA","01373"]
[92,"Superintendent","Carol Woodbury",null,"Dennis-Yarmouth","06450000","296 Station Avenue",null,"South Yarmouth","MA","02664"]
[93,"Superintendent","Kathleen Montagano",null,"Dighton-Rehoboth","06500000","2700 Regional Road",null,"North Dighton","MA","02764"]
[94,"Charter School Leader","Robert Flynn",null,"Dorchester Collegiate Academy Charter","04750000","131 Hancock Street",null,"Dorchester","MA","02125"]
[95,"Superintendent","Nancy Lane",null,"Douglas","00770000","21 Davis Street",null,"Douglas","MA","01516"]
[96,"Superintendent","Valerie Spriggs",null,"Dover","00780000","157 Farm Street",null,"Dover","MA","02030"]
[97,"Superintendent","Valerie Spriggs",null,"Dover-Sherborn","06550000","157 Farm Street",null,"Dover","MA","02030"]
[98,"Superintendent","Stacy Scott",null,"Dracut","00790000","2063 Lakeview Avenue",null,"Dracut","MA","01826"]
[99,"Superintendent","Sean Gilrein",null,"Dudley-Charlton Reg","06580000","68 Dudley Oxford Road",null,"Dudley","MA","01571"]
[100,"Superintendent","Benedict Tantillo",null,"Duxbury","00820000","130 St. George Street",null,"Duxbury","MA","02332"]
[101,"Superintendent","Susan Cote",null,"East Bridgewater","00830000","11 Plymouth Street",null,"East Bridgewater","MA","02333"]
[102,"Superintendent","Gordon Smith",null,"East Longmeadow","00870000","180 Maple Street",null,"East Longmeadow","MA","01028"]
[103,"Superintendent","Richard Hoffmann",null,"Eastham","00850000","78 Eldredge Pkwy",null,"Orleans","MA","02653"]
[104,"Superintendent","Nancy Follansbee",null,"Easthampton","00860000","50 Payson Avenue","Second Floor","Easthampton","MA","01027"]
[105,"Superintendent","Michael Green",null,"Easton","00880000","PO Box 359",null,"North Easton","MA","02356"]
[106,"Superintendent","James Weiss",null,"Edgartown","00890000","4 Pine Street",null,"Vineyard Haven","MA","02568"]
[107,"Charter School Leader","Kimberly Steadman",null,"Edward Brooke Charter","04280000","190 Cummins Highway",null,"Roslindale","MA","02131"]
[108,"Charter School Leader","Caren Walker",null,"Edward M. Kennedy Academy for Health Careers ","04520000","360 Huntington Avenue","c/o 102 Cahners Hall","Boston","MA","02115"]
[109,"Superintendent","Joan Wickman",null,"Erving","00910000","18 Pleasant Street",null,"Erving","MA","01344"]
[110,"Superintendent","Roger Bourgeois",null,"Essex Agricultural Technical","09130000","PO BOX 362",null,"Hathorne","MA","01937"]
[111,"Superintendent","Frederick Foresteire",null,"Everett","00930000","121 Vine Street",null,"Everett","MA","02149"]
[112,"Charter School Leader","David Ellis",null,"Excel Academy Charter","04100000","1150 Saratoga Street",null,"East Boston","MA","02128"]
[113,"Superintendent","Robert Baldwin",null,"Fairhaven","00940000","128 Washington Street",null,"Fairhaven","MA","02719"]
[114,"Superintendent","Margery Mayo-Brown",null,"Fall River","00950000","417 Rock Street",null,"Fall River","MA","02720"]
[115,"Superintendent","Marc Dupuis",null,"Falmouth","00960000","340 Teaticket Hwy",null,"East Falmouth","MA","02536"]
[116,"Superintendent","Joanne Austin",null,"Farmington River Reg","06620000","555 N Main Street","PO Box 679","Otis","MA","01253"]
[117,"Superintendent","Andre Ravenelle",null,"Fitchburg","00970000","376 South Street",null,"Fitchburg","MA","01420"]
[118,"Superintendent","Jon Lev",null,"Florida","00980000","56 North County Rd",null,"Florida","MA","01247"]
[119,"Charter School Leader","Peter Garbus",null,"Four Rivers Charter ","04130000","248 Colrain Road",null,"Greenfield","MA","01301"]
[120,"Superintendent","Christopher Martes",null,"Foxborough","00990000","60 South Street","C/O Igo Administration Building","Foxborough","MA","02035"]
[121,"Charter School Leader","Mark Logan",null,"Foxborough Regional Charter","04460000","131 Central Street",null,"Foxborough","MA","02035"]
[122,"Superintendent","Steven Hiersche",null,"Framingham","01000000","31 Flagg Drive","Office of the Superintendent","Framingham","MA","01702"]
[123,"Charter School Leader","Diane Kruse",null,"Francis W. Parker Charter Essential","04780000","49 Antietam Street",null,"Devens","MA","01434"]
[124,"Superintendent","Maureen Sabolinski",null,"Franklin","01010000","355 East Central Street",null,"Franklin","MA","02038"]
[125,"Superintendent","Richard Lane",null,"Franklin County Regional Vocational Technical","08180000","82 Industrial Blvd",null,"Turners Falls","MA","01376"]
[126,"Superintendent","John McCarthy",null,"Freetown","01020000","98 Howland Rd",null,"Lakeville","MA","02347"]
[127,"Superintendent","John McCarthy",null,"Freetown-Lakeville","06650000","98 Howland Rd",null,"Lakeville","MA","02347"]
[128,"Superintendent","Regina Nash",null,"Frontier","06700000","219 Christian Ln RFD1",null,"South Deerfield","MA","01373"]
[129,"Superintendent","Carol Daring",null,"Gardner","01030000","70 Waterford Street",null,"Gardner","MA","01440"]
[130,"Superintendent","David Hopson",null,"Gateway","06720000","12 Littleville Road",null,"Huntington","MA","01050"]
[131,"Superintendent","Carol Jacobs",null,"Georgetown","01050000","51 North Street",null,"Georgetown","MA","01833"]
[132,"Superintendent","Carl Ladd",null,"Gill-Montague","06740000","35 Crocker Avenue",null,"Turners Falls","MA","01376"]
[133,"Charter School Leader","Stephen Furtado",null,"Global Learning Charter","04960000","190 Ashley Boulevard",null,"New Bedford","MA","02746"]
[134,"Superintendent","Joseph Connelly",null,"Gloucester","01070000","6 School House Rd",null,"Gloucester","MA","01930"]
[135,"Charter School Leader","Anthony Blackman",null,"Gloucester Community Arts Charter","04480000","PO Box 1631",null,"Gloucester","MA","01930"]
[136,"Superintendent","Russell Latham",null,"Gosnold","01090000","16 Williams Street",null,"Rehoboth","MA","02769"]
[137,"Superintendent","Joseph Connors",null,"Grafton","01100000","30 Providence Rd",null,"Grafton","MA","01519"]
[138,"Superintendent","Patricia Stevens",null,"Granby","01110000","387 East State Street",null,"Granby","MA","01033"]
[139,"Superintendent","John Barry",null,"Granville","01120000","86 Powder Mill Road",null,"Southwick","MA","01077"]
[140,"Superintendent","Marta Montleon",null,"Greater Fall River Regional Vocational Technical","08210000","251 Stonehaven Rd",null,"Fall River","MA","02723"]
[141,"Superintendent","John Lavoie",null,"Greater Lawrence Regional Vocational Technical","08230000","57 River Rd",null,"Andover","MA","01810"]
[142,"Superintendent","MaryJo Santoro",null,"Greater Lowell Regional Vocational Technical","08280000","250 Pawtucket Blvd",null,"Tyngsborough","MA","01879"]
[143,"Superintendent","Michael Shea",null,"Greater New Bedford Regional Vocational Technical","08250000","1121 Ashley Blvd",null,"New Bedford","MA","02745"]
[144,"Superintendent","Susan Hollins",null,"Greenfield","01140000","141 Davis Street",null,"Greenfield","MA","01301"]
[145,"Superintendent","Joseph Mastrocola",null,"Groton-Dunstable","06730000","P O Box 729",null,"Groton","MA","01450"]
[146,"Superintendent","Nicholas Young",null,"Hadley","01170000","125 Russell Street",null,"Hadley","MA","01035"]
[147,"Superintendent","John Tuffy",null,"Halifax","01180000","250 Pembroke Street",null,"Kingston","MA","02364"]
[148,"Superintendent","Raleigh Buchanan",null,"Hamilton-Wenham","06750000","5 School Street",null,"Wenham","MA","01984"]
[149,"Charter School Leader","Harun Celik",null,"Hampden Charter School of Science","04990000","20 Johnson Road",null,"Chicopee","MA","01022"]
[150,"Superintendent","Maurice O'Shea",null,"Hampden-Wilbraham","06800000","621 Main Street",null,"Wilbraham","MA","01095"]
[151,"Superintendent","Craig Jurgensen",null,"Hampshire","06830000","19 Stage Rd",null,"Westhampton","MA","01027"]
[152,"Superintendent","William Ballen",null,"Hancock","01210000","1831 STATE ROAD",null,"RICHMOND","MA","01254"]
[153,"Superintendent","Kristine Nash",null,"Hanover","01220000","188 Broadway Street",null,"Hanover","MA","02339"]
[154,"Superintendent","Thomas Jefferson",null,"Harvard","01250000","39 Massachusetts Avenue",null,"Harvard","MA","01451"]
[155,"Superintendent","Carolyn Cragin",null,"Harwich","01260000","81 Oak Street",null,"Harwich","MA","02645"]
[156,"Superintendent","John Robert",null,"Hatfield","01270000","34 School Street",null,"Hatfield","MA","01038"]
[157,"Superintendent","James Scully",null,"Haverhill","01280000","4 Summer Street",null,"Haverhill","MA","01830"]
[158,"Superintendent","Michael Buoniconti",null,"Hawlemont","06850000","24 Ashfield Rd",null,"Shelburne Falls","MA","01370"]
[159,"Charter School Leader","Janet Begin",null,"Hill View Montessori Charter","04550000","75 Foundation Ave",null,"Haverhill","MA","01835"]
[160,"Charter School Leader","Amy Aaron",null,"Hilltown Cooperative Charter","04500000","132 Main Street","Box 147","Haydenville","MA","01039"]
[161,"Superintendent","Dorothy Galo",null,"Hingham","01310000","220 Central Street",null,"Hingham","MA","02043"]
[162,"Superintendent","Joseph Baeta",null,"Holbrook","01330000","245 So. Franklin Street",null,"Holbrook","MA","02343"]
[163,"Superintendent","Daniel Durgin",null,"Holland","01350000","320 Brookfield Rd",null,"Fiskdale","MA","01518"]
[164,"Superintendent","Bradford Jackson",null,"Holliston","01360000","370 Hollis Street",null,"Holliston","MA","01746"]
[165,"Superintendent","David Dupont",null,"Holyoke","01370000","57 Suffolk Street",null,"Holyoke","MA","01040"]
[166,"Charter School Leader","Sonia Pope",null,"Holyoke Community Charter ","04530000","2200 Northampton St.",null,"Holyoke","MA","01040"]
[167,"Superintendent","Dennis Breen",null,"Hopedale","01380000","25 Adin Street",null,"Hopedale","MA","01747"]
[168,"Superintendent","John Phelan",null,"Hopkinton","01390000","89 Hayden Rowe Street",null,"Hopkinton","MA","01748"]
[169,"Superintendent","Kevin Lyons",null,"Hudson","01410000","155 Apsley Street",null,"Hudson","MA","01749"]
[170,"Superintendent","Kathleen Tyrell",null,"Hull","01420000","180 Harborview Road",null,"Hull","MA","02045"]
[171,"Charter School Leader","Walter Landberg",null,"Innovation Academy Charter","04350000","72 Tyng Road",null,"Tyngsborough","MA","01879"]
[172,"Superintendent","Jan Avallone",null,"Institutional Schools","03700000","75 Pleasant Street",null,"Malden","MA","02148"]
[173,"Superintendent","Richard Korb",null,"Ipswich","01440000","1 Lord Square",null,"Ipswich","MA","01938"]
[174,"Superintendent","Elizabeth Zielinski",null,"King Philip","06900000","18 King Street",null,"Norfolk","MA","02056"]
[175,"Superintendent","John Tuffy",null,"Kingston","01450000","250 Pembroke Street",null,"Kingston","MA","02364"]
[176,"Charter School Leader","Joshua Zoia",null,"KIPP Academy Lynn Charter","04290000","25 Bessom Street",null,"Lynn","MA","01902"]
[177,"Superintendent","John McCarthy",null,"Lakeville","01460000","98 Howland Rd",null,"Lakeville","MA","02347"]
[178,"Superintendent","Rose Ellis",null,"Lanesborough","01480000","188 Summer Street",null,"Lanesborough","MA","01237"]
[179,"Superintendent","Mary Bergeron",null,"Lawrence","01490000","255 Essex Street",null,"Lawrence","MA","01840"]
[180,"Charter School Leader","Ralph Carrero",null,"Lawrence Family Development Charter","04540000","34 West Street",null,"Lawrence","MA","01841"]
[181,"Superintendent","Jason McCandless",null,"Lee","01500000","480 Pleasant Street","Suite 102","Lee","MA","01238"]
[182,"Superintendent","Paul Soojian",null,"Leicester","01510000","1078 Main Street",null,"Leicester","MA","01524"]
[183,"Superintendent","Edward Costa",null,"Lenox","01520000","6 Walker Street",null,"Lenox","MA","01240"]
[184,"Superintendent","Anthony Bent",null,"Leominster","01530000","24 Church Street",null,"Leominster","MA","01453"]
[185,"Superintendent","Joan Wickman",null,"Leverett","01540000","18 Pleasant Street",null,"Erving","MA","01344"]
[186,"Superintendent","Paul Ash",null,"Lexington","01550000","146 Maple Street",null,"Lexington","MA","02420"]
[187,"Superintendent","Michael Brandmeyer",null,"Lincoln","01570000","1 Ballfield Road",null,"Lincoln","MA","01773"]
[188,"Superintendent","Scott Carpenter",null,"Lincoln-Sudbury","06950000","390 Lincoln Rd",null,"Sudbury","MA","01776"]
[189,"Superintendent","Joseph Buckley",null,"Littleton","01580000","PO Box 1486",null,"Littleton","MA","01460"]
[190,"Superintendent","Marie Doyle",null,"Longmeadow","01590000","127 Grassy Gutter Rd",null,"Longmeadow","MA","01106"]
[191,"Superintendent","Chris Scott",null,"Lowell","01600000","43 Highland Street",null,"Lowell","MA","01852"]
[192,"Charter School Leader","Kathy Egmont",null,"Lowell Community Charter Public","04560000","206 Jackson Street",null,"Lowell","MA","01852"]
[193,"Charter School Leader","Margaret McDevitt",null,"Lowell Middlesex Academy Charter","04580000","67 Middle St",null,"Lowell","MA","01852"]
[194,"Superintendent","Theresa Kane",null,"Ludlow","01610000","63 Chestnut Street",null,"Ludlow","MA","01056"]
[195,"Superintendent","Loxi Jo Calmes",null,"Lunenburg","01620000","1025 Mass Avenue",null,"Lunenburg","MA","01462"]
[196,"Superintendent","Catherine Latham",null,"Lynn","01630000","90 Commercial Street",null,"Lynn","MA","01905"]
[197,"Superintendent","Robert Hassett",null,"Lynnfield","01640000","55 Summer Street",null,"Lynnfield","MA","01940"]
[198,"Superintendent","Robert Salvatelli",null,"Ma Academy for Math and Science","04680000","85 Prescott Street",null,"Worcester","MA","01605"]
[199,"Superintendent","Sidney Smith",null,"Malden","01650000","200 Pleasant Street",null,"Malden","MA","02148"]
[200,"Superintendent","Pamela Beaudoin",null,"Manchester Essex Regional","06980000","PO BOX 1407",null,"Manchester","MA","01944"]
[201,"Superintendent","Brenda Hodges",null,"Mansfield","01670000","2 Park Row",null,"Mansfield","MA","02048"]
[202,"Superintendent","Paul Dulac",null,"Marblehead","01680000","9 Widger Road",null,"Marblehead","MA","01945"]
[203,"Charter School Leader","Helena Cullen-Hamzeh",null,"Marblehead Community Charter","04640000","17 Lime Street",null,"Marblehead","MA","01945"]
[204,"Superintendent","Douglas White",null,"Marion","01690000","135 Marion Rd",null,"Mattapoisett","MA","02739"]
[205,"Superintendent","Anthony Pope",null,"Marlborough","01700000","17 Washington Street",null,"Marlborough","MA","01752"]
[206,"Superintendent","Middleton McGoodwin",null,"Marshfield","01710000","76 South River Street",null,"Marshfield","MA","02050"]
[207,"Superintendent","James Weiss",null,"Marthas Vineyard","07000000","4 Pine Street",null,"Vineyard Haven","MA","02568"]
[208,"Charter School Leader","Robert Moore",null,"Martha's Vineyard Charter","04660000","PO Box 1150",null,"West Tisbury","MA","02575"]
[209,"Charter School Leader","Alan Katz",null,"Martin Luther King Jr. Charter School of Excellence","04920000","285 Dorset Street",null,"Springfield","MA","01108"]
[210,"Superintendent","Darrell Lockwood",null,"Masconomet","07050000","20 Endicott Rd",null,"Topsfield","MA","01983"]
[211,"Superintendent","Ann Bradshaw",null,"Mashpee","01720000","150-A Old Barnstable Road",null,"Mashpee","MA","02649"]
[212,"Charter School Leader","Alan P Safran",null,"MATCH Charter Public School","04690000","1001 Commonwealth Avenue",null,"Boston","MA","02215"]
[213,"Superintendent","Douglas White",null,"Mattapoisett","01730000","135 Marion Rd",null,"Mattapoisett","MA","02739"]
[214,"Superintendent","Mark Masterson",null,"Maynard","01740000","12 Bancroft Street",null,"Maynard","MA","01754"]
[215,"Superintendent","Robert Maguire",null,"Medfield","01750000","459 Main St","3rd Fl","Medfield","MA","02052"]
[216,"Superintendent","Roy Belson",null,"Medford","01760000","489 Winthrop Street",null,"Medford","MA","02155"]
[217,"Superintendent","Judith Evans",null,"Medway","01770000","45 Holliston Street",null,"Medway","MA","02053"]
[218,"Superintendent","Joseph Casey",null,"Melrose","01780000","360 Lynn Fells Pkwy",null,"Melrose","MA","02176"]
[219,"Superintendent","Antonio Fernandes",null,"Mendon-Upton","07100000","150 North Ave",null,"Mendon","MA","01756"]
[220,"Superintendent","Judith Scannell",null,"Methuen","01810000","10 Ditson Pl",null,"Methuen","MA","01844"]
[221,"Superintendent","Michael Malone",null,"Middleborough","01820000","30 Forest Street",null,"Middleborough","MA","02346"]
[222,"Superintendent","Bernard Creeden",null,"Middleton","01840000","28 Middleton Road",null,"Boxford","MA","01921"]
[223,"Superintendent","Robert Tremblay",null,"Milford","01850000","31 West Fountain Street",null,"Milford","MA","01757"]
[224,"Superintendent","Susan Hitchcock",null,"Millbury","01860000","12 Martin Street",null,"Millbury","MA","01527"]
[225,"Superintendent","Nancy Gustafson",null,"Millis","01870000","245 Plain Street","Central Office","Millis","MA","02054"]
[226,"Superintendent","Mary Gormley",null,"Milton","01890000","25 Gile Road",null,"Milton","MA","02186"]
[227,"Superintendent","Edward Bouquillon",null,"Minuteman Regional Vocational Technical","08300000","758 Marrett Rd",null,"Lexington","MA","02421"]
[228,"Superintendent","Michael Buoniconti",null,"Mohawk Trail","07170000","24 Ashfield Rd",null,"Shelburne Falls","MA","01370"]
[229,"Superintendent","Patrice Dardenne",null,"Monson","01910000","P O Box 159",null,"Monson","MA","01057"]
[230,"Superintendent","James Culkeen",null,"Montachusett Regional Vocational Technical","08320000","1050 Westminster Street",null,"Fitchburg","MA","01420"]
[231,"Superintendent","Rose Ellis",null,"Mount Greylock","07150000","1781 Cold Spring Rd",null,"Williamstown","MA","01267"]
[232,"Charter School Leader","Joseph McCleary",null,"Mystic Valley Regional Charter","04700000","45 Lebanon Street",null,"Malden","MA","02148"]
[233,"Superintendent","Philip Devaux",null,"Nahant","01960000","290 Castle Road",null,"Nahant","MA","01908"]
[234,"Superintendent","William Cozort",null,"Nantucket","01970000","10 Surfside Road",null,"Nantucket","MA","02554"]
[235,"Superintendent","Roseli Weiss",null,"Narragansett","07200000","462 Baldwinville Road",null,"Baldwinville","MA","01436"]
[236,"Superintendent","Michael Wood",null,"Nashoba","07250000","50 Mechanic Street",null,"Bolton","MA","01740"]
[237,"Superintendent","Judith Klimkiewicz",null,"Nashoba Valley Regional Vocational Technical","08520000","100 Littleton Road",null,"Westford","MA","01886"]
[238,"Superintendent","Peter Sanchioni",null,"Natick","01980000","13 East Central Street",null,"Natick","MA","01760"]
[239,"Superintendent","Richard Hoffmann",null,"Nauset","06600000","78 Eldredge Pkwy",null,"Orleans","MA","02653"]
[240,"Superintendent","Daniel Gutekanst",null,"Needham","01990000","1330 Highland Avenue",null,"Needham","MA","02492"]
[241,"Charter School Leader","Kevin Andrews",null,"Neighborhood House Charter","04440000","21 Queen Street",null,"Dorchester","MA","02122"]
[242,"Superintendent","Mary Francis",null,"New Bedford","02010000","455 County Street","C/O Paul Rodrigues Administration Bldg.","New Bedford","MA","02740"]
[243,"Charter School Leader","Charmaine White",null,"New Leadership Charter","04710000","37 Alderman Street",null,"Springfield","MA","01108"]
[244,"Superintendent","Joan Wickman",null,"New Salem-Wendell","07280000","18 Pleasant Street",null,"Erving","MA","01344"]
[245,"Superintendent","Marc Kerble",null,"Newburyport","02040000","70 Low Street",null,"Newburyport","MA","01950"]
[246,"Superintendent","David Fleishman",null,"Newton","02070000","100 Walnut Street",null,"Newtonville","MA","02460"]
[247,"Superintendent","Claire Jackson",null,"Norfolk","02080000","70 Boardman Street",null,"Norfolk","MA","02056"]
[248,"Superintendent","Michael McFarland",null,"Norfolk County Agricultural","09150000","400 Main Street",null,"Walpole","MA","02081"]
[249,"Superintendent","James Montepare",null,"North Adams","02090000","191 East Main Street","Ste 1","North Adams","MA","01247"]
[250,"Superintendent","Christopher Hottel",null,"North Andover","02110000","1600 Osgood Street","Suite 3-59","North Andover","MA","01845"]
[251,"Superintendent","James Rice",null,"North Attleborough","02120000","6 Morse Street",null,"No. Attleborough","MA","02760"]
[252,"Superintendent","Gordon Noseworthy",null,"North Brookfield","02150000","10 New School Drive",null,"North Brookfield","MA","01535"]
[253,"Charter School Leader","Stephanie Davolos",null,"North Central Charter Essential","04740000","1 Oak Hill Road","Suite 100","Fitchburg","MA","01420"]
[254,"Superintendent","Maureen Marshall",null,"North Middlesex","07350000","45 Main Street",null,"Pepperell","MA","01463"]
[255,"Superintendent","Kathleen Willis",null,"North Reading","02170000","0 Sherman Road",null,"North Reading","MA","01864"]
[256,"Superintendent","Daniel O'Connell",null,"North Shore Regional Vocational Technical","08540000","30 Log Bridge Road","PO Box 806","Middleton","MA","01949"]
[257,"Superintendent","Isabelina Rodriguez",null,"Northampton","02100000","212 Main Street",null,"Northampton","MA","01060"]
[258,"Superintendent","Arthur Apostolou",null,"Northampton-Smith Vocational Agricultural","04060000","80 Locust Street",null,"Northampton","MA","01060"]
[259,"Superintendent","Charles Gobron",null,"Northboro-Southboro","07300000","53 Parkerville Road",null,"Southborough","MA","01772"]
[260,"Superintendent","Charles Gobron",null,"Northborough","02130000","53 Parkerville Road",null,"Southborough","MA","01772"]
[261,"Superintendent","Susan Gorky",null,"Northbridge","02140000","87 Linwood Avenue",null,"Whitinsville","MA","01588"]
[262,"Superintendent","John Crowley",null,"Northeast Metropolitan Regional Vocational Technical","08530000","100 Hemlock Rd",null,"Wakefield","MA","01880"]
[263,"Superintendent","James Brosnan",null,"Northern Berkshire Regional Vocational Technical","08510000","70 Hodges Cross Rd",null,"North Adams","MA","01247"]
[264,"Superintendent","Patricia Ansay",null,"Norton","02180000","64 West Main Street",null,"Norton","MA","02766"]
[265,"Superintendent","Donald Beaudette",null,"Norwell","02190000","322 Main Street",null,"Norwell","MA","02061"]
[266,"Superintendent","James Hayden",null,"Norwood","02200000","275 Prospect Street","PO BOX 67","Norwood","MA","02062"]
[267,"Superintendent","James Weiss",null,"Oak Bluffs","02210000","4 Pine Street",null,"Vineyard Haven","MA","02568"]
[268,"Superintendent","Gary Brown",null,"Old Colony Regional Vocational Technical","08550000","476 North Avenue",null,"Rochester","MA","02770"]
[269,"Superintendent","Douglas White",null,"Old Rochester","07400000","135 Marion Rd",null,"Mattapoisett","MA","02739"]
[270,"Superintendent","Paul Burnim",null,"Orange","02230000","131 West Main Street",null,"Orange","MA","01364"]
[271,"Superintendent","Richard Hoffmann",null,"Orleans","02240000","78 Eldredge Pkwy",null,"Orleans","MA","02653"]
[272,"Superintendent","Allen Himmelberger",null,"Oxford","02260000","5 Sigourney Street",null,"Oxford","MA","01540"]
[273,"Superintendent","Gerald Fournier",null,"Palmer","02270000","24 Converse Street","c/o Suite 1","Palmer","MA","01069"]
[274,"Superintendent","Gerald Paist",null,"Pathfinder Regional Vocational Technical","08600000","240 Sykes Street",null,"Palmer","MA","01069"]
[275,"Superintendent","Charles Burnett",null,"Peabody","02290000","21 Johnson Street",null,"Peabody","MA","01960"]
[276,"Superintendent","Maria Geryk",null,"Pelham","02300000","170 Chestnut Street","Business Office","Amherst","MA","01002"]
[277,"Superintendent","Frank Hackett",null,"Pembroke","02310000","72 Pilgrim Road","Office of the Superintendent","Pembroke","MA","02359"]
[278,"Superintendent","Paul Livingston",null,"Pentucket","07450000","22 Main Street",null,"West Newbury","MA","01985"]
[279,"Superintendent","Patricia Martin",null,"Petersham","02340000","P O Box 148",null,"Petersham","MA","01366"]
[280,"Charter School Leader","Sarah Miller",null,"Phoenix Charter Academy","04930000","59 Nichols St",null,"Chelsea","MA","02150"]
[281,"Charter School Leader","Barish Icin",null,"Pioneer Charter School of Science","04940000","51-59 Summer Street",null,"Everett","MA","02149"]
[282,"Superintendent","Dayle Doiron",null,"Pioneer Valley","07500000","97 F Sumner Turner Rd",null,"Northfield","MA","01360"]
[283,"Charter School Leader","Kathleen Wang",null,"Pioneer Valley Chinese Immersion Charter","04970000","317 Russell Street",null,"Hadley","MA","01035"]
[284,"Charter School Leader","Robert Brainin",null,"Pioneer Valley Performing Arts Charter","04790000","15 Mulligan Drive",null,"South Hadley","MA","01075"]
[285,"Superintendent","Howard Eberwein",null,"Pittsfield","02360000","269 First Street",null,"Pittsfield","MA","01201"]
[286,"Superintendent","David Raiche",null,"Plainville","02380000","68 Messenger Street",null,"Plainville","MA","02762"]
[287,"Superintendent","Gary Maestas",null,"Plymouth","02390000","253 South Meadow Rd",null,"Plymouth","MA","02360"]
[288,"Superintendent","John Tuffy",null,"Plympton","02400000","250 Pembroke Street",null,"Kingston","MA","02364"]
[289,"Charter School Leader","Jed Lippard",null,"Prospect Hill Academy Charter","04870000","50 Essex Street",null,"Cambridge","MA","02139"]
[290,"Superintendent","Beth Singer",null,"Provincetown","02420000","2 Mayflower Lane",null,"Provincetown","MA","02657"]
[291,"Superintendent","Maureen Marshall",null,"Quabbin","07530000","872 South Street",null,"Barre","MA","01005"]
[292,"Superintendent","Brett Kustigian",null,"Quaboag Regional","07780000","284 Old West Brookfield Road","PO Box 1538","Warren","MA","01083"]
[293,"Superintendent","Richard Decristofaro",null,"Quincy","02430000","159 Burgin Parkway",null,"Quincy","MA","02169"]
[294,"Superintendent","Michael Baldassarre",null,"Ralph C Mahar","07550000","507 South Main Street",null,"Orange","MA","01364"]
[295,"Superintendent","Oscar Santos",null,"Randolph","02440000","40 Highland Avenue",null,"Randolph","MA","02368"]
[296,"Superintendent","John Doherty",null,"Reading","02460000","82 Oakland Road",null,"Reading","MA","01867"]
[297,"Superintendent","Paul Dakin",null,"Revere","02480000","101 School Street",null,"Revere","MA","02151"]
[298,"Superintendent","William Ballen",null,"Richmond","02490000","1831 State Road",null,"Richmond","MA","01254"]
[299,"Charter School Leader","Jill Crafts",null,"Rising Tide Charter","04830000","6 Resnik Road",null,"Plymouth","MA","02360"]
[300,"Charter School Leader","Jeanne Schultz",null,"River Valley Charter","04820000","2 Perry Way",null,"Newburyport","MA","01950"]
[301,"Superintendent","Douglas White",null,"Rochester","02500000","135 Marion Rd",null,"Mattapoisett","MA","02739"]
[302,"Superintendent","John Retchless",null,"Rockland","02510000","99 Church Street",null,"Rockland","MA","02370"]
[303,"Superintendent","Susan King",null,"Rockport","02520000","24 Jerdens Lane","c/o Rockport Public Schools","Rockport","MA","01966"]
[304,"Superintendent","Michael Buoniconti",null,"Rowe","02530000","24 Ashfield Rd",null,"Shelburne Falls","MA","01370"]
[305,"Charter School Leader","Will Austin",null,"Roxbury Preparatory Charter","04840000","120 Fisher Avenue",null,"Roxbury","MA","02120"]
[306,"Charter School Leader","Karen Reuter",null,"Sabis International Charter","04410000","160 Joan Street",null,"Springfield","MA","01129"]
[307,"Superintendent","William Cameron",null,"Salem","02580000","29 Highland Avenue",null,"Salem","MA","01970"]
[308,"Charter School Leader","Sean O'Neil",null,"Salem Academy Charter","04850000","45 Congress Street","c/o Shetland Pk","Salem","MA","01970"]
[309,"Superintendent","Mary Johnson",null,"Sandwich","02610000","365 Quaker Meetinghouse Road","Suite A","East Sandwich","MA","02537"]
[310,"Superintendent","Richard Langlois",null,"Saugus","02620000","23 Main Street",null,"Saugus","MA","01906"]
[311,"Superintendent","Jon Lev",null,"Savoy","02630000","26 Chapel Road",null,"Savoy","MA","01256"]
[312,"Superintendent","Susan Martin",null,"Scituate","02640000","606 C J Cushing Hwy",null,"Scituate","MA","02066"]
[313,"Superintendent","Madeline Meyer",null,"Seekonk","02650000","25 Water Lane",null,"Seekonk","MA","02771"]
[314,"Charter School Leader","Krista Piazza",null,"Seven Hills Charter ","04860000","51 Gage Street",null,"Worcester","MA","01605"]
[315,"Superintendent","Barbara Dunham",null,"Sharon","02660000","1 School Street",null,"Sharon","MA","02067"]
[316,"Superintendent","Charles Lyons",null,"Shawsheen Valley Regional Vocational Technical","08710000","100 Cook Street",null,"Billerica","MA","01821"]
[317,"Superintendent","Valerie Spriggs",null,"Sherborn","02690000","157 Farm Street",null,"Dover","MA","02030"]
[318,"Superintendent","Malcolm Reid",null,"Shirley","02700000","34 Lancaster Rd",null,"Shirley","MA","01464"]
[319,"Superintendent","Joseph Sawyer",null,"Shrewsbury","02710000","100 Maple Avenue",null,"Shrewsbury","MA","01545"]
[320,"Superintendent","Joan Wickman",null,"Shutesbury","02720000","18 Pleasant Street",null,"Erving","MA","01344"]
[321,"Charter School Leader","Euthemia Gilman",null,"Silver Hill Horace Mann Charter ","04770000","675 Washington Street",null,"Haverhill","MA","01832"]
[322,"Superintendent","John Tuffy",null,"Silver Lake","07600000","250 Pembroke Street",null,"Kingston","MA","02364"]
[323,"Charter School Leader","Karmala Sherwood",null,"Smith Leadership Academy Charter","04190000","23 Leonard Street",null,"Boston","MA","02122"]
[324,"Superintendent","Richard Medeiros",null,"Somerset","02730000","580 Whetstone Hill Road",null,"Somerset","MA","02726"]
[325,"Superintendent","Anthony Pierantozzi",null,"Somerville","02740000","42 Cross Street",null,"Somerville","MA","02145"]
[326,"Superintendent","Gus Sayer",null,"South Hadley","02780000","116 Main Street",null,"South Hadley","MA","01075"]
[327,"Superintendent","James Lynch",null,"South Middlesex Regional Vocational Technical","08290000","750 Winter Street",null,"Framingham","MA","01702"]
[328,"Charter School Leader","Alicia Savage",null,"South Shore Charter","04880000","100 Longwater Circle",null,"Norwell","MA","02061"]
[329,"Superintendent","Charles Homer",null,"South Shore Regional Vocational Technical","08730000","476 Webster Street",null,"Hanover","MA","02339"]
[330,"Superintendent","Craig Jurgensen",null,"Southampton","02750000","19 Stage Rd",null,"Westhampton","MA","01027"]
[331,"Superintendent","Charles Gobron",null,"Southborough","02760000","53 Parkerville Road",null,"Southborough","MA","01772"]
[332,"Superintendent","Eric Ely",null,"Southbridge","02770000","41 Elm Street",null,"Southbridge","MA","01550"]
[333,"Superintendent","Luis Lopes",null,"Southeastern Regional Vocational Technical","08720000","250 Foundry Street",null,"South Easton","MA","02375"]
[334,"Superintendent","Michael Singleton",null,"Southern Berkshire","07650000","PO BOX 339",null,"Sheffield","MA","01257"]
[335,"Superintendent","David Papagni",null,"Southern Worcester County Regional Vocational Technical","08760000","57 Old Muggett Hill Road",null,"Charlton","MA","01507"]
[336,"Superintendent","John Barry",null,"Southwick-Tolland","07660000","86 Powder Mill Road",null,"Southwick","MA","01077"]
[337,"Superintendent","Ralph Hicks",null,"Spencer-E Brookfield","07670000","306 Main Street",null,"Spencer","MA","01562"]
[338,"Charter School Leader","Julia Sigalovsky",null,"Spirit of Knowledge Academy Charter School","04760000","PO BOX 20164",null,"Worcester","MA","01602"]
[339,"Superintendent","Alan Ingram",null,"Springfield","02810000","1550 Main Street","PO Box 1410","Springfield","MA","01103"]
[340,"Superintendent","Les Olson",null,"Stoneham","02840000","149 Franklin Street",null,"Stoneham","MA","02180"]
[341,"Superintendent","Marguerite Rizzi",null,"Stoughton","02850000","232 Pearl Street",null,"Stoughton","MA","02072"]
[342,"Superintendent","Daniel Durgin",null,"Sturbridge","02870000","320 Brookfield Rd",null,"Fiskdale","MA","01518"]
[343,"Charter School Leader","Eric Hieser",null,"Sturgis Charter","04890000","427 Main Street",null,"Hyannis","MA","02601"]
[344,"Superintendent","John Brackett",null,"Sudbury","02880000","40 Fairbank Rd",null,"Sudbury","MA","01776"]
[345,"Superintendent","Regina Nash",null,"Sunderland","02890000","219 Christian Ln RFD1",null,"South Deerfield","MA","01373"]
[346,"Superintendent","Theodore Friend",null,"Sutton","02900000","383 Boston Rd",null,"Sutton","MA","01590"]
[347,"Superintendent","Lynne Celli",null,"Swampscott","02910000","207 Forest Avenue",null,"Swampscott","MA","01907"]
[348,"Superintendent","Christine Stanton",null,"Swansea","02920000","1 Gardners Neck Road",null,"Swansea","MA","02777"]
[349,"Superintendent","Daniel Durgin",null,"Tantasqua","07700000","320A Brookfield Rd",null,"Fiskdale","MA","01518"]
[350,"Superintendent","Julie Hackett",null,"Taunton","02930000","110 County Street",null,"Taunton","MA","02780"]
[351,"Superintendent","John O'Connor",null,"Tewksbury","02950000","139 Pleasant Street",null,"Tewksbury","MA","01876"]
[352,"Superintendent","James Weiss",null,"Tisbury","02960000","4 Pine Street",null,"Vineyard Haven","MA","02568"]
[353,"Superintendent","Bernard Creeden",null,"Topsfield","02980000","28 Middleton Road",null,"Boxford","MA","01921"]
[354,"Superintendent","Barbara Renzoni",null,"Tri County Regional Vocational Technical","08780000","147 Pond Street",null,"Franklin","MA","02038"]
[355,"Superintendent","Christopher Farmer",null,"Triton","07730000","112 Elm Street",null,"Byfield","MA","01922"]
[356,"Superintendent","Brian Davis",null,"Truro","03000000","P O Box 2029",null,"Truro","MA","02666"]
[357,"Superintendent","Donald Ciampa",null,"Tyngsborough","03010000","50 Norris Rd",null,"Tyngsborough","MA","01879"]
[358,"Superintendent","James Weiss",null,"Up-Island Regional","07740000","4 Pine Street",null,"Vineyard Haven","MA","02568"]
[359,"Superintendent","Kevin Farr",null,"Upper Cape Cod Regional Vocational Technical","08790000","220 Sandwich Rd",null,"Bourne","MA","02532"]
[360,"Superintendent","George Zini",null,"Uxbridge","03040000","21 South Main Street",null,"Uxbridge","MA","01569"]
[361,"Superintendent","Thomas Pandiscio",null,"Wachusett","07750000","1745 Main Street","c/o Jefferson School","Jefferson","MA","01522"]
[362,"Superintendent","Joan Landers",null,"Wakefield","03050000","60 Farm Street",null,"Wakefield","MA","01880"]
[363,"Superintendent","Daniel Durgin",null,"Wales","03060000","320 Brookfield Rd",null,"Fiskdale","MA","01518"]
[364,"Superintendent","Lincoln Lynch",null,"Walpole","03070000","135 School Street",null,"Walpole","MA","02081"]
[365,"Superintendent","Peter Azar",null,"Waltham","03080000","617 Lexington Street",null,"Waltham","MA","02452"]
[366,"Superintendent","Mary Elizabeth Beach",null,"Ware","03090000","P O Box 240",null,"Ware","MA","01082"]
[367,"Superintendent","Barry Rabinovitch",null,"Wareham","03100000","54 Marion Road",null,"Wareham","MA","02571"]
[368,"Superintendent","Ann Koufman-Frederick",null,"Watertown","03140000","30 Common Street",null,"Watertown","MA","02472"]
[369,"Superintendent","Gary Burton",null,"Wayland","03150000","41 Cochituate Rd",null,"Wayland","MA","01778"]
[370,"Superintendent","Gregory Ciardi",null,"Webster","03160000","P.O. Box 430",null,"Webster","MA","01570"]
[371,"Superintendent","Bella Wong",null,"Wellesley","03170000","40 Kingsbury Street",null,"Wellesley","MA","02481"]
[372,"Superintendent","Richard Hoffmann",null,"Wellfleet","03180000","78 Eldredge Pkwy",null,"Orleans","MA","02653"]
[373,"Superintendent","Thomas Kane",null,"West Boylston","03220000","125 Crescent Street",null,"West Boylston","MA","01583"]
[374,"Superintendent","Patricia Oakley",null,"West Bridgewater","03230000","2 Spring Street",null,"West Bridgewater","MA","02379"]
[375,"Superintendent","Russell Johnston",null,"West Springfield","03320000","26 Central Street",null,"West Springfield","MA","01089"]
[376,"Superintendent","Marianne O'Connor",null,"Westborough","03210000","45 West Main Street","P O Box 1152","Westborough","MA","01581"]
[377,"Superintendent","Shirley Alvira",null,"Westfield","03250000","22 Ashley Street",null,"Westfield","MA","01085"]
[378,"Superintendent","Everett Olsen",null,"Westford","03260000","23 Depot Street",null,"Westford","MA","01886"]
[379,"Superintendent","Craig Jurgensen",null,"Westhampton","03270000","19 Stage Rd",null,"Westhampton","MA","01027"]
[380,"Superintendent","Cheryl Maloney",null,"Weston","03300000","89 Wellesley Street",null,"Weston","MA","02493"]
[381,"Superintendent","Carlos Colley",null,"Westport","03310000","17 Main Rd",null,"Westport","MA","02790"]
[382,"Superintendent","John Antonucci",null,"Westwood","03350000","220 Nahatan Street",null,"Westwood","MA","02090"]
[383,"Superintendent","Mary Livingstone",null,"Weymouth","03360000","111 Middle Street",null,"Weymouth","MA","02189"]
[384,"Superintendent","Regina Nash",null,"Whately","03370000","219 Christian Ln RFD1",null,"South Deerfield","MA","01373"]
[385,"Superintendent","Ruth Gilbert-Whitner",null,"Whitman-Hanson","07800000","610 Franklin Street",null,"Whitman","MA","02382"]
[386,"Superintendent","William DeRosa",null,"Whittier Regional Vocational Technical","08850000","115 Amesbury Line Rd",null,"Haverhill","MA","01830"]
[387,"Superintendent","Craig Jurgensen",null,"Williamsburg","03400000","19 Stage Rd",null,"Westhampton","MA","01027"]
[388,"Superintendent","Rose Ellis",null,"Williamstown","03410000","115 Church Street",null,"Williamstown","MA","01267"]
[389,"Superintendent","Joanne Benton",null,"Wilmington","03420000","161 Church Street",null,"Wilmington","MA","01887"]
[390,"Superintendent","Brooke Clenchy",null,"Winchendon","03430000","175 Grove Street",null,"Winchendon","MA","01475"]
[391,"Superintendent","William McAlduff",null,"Winchester","03440000","154 Horn Pond Brk Rd",null,"Winchester","MA","01890"]
[392,"Superintendent","Joseph Lisi",null,"Winthrop","03460000","45 Pauline Street",null,"Winthrop","MA","02152"]
[393,"Superintendent","Mark Donovan",null,"Woburn","03470000","55 Locust Street",null,"Woburn","MA","01801"]
[394,"Superintendent","Melinda Boone",null,"Worcester","03480000","20 Irving Street",null,"Worcester","MA","01609"]
[395,"Superintendent","Jeffrey Marsden",null,"Wrentham","03500000","120 Taunton Street",null,"Wrentham","MA","02093"]

{"sheet":"FY19 Budget Projection","index":8,"n_rows":17,"n_cols":8,"rows_kept":17,"cut":false,"hidden":true,"merged":[[3,3,3,6],[3,7,4,10],[5,1,5,2],[5,7,5,10],[6,1,6,2],[6,7,6,10],[7,1,7,2],[7,7,7,10],[8,1,8,2],[8,7,8,10],[9,1,9,2],[9,7,9,10],[14,1,14,2],[14,7,14,10],[16,0,16,2],[10,1,10,2],[10,7,10,10],[11,1,11,2],[11,7,11,10],[12,1,12,2],[12,7,12,10]]}
["SUMMARY OF GRANT REQUEST ACROSS TWO YEARS"]
["Manually enter estimated amounts for FY20"]
[]
[null,null,null,"Amount",null,null,null,"Notes on Budget Projections"]
[null,null,null,null,"FY19","FY19","Total"]
[1,"Administrators",null,null,{"$f":"'Budget Pages'!N18","v":0},null,{"$f":"E6+F6","v":0}]
[2,"Instructional/Professional Staff",null,null,{"$f":"'Budget Pages'!N27","v":0},null,{"$f":"SUM(E7:F7)","v":0}]
[3,"Support Staff",null,null,{"$f":"'Budget Pages'!N36","v":0},null,0]
[4,"Stipends",null,null,{"$f":"'Budget Pages'!N44","v":0},null,0]
[5,"Fringe Benefits",null,null,{"$f":"'Budget Pages'!N51","v":0},null,0]
[6,"Contractual Services",null,null,{"$f":"'Budget Pages'!N63","v":0},null,0]
[7,"Supplies and Materials",null,null,{"$f":"'Budget Pages'!N73","v":0},null,0]
[8,"Travel",null,null,{"$f":"'Budget Pages'!N80","v":0},null,0]
[9,"Other Costs",null,null,{"$f":"'Budget Pages'!N92","v":0},null,0]
[10,"Indirect Costs",null,null,{"$f":"'Budget Pages'!N93","v":0},null,0]
[11,"Equipment",null,null,{"$f":"'Budget Pages'!N98","v":0},null,0]
["TOTAL FUNDS REQUESTED FOR LEA",null,null,null,{"$f":"'Budget Pages'!N99","v":0},{"$f":"SUM(F6:F16)","v":0},{"$f":"SUM(E17:F17)","v":0}]